{"text_format":"1","workbook":"xlsx","n_sheets":2,"sheets":["QRY - ExportPupilNumbersbyYearG","Report"],"not_rendered":{"charts":0,"images":1,"macros":0,"external_links":0,"defined_names":4,"comments":0,"pivot_tables":0},"unopened":[],"bounds":{"document_bytes":16777216,"sheet_cells":100000,"rows_first":2000,"rows_last":500,"rows_between":2000,"halvings":0,"cell_chars":16384,"cell_head_chars":4096},"cells_cut":0,"cells_raw":0,"read":"whole","date_system":"1900"}

{"sheet":"QRY - ExportPupilNumbersbyYearG","index":0,"n_rows":67,"n_cols":37,"rows_kept":67,"cut":false,"hidden":true,"merged":[]}
["CenRefs","CENSUSYear","Term","FullRef","Area","Subarea","GeoLocalityName","Tier","PhaseType","Schooltype","SchoolName","SchoolControlType","Denominationtext","LocalAuthority","State","Closed","Academy Conversion Date","E1","E2","N1","N2","R","1","2","3","4","5","6","7","8","9","10","11","12","13","14","15"]
[62,2021,"Spring",62,"Windsor","Windsor South","Alexander","Three Tier","Primary","First","Alexander First School","Community","None",868,"State",false,null,null,null,11,11,28,20,13,20,15]
[62,2021,"Spring",62,"Maidenhead","Central Maidenhead","Boyn Hill","Two Tier","Primary","Junior","All Saints Church of England Junior School","Voluntary Controlled","Church of England",868,"State",false,null,null,null,null,null,null,null,null,66,64,63,78]
[62,2021,"Spring",62,"Maidenhead","Central Maidenhead","Tittle Row","Two Tier","Secondary","Secondary","Altwood Church of England School","Academy","Church of England",868,"State",false,"2012-09-01",null,null,null,null,null,null,null,null,null,null,null,127,91,58,44,53,55,50,12]
[62,2021,"Spring",62,"Maidenhead","North West Maidenhead","St Mark's","Two Tier","Primary","Infants","Alwyn Infant School","Community","None",868,"State",false,null,null,null,null,null,82,81,85]
[62,2021,"Spring",62,"Maidenhead","Bisham and Cookham","Bisham","Two Tier","Primary","JMI","Bisham C of E Academy","Academy","Church of England",868,"State",false,"2017-09-01",null,null,null,null,7,10,10,8,14,7,9]
[62,2021,"Spring",62,"Maidenhead","Central Maidenhead","Boyn Hill","Two Tier","Primary","Infants","Boyne Hill C of E Infant and Nursery School","Voluntary Controlled","Church of England",868,"State",false,null,null,null,13,44,60,57,58]
[62,2021,"Spring",62,"Maidenhead","South East Maidenhead","Bray","Two Tier","Primary","JMI","Braywick Court School","Free School","None",868,"State",false,null,null,null,null,35,30,30,30,30,31,30,30]
[62,2021,"Spring",62,"Windsor","Windsor Villages","Fifield","Three Tier","Primary","First","Braywood C of E First School","Voluntary Controlled","Church of England",868,"State",false,null,null,null,null,null,29,30,26,21,22]
[62,2021,"Spring",62,"Maidenhead","Maidenhead Villages","Burchett's Green","Two Tier","Primary","Infants","Burchetts Green CE Infant School","Academy","Church of England",868,"State",false,"2014-12-01",null,null,null,null,22,24,24]
[62,2021,"Spring",62,"Ascot","Ascot","South Sunningdale","Two Tier","Secondary","Secondary","Charters School","Academy","None",868,"State",false,"2012-10-01",null,null,null,null,null,null,null,null,null,null,null,270,304,270,274,240,197,181]
[62,2021,"Spring",62,"Ascot","Ascot","Cheapside","Two Tier","Primary","JMI","Cheapside CE Primary School","Voluntary Aided","Church of England",868,"State",false,null,null,null,null,null,29,30,29,28,29,30,30]
[62,2021,"Spring",62,"Datchet & Wraysbury","Datchet and Wraysbury","Datchet East","Two Tier","Secondary","Secondary","Churchmead Church of England School","Voluntary Aided","Church of England",868,"State",false,null,null,null,null,null,null,null,null,null,null,null,null,119,90,97,57,53]
[62,2021,"Spring",62,"Windsor","Windsor South","New Town","Three Tier","Primary","First","Clewer Green CE School","Academy","Church of England",868,"State",false,"2020-04-01",null,null,null,null,59,53,47,60,55]
[62,2021,"Spring",62,"Maidenhead","Bisham and Cookham","Cookham Dean South","Two Tier","Primary","JMI","Cookham Dean CE Primary School","Voluntary Aided","Church of England",868,"State",false,null,null,null,null,null,27,27,28,27,25,28,27]
[62,2021,"Spring",62,"Maidenhead","Bisham and Cookham","Cookham","NA","Early Years","Nursery School","Cookham Nursery School","Community","None",868,"State",false,null,null,null,14,58]
[62,2021,"Spring",62,"Maidenhead","Bisham and Cookham","Cookham Rise","Two Tier","Primary","JMI","Cookham Rise Primary School","Community","None",868,"State",false,null,null,null,null,null,30,30,29,30,31,30,29]
[62,2021,"Spring",62,"Maidenhead","North West Maidenhead","St Mark's","Two Tier","Primary","Junior","Courthouse Junior School","Community","None",868,"State",false,null,null,null,null,null,null,null,null,85,103,78,97]
[62,2021,"Spring",62,"Maidenhead","South West Maidenhead","Lowbrook","Two Tier","Secondary","Secondary","Cox Green School","Academy","None",868,"State",false,"2011-12-01",null,null,null,null,null,null,null,null,null,null,null,208,195,204,191,183,72,80]
[62,2021,"Spring",62,"Datchet & Wraysbury","Datchet and Wraysbury","Datchet East","Two Tier","Primary","JMI","Datchet St Mary's C of E Primary Academy","Academy","Church of England",868,"State",false,"2012-01-01",null,null,4,22,28,31,30,31,28,30,44]
[62,2021,"Spring",62,"Windsor","Windsor North","Dedworth","Three Tier","Primary","First","Dedworth Green First School","Academy","None",868,"State",false,"2016-05-01",null,null,11,6,25,26,29,30,29]
[62,2021,"Spring",62,"Windsor","Windsor North","Dedworth","Three Tier","Secondary","Middle","Dedworth Middle School","Academy","None",868,"State",false,"2016-05-01",null,null,null,null,null,null,null,null,null,122,135,112,125]
[62,2021,"Spring",62,"Maidenhead","Central Maidenhead","Larchfield East","Two Tier","Secondary","Secondary","Desborough College","Academy","None",868,"State",false,"2012-10-01",null,null,null,null,null,null,null,null,null,null,null,140,179,179,182,153,59,36]
[62,2021,"Spring",62,"Windsor","Eton","Eton","Three Tier","Primary","First","Eton Porny C of E First School","Academy","Church of England",868,"State",false,"2016-02-01",null,null,null,null,30,30,30,24,22]
[62,2021,"Spring",62,"Windsor","Eton","Eton Wick","Three Tier","Primary","First","Eton Wick C of E First School","Voluntary Controlled","Church of England",868,"State",false,null,null,null,9,7,15,12,15,25,23]
[62,2021,"Spring",62,"Maidenhead","South East Maidenhead","Central","NA","All-through","All Years","Forest Bridge School","Free School","None",868,"State",false,null,null,null,null,null,null,4,10,6,6,7,9,14,17,4,4,2,1]
[62,2021,"Spring",62,"Maidenhead","North West Maidenhead","Furze Platt","Two Tier","Primary","Infants","Furze Platt Infant School","Community","None",868,"State",false,null,null,null,null,null,88,90,89]
[62,2021,"Spring",62,"Maidenhead","North West Maidenhead","Furze Platt","Two Tier","Primary","Junior","Furze Platt Junior School","Community","None",868,"State",false,null,null,null,null,null,null,null,null,89,91,90,90]
[62,2021,"Spring",62,"Maidenhead","North West Maidenhead","Furze Platt","Two Tier","Secondary","Secondary","Furze Platt Senior School","Academy","None",868,"State",false,"2011-12-01",null,null,null,null,null,null,null,null,null,null,null,257,233,220,202,202,144,149]
[62,2021,"Spring",62,"Windsor","Windsor South","Hilltop","Three Tier","Primary","First","Hilltop First School","Community","None",868,"State",false,null,null,null,4,24,43,44,43,42,44]
[62,2021,"Spring",62,"Maidenhead","Bisham and Cookham","Cookham","Two Tier","Primary","JMI","Holy Trinity C of E Primary School, Cookham","Voluntary Controlled","Church of England",868,"State",false,null,null,null,null,null,30,30,29,30,30,26,30]
[62,2021,"Spring",62,"Ascot","Ascot","North Sunningdale","Two Tier","Primary","JMI","Holy Trinity CE Primary School, Sunningdale","Voluntary Aided","Church of England",868,"State",false,null,null,null,null,null,30,30,30,30,31,57,30]
[62,2021,"Spring",62,"Maidenhead","South East Maidenhead","Holyport Rural","Two Tier","Primary","JMI","Holyport C of E Primary School & Foundation Unit","Academy","Church of England",868,"State",false,"2016-06-01",null,null,null,8,30,30,24,36,43,47,44]
[62,2021,"Spring",62,"Maidenhead","South East Maidenhead","Holyport Rural","Two Tier","Secondary","Secondary","Holyport College","Free School","None",868,"State",false,null,null,null,null,null,null,null,null,null,null,null,null,69,47,83,87,87,109,98]
[62,2021,"Spring",62,"Windsor","Windsor North","Homer","Three Tier","Primary","First","Homer First School and Nursery","Community","None",868,"State",false,null,null,null,7,17,40,42,37,45,58]
[62,2021,"Spring",62,"Windsor","Windsor Villages","Old Windsor","Three Tier","Primary","First","Kings Court First School","Community","None",868,"State",false,null,null,null,null,null,26,37,41,36,39]
[62,2021,"Spring",62,"Maidenhead","Maidenhead Villages","Knowl Hill","Two Tier","Primary","JMI","Knowl Hill C of E Academy","Academy","Church of England",868,"State",false,"2014-09-01",null,null,null,null,18,25,24,23,26,20,16]
[62,2021,"Spring",62,"Maidenhead","Central Maidenhead","Larchfield West","Two Tier","Primary","JMI","Larchfield Primary and Nursery School","Community","None",868,"State",false,null,null,null,8,21,30,27,30,27,30,28,28]
[62,2021,"Spring",62,"Maidenhead","South West Maidenhead","Lowbrook","Two Tier","Primary","JMI","Lowbrook Academy","Academy","None",868,"State",false,"2011-04-01",null,null,null,null,59,30,30,30,60,60,58]
[62,2021,"Spring",62,"Maidenhead","North East Maidenhead","North Town","NA","Early Years","Nursery School","Maidenhead Nursery School","Community","None",868,"State",false,null,1,1,18,47]
[62,2021,"Spring",62,"Maidenhead","South West Maidenhead","Lowbrook","NA","All-through","All Years","Manor Green School","Community","None",868,"State",false,null,null,null,null,1,8,13,12,14,19,20,30,21,31,17,26,26,18,10,8]
[62,2021,"Spring",62,"Maidenhead","North West Maidenhead","Highway","Two Tier","Secondary","Secondary","Newlands Girls' School","Academy","None",868,"State",false,"2015-10-01",null,null,null,null,null,null,null,null,null,null,null,189,192,191,187,191,129,106]
[62,2021,"Spring",62,"Windsor","East Windsor","Oakfield","Three Tier","Primary","First","Oakfield First School","Community","None",868,"State",false,null,null,null,null,null,59,56,60,60,54]
[62,2021,"Spring",62,"Maidenhead","South East Maidenhead","Fishery","Two Tier","Primary","JMI","Oldfield Primary School","Community","None",868,"State",false,null,null,null,null,null,60,60,60,60,60,60,62]
[62,2021,"Spring",62,"Maidenhead","South East Maidenhead","Central","NA","All-through","All-through PRU","RISE Alternative Learning Provision","Community","None",868,"State",false,null,null,null,null,null,null,null,1,1,null,1,null,null,1,4,6,9]
[62,2021,"Spring",62,"Maidenhead","North East Maidenhead","North Town","Two Tier","Primary","JMI","Riverside Primary School and Nursery","Community","None",868,"State",false,null,null,null,21,28,54,48,46,57,58,47,43]
[62,2021,"Spring",62,"Ascot","Ascot","South Ascot","Two Tier","Primary","JMI","South Ascot Village Primary School","Community","None",868,"State",false,null,null,null,8,1,19,19,27,26,29,30,30]
[62,2021,"Spring",62,"Maidenhead","Central Maidenhead","Tittle Row","Two Tier","Primary","JMI","St Edmund Campion Catholic Primary School","Academy","Roman Catholic",868,"State",false,"2017-07-01",null,null,null,null,60,60,60,60,60,60,61]
[62,2021,"Spring",62,"Windsor","Windsor North","Clewer Village","Three Tier","Primary","First","St Edward's Catholic First School","Voluntary Aided","Roman Catholic",868,"State",false,null,null,null,null,null,60,56,61,58,60]
[62,2021,"Spring",62,"Windsor","Windsor North","Clewer Village","Three Tier","Secondary","Middle","St Edward's Royal Free Ecumenical Middle School","Voluntary Aided","Ecumenical",868,"State",false,null,null,null,null,null,null,null,null,null,null,120,120,120,119]
[62,2021,"Spring",62,"Ascot","Ascot","South Ascot","Two Tier","Primary","JMI","St Francis Catholic Primary School","Academy","Roman Catholic",868,"State",false,"2015-09-01",null,null,null,null,30,30,30,30,30,30,29]
[62,2021,"Spring",62,"Maidenhead","North East Maidenhead","St Luke's","Two Tier","Primary","JMI","St Luke's Church of England Primary School","Academy","Church of England",868,"State",false,"2014-12-01",null,null,9,24,44,45,45,41,37,39,37]
[62,2021,"Spring",62,"Maidenhead","North East Maidenhead","St Luke's","Two Tier","Primary","JMI","St Mary's Catholic Primary School","Academy","Roman Catholic",868,"State",false,"2013-07-01",null,null,null,null,44,44,44,44,44,38,45]
[62,2021,"Spring",62,"Ascot","Ascot","Sunninghill","Two Tier","Primary","JMI","St Michael's C of E Primary School, Sunninghill","Voluntary Controlled","Church of England",868,"State",false,null,null,null,null,null,30,21,30,30,30,30,32]
[62,2021,"Spring",62,"Windsor","Windsor Villages","Old Windsor","Three Tier","Secondary","Middle","St Peter's Church of England Middle School","Academy","Church of England",868,"State",false,"2014-11-01",null,null,null,null,null,null,null,null,null,77,74,61,57]
[62,2021,"Spring",62,"Windsor","East Windsor","Oakfield","NA","Early Years","Nursery School","The Lawns Nursery","Community","None",868,"State",false,null,null,6,57,67]
[62,2021,"Spring",62,"Windsor","East Windsor","Home Park","Three Tier","Primary","First","The Queen Anne Royal Free CE First School","Voluntary Controlled","Church of England",868,"State",false,null,null,null,null,null,29,29,30,27,27]
[62,2021,"Spring",62,"Windsor","Windsor Villages","Great Park","Three Tier","Primary","First","The Royal School (Crown Aided)","Voluntary Aided","Church of England",868,"State",false,null,null,null,null,null,20,22,21,15,22]
[62,2021,"Spring",62,"Windsor","East Windsor","Trinity","Three Tier","Secondary","Upper","The Windsor Boys' School","Academy","None",868,"State",false,"2015-03-01",null,null,null,null,null,null,null,null,null,null,null,null,null,229,222,218,114,105]
[62,2021,"Spring",62,"Windsor","East Windsor","Home Park","Three Tier","Secondary","Middle","Trevelyan Middle School","Academy","None",868,"State",false,"2016-11-01",null,null,null,null,null,null,null,null,null,148,150,149,147]
[62,2021,"Spring",62,"Windsor","East Windsor","Trinity","Three Tier","Primary","First","Trinity St Stephen Church of England First School","Voluntary Aided","Church of England",868,"State",false,null,null,null,null,null,27,29,28,30,27]
[62,2021,"Spring",62,"Maidenhead","Maidenhead Villages","Waltham St Lawrence","Two Tier","Primary","JMI","Waltham St Lawrence Primary School","Community","None",868,"State",false,null,null,null,null,null,22,22,22,20,18,20,16]
[62,2021,"Spring",62,"Maidenhead","South West Maidenhead","Wessex West","Two Tier","Primary","JMI","Wessex Primary School","Community","None",868,"State",false,null,null,null,6,22,45,55,58,60,59,58,63]
[62,2021,"Spring",62,"Maidenhead","Maidenhead Villages","White Waltham","Two Tier","Primary","JMI","White Waltham C of E Academy","Academy","Church of England",868,"State",false,"2012-09-01",null,null,null,null,30,30,30,29,30,31,29]
[62,2021,"Spring",62,"Windsor","Windsor South","New Town","Three Tier","Secondary","Upper","Windsor Girls' School","Academy","None",868,"State",false,"2015-03-01",null,null,null,null,null,null,null,null,null,null,null,null,null,198,188,178,85,126]
[62,2021,"Spring",62,"Maidenhead","South West Maidenhead","Woodlands Park","Two Tier","Primary","JMI","Woodlands Park Primary & Nursery School","Community","None",868,"State",false,null,null,null,1,13,26,26,15,20,29,10,21]
[62,2021,"Spring",62,"Datchet & Wraysbury","Datchet and Wraysbury","Wraysbury","Two Tier","Primary","JMI","Wraysbury Primary School","Community","None",868,"State",false,null,null,null,null,null,60,59,60,58,53,52,49]

{"sheet":"Report","index":1,"n_rows":89,"n_cols":40,"rows_kept":89,"cut":false,"hidden":false,"merged":[[16,19,16,22],[16,28,16,31],[16,23,16,25],[18,37,20,37],[18,38,20,38],[18,39,20,39],[14,21,14,24],[14,25,14,31],[19,12,19,31],[17,12,17,31],[15,12,15,31],[18,36,20,36],[16,26,16,27],[18,34,20,34],[18,35,20,35],[14,16,14,20],[14,12,14,15],[16,12,16,16],[16,17,16,18],[11,12,11,31],[11,34,11,39],[13,34,13,39],[10,3,10,5],[10,6,10,11],[10,32,10,33],[10,34,10,39],[10,12,10,31],[13,12,13,15],[13,16,13,22],[13,23,13,31]]}
[]
[null,null,{"$f":"\"Report - Summary of School Numbers On Roll in the Royal Borough of Windsor and Maidenhead (\" & 'QRY - ExportPupilNumbersbyYearG'!C2 & \" \" & 'QRY - ExportPupilNumbersbyYearG'!B2 & \")\"","v":"Report - Summary of School Numbers On Roll in the Royal Borough of Windsor and Maidenhead (Spring 2021)"}]
[null,null,"This report gives the number of children attending each school in the borough as at the date shown.  The total numbers are shown in the final row."]
[]
[null,null,null,"Use this button to hide or show the 'School Location' and 'School Details' information as preferred."]
[]
[null,null,null,"Use this button to hide or show the help 'bubbles', which give brief explanations of the data in each column."]
[]
[null,null,"   Filter the results:","Use the filters in the red row below to choose groups of schools.  The totals in the final row will reflect the pupil numbers in the selected schools.  To use the filters, click on the arrow in the relevant column (e.g. 'Area').  "]
[null,null,null,"All the available options in that column (e.g. Ascot, Datchet & Wraysbury), Maidenhead and Windsor) will be shown with check boxes.  Simply check or uncheck the options you want displayed and click 'ok'.  "]
[null,null,"THE SCHOOL","SCHOOL LOCATION",null,null,"SCHOOL DETAILS",null,null,null,null,null,"PUPIL NUMBERS BY YEAR GROUP",null,null,null,null,null,null,null,null,null,null,null,null,null,null,null,null,null,null,null,"TOTALS",null,"PUPIL NUMBERS BY KEY STAGE"]
[null,null,"All state nursery, primary, secondary and special schools, including academies and free schools, in the Royal Borough are included in the School Census.  Independent or private schools are not included.  The School Census also does not cover independent nurseries, playgroups or childminders.","The Royal Borough is split into four areas for the analysis of pupil numbers:\n\nAscot.\nDatchet & Wraysbury.\nMaidenhead.\nWindsor.","The areas are further split into subareas.","Finally, the subareas are split into localities.  Not all of these small geographical areas will have a school in it.","This indicates whether a school is for primary age children or secondary age children.  Middle schools count as schools for secondary age children in the Royal Borough.\t","This indicates whether the school is in a two tier or three tier area. \n\nA two tier area has primary and secondary schools.  A three tier area has first, middle and upper schools.","This indicates the type of school:\n\nInfant.\nJunior.\nPrimary.\nFirst.\nMiddle.\nUpper.\nSecondary.\nSpecial.","This indicates whether a school is:\n\nCommunity.\nVoluntary Controlled.\nVoluntary Aided.\nAcademy.\nFree.","Where a school is an academy, the date of conversion is indicated here.","This indicates whether the school has a religious character.","This section gives the number of children attending each school as at the chosen school census date.  The information is provided by:\n\nAge of the children, as at the start of the academic year.\nNational curriculum year groups, otherwise known as school year groups.\nKey Stages, which relate to the teaching of the national curriculum.\n\nThe School Census is a statutory data collection for all maintained nursery, primary, secondary and special schools, including academies and free schools.  It collects information about individual pupils and information about the schools themselves, such as their educational provision.  \n\nThe School Census is collected on termly, in the Autumn (October), Spring (January) and Summer (May) terms.   Please note that this is a snapshot as at the Census date - some children will have left and others joined since that date, and so some numbers will now be different.\n\nA small number of children attend two schools, usually a mainstream school and a Pupil Referral Unit (PRU).  One of these schools is designated as the 'Main' school, and the other 'Subsidiary'.  To avoid double counting, only 'Main' school records are counted here.",null,null,null,null,null,null,null,null,null,null,null,null,null,null,null,null,null,null,null,"This is the total number of children at the school, excluding any children in a nursery class.","This is the total number of children at the school, including any children in a nursery class.","This provides the total number of children attending each school by Key Stage.  "]
[null,null,"A","B","C","D","E","F","G","H","I","J",null,null,"K","L","M","N","O","P","Q","R","S","T","U","V","W","X","Y","Z","AA","AB","AC","AD","AE","AF","AG","AH","AI","AJ"]
[null,null,"School","Area","Subarea","Locality","Phase","Tier","Type","Control","Academy","Denomination","Nursery",null,null,null,"Primary",null,null,null,null,null,null,"Secondary",null,null,null,null,null,null,null,null,"Total","Total","Key Stage (KS) Totals"]
[null,null,null,null,null,null,null,null,null,null,"conversion date",null,"Nursery",null,null,null,"First",null,null,null,null,"Middle",null,null,null,"Upper",null,null,null,null,null,null,"excluding","including"]
[null,null,null,null,null,null,null,null,null,null,null,null,"Key Stages (KS)",null,null,null,null,null,null,null,null,null,null,null,null,null,null,null,null,null,null,null,"nursery","nursery"]
[null,null,null,null,null,null,null,null,null,null,null,null,"Foundation",null,null,null,null,"Key Stage 1",null,"Key Stage 2",null,null,null,"Key Stage 3",null,null,"Key Stage 4",null,"Key Stage 5"]
[null,null,null,null,null,null,null,null,null,null,null,null,"National Curriculum Year Groups"]
[null,null,null,null,null,null,null,null,null,null,null,null,"E1","E2",{"$f":"'QRY - ExportPupilNumbersbyYearG'!T1","v":"N1"},{"$f":"'QRY - ExportPupilNumbersbyYearG'!U1","v":"N2"},{"$f":"'QRY - ExportPupilNumbersbyYearG'!V1","v":"R"},{"$f":"'QRY - ExportPupilNumbersbyYearG'!W1","v":"1"},{"$f":"'QRY - ExportPupilNumbersbyYearG'!X1","v":"2"},{"$f":"'QRY - ExportPupilNumbersbyYearG'!Y1","v":"3"},{"$f":"'QRY - ExportPupilNumbersbyYearG'!Z1","v":"4"},{"$f":"'QRY - ExportPupilNumbersbyYearG'!AA1","v":"5"},{"$f":"'QRY - ExportPupilNumbersbyYearG'!AB1","v":"6"},{"$f":"'QRY - ExportPupilNumbersbyYearG'!AC1","v":"7"},{"$f":"'QRY - ExportPupilNumbersbyYearG'!AD1","v":"8"},{"$f":"'QRY - ExportPupilNumbersbyYearG'!AE1","v":"9"},{"$f":"'QRY - ExportPupilNumbersbyYearG'!AF1","v":"10"},{"$f":"'QRY - ExportPupilNumbersbyYearG'!AG1","v":"11"},{"$f":"'QRY - ExportPupilNumbersbyYearG'!AH1","v":"12"},{"$f":"'QRY - ExportPupilNumbersbyYearG'!AI1","v":"13"},{"$f":"'QRY - ExportPupilNumbersbyYearG'!AJ1","v":"14"},{"$f":"'QRY - ExportPupilNumbersbyYearG'!AK1","v":"15"},null,null,"Fdn","KS1","KS2","KS3","KS4","KS5"]
[null,null,null,null,null,null,null,null,null,null,null,null,{"$f":"IF('QRY - ExportPupilNumbersbyYearG'!C2=\"Autumn\",\"Age as at 31st August \" & 'QRY - ExportPupilNumbersbyYearG'!B2,\"Age as at 31st August \" & 'QRY - ExportPupilNumbersbyYearG'!B2-1)","v":"Age as at 31st August 2020"}]
[null,null,null,null,null,null,null,null,null,null,null,null,0,1,2,3,4,5,6,7,8,9,10,11,12,13,14,15,16,17,18,19]
[]
[null,null,{"$f":"IF('QRY - ExportPupilNumbersbyYearG'!K2 =\"\",\"n/a\",'QRY - ExportPupilNumbersbyYearG'!K2)","v":"Alexander First School"},{"$f":"IF($C23=\"n/a\",\"\",'QRY - ExportPupilNumbersbyYearG'!E2)","v":"Windsor"},{"$f":"IF($C23=\"n/a\",\"\",'QRY - ExportPupilNumbersbyYearG'!F2)","v":"Windsor South"},{"$f":"IF($C23=\"n/a\",\"\",'QRY - ExportPupilNumbersbyYearG'!G2)","v":"Alexander"},{"$f":"IF($C23=\"n/a\",\"\",'QRY - ExportPupilNumbersbyYearG'!I2)","v":"Primary"},{"$f":"IF($C23=\"n/a\",\"\",'QRY - ExportPupilNumbersbyYearG'!H2)","v":"Three Tier"},{"$f":"IF($C23=\"n/a\",\"\",'QRY - ExportPupilNumbersbyYearG'!J2)","v":"First"},{"$f":"IF($C23=\"n/a\",\"\",'QRY - ExportPupilNumbersbyYearG'!L2)","v":"Community"},{"$f":"IF('QRY - ExportPupilNumbersbyYearG'!Q2=\"\",\"\",'QRY - ExportPupilNumbersbyYearG'!Q2)","v":""},{"$f":"IF($C23=\"n/a\",\"\",'QRY - ExportPupilNumbersbyYearG'!M2)","v":"None"},{"$f":"IF($C23<>\"n/a\",'QRY - ExportPupilNumbersbyYearG'!R2,\"n/a\")","v":0},{"$f":"IF($C23<>\"n/a\",'QRY - ExportPupilNumbersbyYearG'!S2,\"n/a\")","v":0},{"$f":"IF($C23<>\"n/a\",'QRY - ExportPupilNumbersbyYearG'!T2,\"n/a\")","v":11},{"$f":"IF($C23<>\"n/a\",'QRY - ExportPupilNumbersbyYearG'!U2,\"n/a\")","v":11},{"$f":"IF($C23<>\"n/a\",'QRY - ExportPupilNumbersbyYearG'!V2,\"n/a\")","v":28},{"$f":"IF($C23<>\"n/a\",'QRY - ExportPupilNumbersbyYearG'!W2,\"n/a\")","v":20},{"$f":"IF($C23<>\"n/a\",'QRY - ExportPupilNumbersbyYearG'!X2,\"n/a\")","v":13},{"$f":"IF($C23<>\"n/a\",'QRY - ExportPupilNumbersbyYearG'!Y2,\"n/a\")","v":20},{"$f":"IF($C23<>\"n/a\",'QRY - ExportPupilNumbersbyYearG'!Z2,\"n/a\")","v":15},{"$f":"IF($C23<>\"n/a\",'QRY - ExportPupilNumbersbyYearG'!AA2,\"n/a\")","v":0},{"$f":"IF($C23<>\"n/a\",'QRY - ExportPupilNumbersbyYearG'!AB2,\"n/a\")","v":0},{"$f":"IF($C23<>\"n/a\",'QRY - ExportPupilNumbersbyYearG'!AC2,\"n/a\")","v":0},{"$f":"IF($C23<>\"n/a\",'QRY - ExportPupilNumbersbyYearG'!AD2,\"n/a\")","v":0},{"$f":"IF($C23<>\"n/a\",'QRY - ExportPupilNumbersbyYearG'!AE2,\"n/a\")","v":0},{"$f":"IF($C23<>\"n/a\",'QRY - ExportPupilNumbersbyYearG'!AF2,\"n/a\")","v":0},{"$f":"IF($C23<>\"n/a\",'QRY - ExportPupilNumbersbyYearG'!AG2,\"n/a\")","v":0},{"$f":"IF($C23<>\"n/a\",'QRY - ExportPupilNumbersbyYearG'!AH2,\"n/a\")","v":0},{"$f":"IF($C23<>\"n/a\",'QRY - ExportPupilNumbersbyYearG'!AI2,\"n/a\")","v":0},{"$f":"IF($C23<>\"n/a\",'QRY - ExportPupilNumbersbyYearG'!AJ2,\"n/a\")","v":0},{"$f":"IF($C23<>\"n/a\",'QRY - ExportPupilNumbersbyYearG'!AK2,\"n/a\")","v":0},{"$f":"IF($C23<>\"n/a\",SUM(Q23:AF23),\"n/a\")","v":96},{"$f":"IF($C23<>\"n/a\",SUM(M23:AF23),\"n/a\")","v":118},{"$f":"IF(C23<>\"n/a\",SUM(M23:Q23),\"n/a\")","v":50},{"$f":"IF(C23<>\"n/a\",SUM(R23:S23),\"n/a\")","v":33},{"$f":"IF(C23<>\"n/a\",SUM(T23:W23),\"n/a\")","v":35},{"$f":"IF(C23<>\"n/a\",SUM(X23:Z23),\"n/a\")","v":0},{"$f":"IF(C23<>\"n/a\",SUM(AA23:AB23),\"n/a\")","v":0},{"$f":"IF(C23<>\"n/a\",SUM(AC23:AF23),\"n/a\")","v":0}]
[null,null,{"$f":"IF('QRY - ExportPupilNumbersbyYearG'!K3 =\"\",\"n/a\",'QRY - ExportPupilNumbersbyYearG'!K3)","v":"All Saints Church of England Junior School"},{"$f":"IF($C24=\"n/a\",\"\",'QRY - ExportPupilNumbersbyYearG'!E3)","v":"Maidenhead"},{"$f":"IF($C24=\"n/a\",\"\",'QRY - ExportPupilNumbersbyYearG'!F3)","v":"Central Maidenhead"},{"$f":"IF($C24=\"n/a\",\"\",'QRY - ExportPupilNumbersbyYearG'!G3)","v":"Boyn Hill"},{"$f":"IF($C24=\"n/a\",\"\",'QRY - ExportPupilNumbersbyYearG'!I3)","v":"Primary"},{"$f":"IF($C24=\"n/a\",\"\",'QRY - ExportPupilNumbersbyYearG'!H3)","v":"Two Tier"},{"$f":"IF($C24=\"n/a\",\"\",'QRY - ExportPupilNumbersbyYearG'!J3)","v":"Junior"},{"$f":"IF($C24=\"n/a\",\"\",'QRY - ExportPupilNumbersbyYearG'!L3)","v":"Voluntary Controlled"},{"$f":"IF('QRY - ExportPupilNumbersbyYearG'!Q3=\"\",\"\",'QRY - ExportPupilNumbersbyYearG'!Q3)","v":""},{"$f":"IF($C24=\"n/a\",\"\",'QRY - ExportPupilNumbersbyYearG'!M3)","v":"Church of England"},{"$f":"IF($C24<>\"n/a\",'QRY - ExportPupilNumbersbyYearG'!R3,\"n/a\")","v":0},{"$f":"IF($C24<>\"n/a\",'QRY - ExportPupilNumbersbyYearG'!S3,\"n/a\")","v":0},{"$f":"IF($C24<>\"n/a\",'QRY - ExportPupilNumbersbyYearG'!T3,\"n/a\")","v":0},{"$f":"IF($C24<>\"n/a\",'QRY - ExportPupilNumbersbyYearG'!U3,\"n/a\")","v":0},{"$f":"IF($C24<>\"n/a\",'QRY - ExportPupilNumbersbyYearG'!V3,\"n/a\")","v":0},{"$f":"IF($C24<>\"n/a\",'QRY - ExportPupilNumbersbyYearG'!W3,\"n/a\")","v":0},{"$f":"IF($C24<>\"n/a\",'QRY - ExportPupilNumbersbyYearG'!X3,\"n/a\")","v":0},{"$f":"IF($C24<>\"n/a\",'QRY - ExportPupilNumbersbyYearG'!Y3,\"n/a\")","v":66},{"$f":"IF($C24<>\"n/a\",'QRY - ExportPupilNumbersbyYearG'!Z3,\"n/a\")","v":64},{"$f":"IF($C24<>\"n/a\",'QRY - ExportPupilNumbersbyYearG'!AA3,\"n/a\")","v":63},{"$f":"IF($C24<>\"n/a\",'QRY - ExportPupilNumbersbyYearG'!AB3,\"n/a\")","v":78},{"$f":"IF($C24<>\"n/a\",'QRY - ExportPupilNumbersbyYearG'!AC3,\"n/a\")","v":0},{"$f":"IF($C24<>\"n/a\",'QRY - ExportPupilNumbersbyYearG'!AD3,\"n/a\")","v":0},{"$f":"IF($C24<>\"n/a\",'QRY - ExportPupilNumbersbyYearG'!AE3,\"n/a\")","v":0},{"$f":"IF($C24<>\"n/a\",'QRY - ExportPupilNumbersbyYearG'!AF3,\"n/a\")","v":0},{"$f":"IF($C24<>\"n/a\",'QRY - ExportPupilNumbersbyYearG'!AG3,\"n/a\")","v":0},{"$f":"IF($C24<>\"n/a\",'QRY - ExportPupilNumbersbyYearG'!AH3,\"n/a\")","v":0},{"$f":"IF($C24<>\"n/a\",'QRY - ExportPupilNumbersbyYearG'!AI3,\"n/a\")","v":0},{"$f":"IF($C24<>\"n/a\",'QRY - ExportPupilNumbersbyYearG'!AJ3,\"n/a\")","v":0},{"$f":"IF($C24<>\"n/a\",'QRY - ExportPupilNumbersbyYearG'!AK3,\"n/a\")","v":0},{"$f":"IF($C24<>\"n/a\",SUM(Q24:AF24),\"n/a\")","v":271},{"$f":"IF($C24<>\"n/a\",SUM(M24:AF24),\"n/a\")","v":271},{"$f":"IF(C24<>\"n/a\",SUM(M24:Q24),\"n/a\")","v":0},{"$f":"IF(C24<>\"n/a\",SUM(R24:S24),\"n/a\")","v":0},{"$f":"IF(C24<>\"n/a\",SUM(T24:W24),\"n/a\")","v":271},{"$f":"IF(C24<>\"n/a\",SUM(X24:Z24),\"n/a\")","v":0},{"$f":"IF(C24<>\"n/a\",SUM(AA24:AB24),\"n/a\")","v":0},{"$f":"IF(C24<>\"n/a\",SUM(AC24:AF24),\"n/a\")","v":0}]
[null,null,{"$f":"IF('QRY - ExportPupilNumbersbyYearG'!K4 =\"\",\"n/a\",'QRY - ExportPupilNumbersbyYearG'!K4)","v":"Altwood Church of England School"},{"$f":"IF($C25=\"n/a\",\"\",'QRY - ExportPupilNumbersbyYearG'!E4)","v":"Maidenhead"},{"$f":"IF($C25=\"n/a\",\"\",'QRY - ExportPupilNumbersbyYearG'!F4)","v":"Central Maidenhead"},{"$f":"IF($C25=\"n/a\",\"\",'QRY - ExportPupilNumbersbyYearG'!G4)","v":"Tittle Row"},{"$f":"IF($C25=\"n/a\",\"\",'QRY - ExportPupilNumbersbyYearG'!I4)","v":"Secondary"},{"$f":"IF($C25=\"n/a\",\"\",'QRY - ExportPupilNumbersbyYearG'!H4)","v":"Two Tier"},{"$f":"IF($C25=\"n/a\",\"\",'QRY - ExportPupilNumbersbyYearG'!J4)","v":"Secondary"},{"$f":"IF($C25=\"n/a\",\"\",'QRY - ExportPupilNumbersbyYearG'!L4)","v":"Academy"},{"$f":"IF('QRY - ExportPupilNumbersbyYearG'!Q4=\"\",\"\",'QRY - ExportPupilNumbersbyYearG'!Q4)","v":"2012-09-01"},{"$f":"IF($C25=\"n/a\",\"\",'QRY - ExportPupilNumbersbyYearG'!M4)","v":"Church of England"},{"$f":"IF($C25<>\"n/a\",'QRY - ExportPupilNumbersbyYearG'!R4,\"n/a\")","v":0},{"$f":"IF($C25<>\"n/a\",'QRY - ExportPupilNumbersbyYearG'!S4,\"n/a\")","v":0},{"$f":"IF($C25<>\"n/a\",'QRY - ExportPupilNumbersbyYearG'!T4,\"n/a\")","v":0},{"$f":"IF($C25<>\"n/a\",'QRY - ExportPupilNumbersbyYearG'!U4,\"n/a\")","v":0},{"$f":"IF($C25<>\"n/a\",'QRY - ExportPupilNumbersbyYearG'!V4,\"n/a\")","v":0},{"$f":"IF($C25<>\"n/a\",'QRY - ExportPupilNumbersbyYearG'!W4,\"n/a\")","v":0},{"$f":"IF($C25<>\"n/a\",'QRY - ExportPupilNumbersbyYearG'!X4,\"n/a\")","v":0},{"$f":"IF($C25<>\"n/a\",'QRY - ExportPupilNumbersbyYearG'!Y4,\"n/a\")","v":0},{"$f":"IF($C25<>\"n/a\",'QRY - ExportPupilNumbersbyYearG'!Z4,\"n/a\")","v":0},{"$f":"IF($C25<>\"n/a\",'QRY - ExportPupilNumbersbyYearG'!AA4,\"n/a\")","v":0},{"$f":"IF($C25<>\"n/a\",'QRY - ExportPupilNumbersbyYearG'!AB4,\"n/a\")","v":0},{"$f":"IF($C25<>\"n/a\",'QRY - ExportPupilNumbersbyYearG'!AC4,\"n/a\")","v":127},{"$f":"IF($C25<>\"n/a\",'QRY - ExportPupilNumbersbyYearG'!AD4,\"n/a\")","v":91},{"$f":"IF($C25<>\"n/a\",'QRY - ExportPupilNumbersbyYearG'!AE4,\"n/a\")","v":58},{"$f":"IF($C25<>\"n/a\",'QRY - ExportPupilNumbersbyYearG'!AF4,\"n/a\")","v":44},{"$f":"IF($C25<>\"n/a\",'QRY - ExportPupilNumbersbyYearG'!AG4,\"n/a\")","v":53},{"$f":"IF($C25<>\"n/a\",'QRY - ExportPupilNumbersbyYearG'!AH4,\"n/a\")","v":55},{"$f":"IF($C25<>\"n/a\",'QRY - ExportPupilNumbersbyYearG'!AI4,\"n/a\")","v":50},{"$f":"IF($C25<>\"n/a\",'QRY - ExportPupilNumbersbyYearG'!AJ4,\"n/a\")","v":12},{"$f":"IF($C25<>\"n/a\",'QRY - ExportPupilNumbersbyYearG'!AK4,\"n/a\")","v":0},490,490,0,0,0,276,97,117]
[null,null,{"$f":"IF('QRY - ExportPupilNumbersbyYearG'!K5 =\"\",\"n/a\",'QRY - ExportPupilNumbersbyYearG'!K5)","v":"Alwyn Infant School"},{"$f":"IF($C26=\"n/a\",\"\",'QRY - ExportPupilNumbersbyYearG'!E5)","v":"Maidenhead"},{"$f":"IF($C26=\"n/a\",\"\",'QRY - ExportPupilNumbersbyYearG'!F5)","v":"North West Maidenhead"},{"$f":"IF($C26=\"n/a\",\"\",'QRY - ExportPupilNumbersbyYearG'!G5)","v":"St Mark's"},{"$f":"IF($C26=\"n/a\",\"\",'QRY - ExportPupilNumbersbyYearG'!I5)","v":"Primary"},{"$f":"IF($C26=\"n/a\",\"\",'QRY - ExportPupilNumbersbyYearG'!H5)","v":"Two Tier"},{"$f":"IF($C26=\"n/a\",\"\",'QRY - ExportPupilNumbersbyYearG'!J5)","v":"Infants"},{"$f":"IF($C26=\"n/a\",\"\",'QRY - ExportPupilNumbersbyYearG'!L5)","v":"Community"},{"$f":"IF('QRY - ExportPupilNumbersbyYearG'!Q5=\"\",\"\",'QRY - ExportPupilNumbersbyYearG'!Q5)","v":""},{"$f":"IF($C26=\"n/a\",\"\",'QRY - ExportPupilNumbersbyYearG'!M5)","v":"None"},{"$f":"IF($C26<>\"n/a\",'QRY - ExportPupilNumbersbyYearG'!R5,\"n/a\")","v":0},{"$f":"IF($C26<>\"n/a\",'QRY - ExportPupilNumbersbyYearG'!S5,\"n/a\")","v":0},{"$f":"IF($C26<>\"n/a\",'QRY - ExportPupilNumbersbyYearG'!T5,\"n/a\")","v":0},{"$f":"IF($C26<>\"n/a\",'QRY - ExportPupilNumbersbyYearG'!U5,\"n/a\")","v":0},{"$f":"IF($C26<>\"n/a\",'QRY - ExportPupilNumbersbyYearG'!V5,\"n/a\")","v":82},{"$f":"IF($C26<>\"n/a\",'QRY - ExportPupilNumbersbyYearG'!W5,\"n/a\")","v":81},{"$f":"IF($C26<>\"n/a\",'QRY - ExportPupilNumbersbyYearG'!X5,\"n/a\")","v":85},{"$f":"IF($C26<>\"n/a\",'QRY - ExportPupilNumbersbyYearG'!Y5,\"n/a\")","v":0},{"$f":"IF($C26<>\"n/a\",'QRY - ExportPupilNumbersbyYearG'!Z5,\"n/a\")","v":0},{"$f":"IF($C26<>\"n/a\",'QRY - ExportPupilNumbersbyYearG'!AA5,\"n/a\")","v":0},{"$f":"IF($C26<>\"n/a\",'QRY - ExportPupilNumbersbyYearG'!AB5,\"n/a\")","v":0},{"$f":"IF($C26<>\"n/a\",'QRY - ExportPupilNumbersbyYearG'!AC5,\"n/a\")","v":0},{"$f":"IF($C26<>\"n/a\",'QRY - ExportPupilNumbersbyYearG'!AD5,\"n/a\")","v":0},{"$f":"IF($C26<>\"n/a\",'QRY - ExportPupilNumbersbyYearG'!AE5,\"n/a\")","v":0},{"$f":"IF($C26<>\"n/a\",'QRY - ExportPupilNumbersbyYearG'!AF5,\"n/a\")","v":0},{"$f":"IF($C26<>\"n/a\",'QRY - ExportPupilNumbersbyYearG'!AG5,\"n/a\")","v":0},{"$f":"IF($C26<>\"n/a\",'QRY - ExportPupilNumbersbyYearG'!AH5,\"n/a\")","v":0},{"$f":"IF($C26<>\"n/a\",'QRY - ExportPupilNumbersbyYearG'!AI5,\"n/a\")","v":0},{"$f":"IF($C26<>\"n/a\",'QRY - ExportPupilNumbersbyYearG'!AJ5,\"n/a\")","v":0},{"$f":"IF($C26<>\"n/a\",'QRY - ExportPupilNumbersbyYearG'!AK5,\"n/a\")","v":0},248,248,82,166,0,0,0,0]
[null,null,{"$f":"IF('QRY - ExportPupilNumbersbyYearG'!K6 =\"\",\"n/a\",'QRY - ExportPupilNumbersbyYearG'!K6)","v":"Bisham C of E Academy"},{"$f":"IF($C27=\"n/a\",\"\",'QRY - ExportPupilNumbersbyYearG'!E6)","v":"Maidenhead"},{"$f":"IF($C27=\"n/a\",\"\",'QRY - ExportPupilNumbersbyYearG'!F6)","v":"Bisham and Cookham"},{"$f":"IF($C27=\"n/a\",\"\",'QRY - ExportPupilNumbersbyYearG'!G6)","v":"Bisham"},{"$f":"IF($C27=\"n/a\",\"\",'QRY - ExportPupilNumbersbyYearG'!I6)","v":"Primary"},{"$f":"IF($C27=\"n/a\",\"\",'QRY - ExportPupilNumbersbyYearG'!H6)","v":"Two Tier"},{"$f":"IF($C27=\"n/a\",\"\",'QRY - ExportPupilNumbersbyYearG'!J6)","v":"JMI"},{"$f":"IF($C27=\"n/a\",\"\",'QRY - ExportPupilNumbersbyYearG'!L6)","v":"Academy"},{"$f":"IF('QRY - ExportPupilNumbersbyYearG'!Q6=\"\",\"\",'QRY - ExportPupilNumbersbyYearG'!Q6)","v":"2017-09-01"},{"$f":"IF($C27=\"n/a\",\"\",'QRY - ExportPupilNumbersbyYearG'!M6)","v":"Church of England"},{"$f":"IF($C27<>\"n/a\",'QRY - ExportPupilNumbersbyYearG'!R6,\"n/a\")","v":0},{"$f":"IF($C27<>\"n/a\",'QRY - ExportPupilNumbersbyYearG'!S6,\"n/a\")","v":0},{"$f":"IF($C27<>\"n/a\",'QRY - ExportPupilNumbersbyYearG'!T6,\"n/a\")","v":0},{"$f":"IF($C27<>\"n/a\",'QRY - ExportPupilNumbersbyYearG'!U6,\"n/a\")","v":0},{"$f":"IF($C27<>\"n/a\",'QRY - ExportPupilNumbersbyYearG'!V6,\"n/a\")","v":7},{"$f":"IF($C27<>\"n/a\",'QRY - ExportPupilNumbersbyYearG'!W6,\"n/a\")","v":10},{"$f":"IF($C27<>\"n/a\",'QRY - ExportPupilNumbersbyYearG'!X6,\"n/a\")","v":10},{"$f":"IF($C27<>\"n/a\",'QRY - ExportPupilNumbersbyYearG'!Y6,\"n/a\")","v":8},{"$f":"IF($C27<>\"n/a\",'QRY - ExportPupilNumbersbyYearG'!Z6,\"n/a\")","v":14},{"$f":"IF($C27<>\"n/a\",'QRY - ExportPupilNumbersbyYearG'!AA6,\"n/a\")","v":7},{"$f":"IF($C27<>\"n/a\",'QRY - ExportPupilNumbersbyYearG'!AB6,\"n/a\")","v":9},{"$f":"IF($C27<>\"n/a\",'QRY - ExportPupilNumbersbyYearG'!AC6,\"n/a\")","v":0},{"$f":"IF($C27<>\"n/a\",'QRY - ExportPupilNumbersbyYearG'!AD6,\"n/a\")","v":0},{"$f":"IF($C27<>\"n/a\",'QRY - ExportPupilNumbersbyYearG'!AE6,\"n/a\")","v":0},{"$f":"IF($C27<>\"n/a\",'QRY - ExportPupilNumbersbyYearG'!AF6,\"n/a\")","v":0},{"$f":"IF($C27<>\"n/a\",'QRY - ExportPupilNumbersbyYearG'!AG6,\"n/a\")","v":0},{"$f":"IF($C27<>\"n/a\",'QRY - ExportPupilNumbersbyYearG'!AH6,\"n/a\")","v":0},{"$f":"IF($C27<>\"n/a\",'QRY - ExportPupilNumbersbyYearG'!AI6,\"n/a\")","v":0},{"$f":"IF($C27<>\"n/a\",'QRY - ExportPupilNumbersbyYearG'!AJ6,\"n/a\")","v":0},{"$f":"IF($C27<>\"n/a\",'QRY - ExportPupilNumbersbyYearG'!AK6,\"n/a\")","v":0},65,65,7,20,38,0,0,0]
[null,null,{"$f":"IF('QRY - ExportPupilNumbersbyYearG'!K7 =\"\",\"n/a\",'QRY - ExportPupilNumbersbyYearG'!K7)","v":"Boyne Hill C of E Infant and Nursery School"},{"$f":"IF($C28=\"n/a\",\"\",'QRY - ExportPupilNumbersbyYearG'!E7)","v":"Maidenhead"},{"$f":"IF($C28=\"n/a\",\"\",'QRY - ExportPupilNumbersbyYearG'!F7)","v":"Central Maidenhead"},{"$f":"IF($C28=\"n/a\",\"\",'QRY - ExportPupilNumbersbyYearG'!G7)","v":"Boyn Hill"},{"$f":"IF($C28=\"n/a\",\"\",'QRY - ExportPupilNumbersbyYearG'!I7)","v":"Primary"},{"$f":"IF($C28=\"n/a\",\"\",'QRY - ExportPupilNumbersbyYearG'!H7)","v":"Two Tier"},{"$f":"IF($C28=\"n/a\",\"\",'QRY - ExportPupilNumbersbyYearG'!J7)","v":"Infants"},{"$f":"IF($C28=\"n/a\",\"\",'QRY - ExportPupilNumbersbyYearG'!L7)","v":"Voluntary Controlled"},{"$f":"IF('QRY - ExportPupilNumbersbyYearG'!Q7=\"\",\"\",'QRY - ExportPupilNumbersbyYearG'!Q7)","v":""},{"$f":"IF($C28=\"n/a\",\"\",'QRY - ExportPupilNumbersbyYearG'!M7)","v":"Church of England"},{"$f":"IF($C28<>\"n/a\",'QRY - ExportPupilNumbersbyYearG'!R7,\"n/a\")","v":0},{"$f":"IF($C28<>\"n/a\",'QRY - ExportPupilNumbersbyYearG'!S7,\"n/a\")","v":0},{"$f":"IF($C28<>\"n/a\",'QRY - ExportPupilNumbersbyYearG'!T7,\"n/a\")","v":13},{"$f":"IF($C28<>\"n/a\",'QRY - ExportPupilNumbersbyYearG'!U7,\"n/a\")","v":44},{"$f":"IF($C28<>\"n/a\",'QRY - ExportPupilNumbersbyYearG'!V7,\"n/a\")","v":60},{"$f":"IF($C28<>\"n/a\",'QRY - ExportPupilNumbersbyYearG'!W7,\"n/a\")","v":57},{"$f":"IF($C28<>\"n/a\",'QRY - ExportPupilNumbersbyYearG'!X7,\"n/a\")","v":58},{"$f":"IF($C28<>\"n/a\",'QRY - ExportPupilNumbersbyYearG'!Y7,\"n/a\")","v":0},{"$f":"IF($C28<>\"n/a\",'QRY - ExportPupilNumbersbyYearG'!Z7,\"n/a\")","v":0},{"$f":"IF($C28<>\"n/a\",'QRY - ExportPupilNumbersbyYearG'!AA7,\"n/a\")","v":0},{"$f":"IF($C28<>\"n/a\",'QRY - ExportPupilNumbersbyYearG'!AB7,\"n/a\")","v":0},{"$f":"IF($C28<>\"n/a\",'QRY - ExportPupilNumbersbyYearG'!AC7,\"n/a\")","v":0},{"$f":"IF($C28<>\"n/a\",'QRY - ExportPupilNumbersbyYearG'!AD7,\"n/a\")","v":0},{"$f":"IF($C28<>\"n/a\",'QRY - ExportPupilNumbersbyYearG'!AE7,\"n/a\")","v":0},{"$f":"IF($C28<>\"n/a\",'QRY - ExportPupilNumbersbyYearG'!AF7,\"n/a\")","v":0},{"$f":"IF($C28<>\"n/a\",'QRY - ExportPupilNumbersbyYearG'!AG7,\"n/a\")","v":0},{"$f":"IF($C28<>\"n/a\",'QRY - ExportPupilNumbersbyYearG'!AH7,\"n/a\")","v":0},{"$f":"IF($C28<>\"n/a\",'QRY - ExportPupilNumbersbyYearG'!AI7,\"n/a\")","v":0},{"$f":"IF($C28<>\"n/a\",'QRY - ExportPupilNumbersbyYearG'!AJ7,\"n/a\")","v":0},{"$f":"IF($C28<>\"n/a\",'QRY - ExportPupilNumbersbyYearG'!AK7,\"n/a\")","v":0},175,232,117,115,0,0,0,0]
[null,null,{"$f":"IF('QRY - ExportPupilNumbersbyYearG'!K8 =\"\",\"n/a\",'QRY - ExportPupilNumbersbyYearG'!K8)","v":"Braywick Court School"},{"$f":"IF($C29=\"n/a\",\"\",'QRY - ExportPupilNumbersbyYearG'!E8)","v":"Maidenhead"},{"$f":"IF($C29=\"n/a\",\"\",'QRY - ExportPupilNumbersbyYearG'!F8)","v":"South East Maidenhead"},{"$f":"IF($C29=\"n/a\",\"\",'QRY - ExportPupilNumbersbyYearG'!G8)","v":"Bray"},{"$f":"IF($C29=\"n/a\",\"\",'QRY - ExportPupilNumbersbyYearG'!I8)","v":"Primary"},{"$f":"IF($C29=\"n/a\",\"\",'QRY - ExportPupilNumbersbyYearG'!H8)","v":"Two Tier"},{"$f":"IF($C29=\"n/a\",\"\",'QRY - ExportPupilNumbersbyYearG'!J8)","v":"JMI"},{"$f":"IF($C29=\"n/a\",\"\",'QRY - ExportPupilNumbersbyYearG'!L8)","v":"Free School"},{"$f":"IF('QRY - ExportPupilNumbersbyYearG'!Q8=\"\",\"\",'QRY - ExportPupilNumbersbyYearG'!Q8)","v":""},{"$f":"IF($C29=\"n/a\",\"\",'QRY - ExportPupilNumbersbyYearG'!M8)","v":"None"},{"$f":"IF($C29<>\"n/a\",'QRY - ExportPupilNumbersbyYearG'!R8,\"n/a\")","v":0},{"$f":"IF($C29<>\"n/a\",'QRY - ExportPupilNumbersbyYearG'!S8,\"n/a\")","v":0},{"$f":"IF($C29<>\"n/a\",'QRY - ExportPupilNumbersbyYearG'!T8,\"n/a\")","v":0},{"$f":"IF($C29<>\"n/a\",'QRY - ExportPupilNumbersbyYearG'!U8,\"n/a\")","v":35},{"$f":"IF($C29<>\"n/a\",'QRY - ExportPupilNumbersbyYearG'!V8,\"n/a\")","v":30},{"$f":"IF($C29<>\"n/a\",'QRY - ExportPupilNumbersbyYearG'!W8,\"n/a\")","v":30},{"$f":"IF($C29<>\"n/a\",'QRY - ExportPupilNumbersbyYearG'!X8,\"n/a\")","v":30},{"$f":"IF($C29<>\"n/a\",'QRY - ExportPupilNumbersbyYearG'!Y8,\"n/a\")","v":30},{"$f":"IF($C29<>\"n/a\",'QRY - ExportPupilNumbersbyYearG'!Z8,\"n/a\")","v":31},{"$f":"IF($C29<>\"n/a\",'QRY - ExportPupilNumbersbyYearG'!AA8,\"n/a\")","v":30},{"$f":"IF($C29<>\"n/a\",'QRY - ExportPupilNumbersbyYearG'!AB8,\"n/a\")","v":30},{"$f":"IF($C29<>\"n/a\",'QRY - ExportPupilNumbersbyYearG'!AC8,\"n/a\")","v":0},{"$f":"IF($C29<>\"n/a\",'QRY - ExportPupilNumbersbyYearG'!AD8,\"n/a\")","v":0},{"$f":"IF($C29<>\"n/a\",'QRY - ExportPupilNumbersbyYearG'!AE8,\"n/a\")","v":0},{"$f":"IF($C29<>\"n/a\",'QRY - ExportPupilNumbersbyYearG'!AF8,\"n/a\")","v":0},{"$f":"IF($C29<>\"n/a\",'QRY - ExportPupilNumbersbyYearG'!AG8,\"n/a\")","v":0},{"$f":"IF($C29<>\"n/a\",'QRY - ExportPupilNumbersbyYearG'!AH8,\"n/a\")","v":0},{"$f":"IF($C29<>\"n/a\",'QRY - ExportPupilNumbersbyYearG'!AI8,\"n/a\")","v":0},{"$f":"IF($C29<>\"n/a\",'QRY - ExportPupilNumbersbyYearG'!AJ8,\"n/a\")","v":0},{"$f":"IF($C29<>\"n/a\",'QRY - ExportPupilNumbersbyYearG'!AK8,\"n/a\")","v":0},211,246,65,60,121,0,0,0]
[null,null,{"$f":"IF('QRY - ExportPupilNumbersbyYearG'!K9 =\"\",\"n/a\",'QRY - ExportPupilNumbersbyYearG'!K9)","v":"Braywood C of E First School"},{"$f":"IF($C30=\"n/a\",\"\",'QRY - ExportPupilNumbersbyYearG'!E9)","v":"Windsor"},{"$f":"IF($C30=\"n/a\",\"\",'QRY - ExportPupilNumbersbyYearG'!F9)","v":"Windsor Villages"},{"$f":"IF($C30=\"n/a\",\"\",'QRY - ExportPupilNumbersbyYearG'!G9)","v":"Fifield"},{"$f":"IF($C30=\"n/a\",\"\",'QRY - ExportPupilNumbersbyYearG'!I9)","v":"Primary"},{"$f":"IF($C30=\"n/a\",\"\",'QRY - ExportPupilNumbersbyYearG'!H9)","v":"Three Tier"},{"$f":"IF($C30=\"n/a\",\"\",'QRY - ExportPupilNumbersbyYearG'!J9)","v":"First"},{"$f":"IF($C30=\"n/a\",\"\",'QRY - ExportPupilNumbersbyYearG'!L9)","v":"Voluntary Controlled"},{"$f":"IF('QRY - ExportPupilNumbersbyYearG'!Q9=\"\",\"\",'QRY - ExportPupilNumbersbyYearG'!Q9)","v":""},{"$f":"IF($C30=\"n/a\",\"\",'QRY - ExportPupilNumbersbyYearG'!M9)","v":"Church of England"},{"$f":"IF($C30<>\"n/a\",'QRY - ExportPupilNumbersbyYearG'!R9,\"n/a\")","v":0},{"$f":"IF($C30<>\"n/a\",'QRY - ExportPupilNumbersbyYearG'!S9,\"n/a\")","v":0},{"$f":"IF($C30<>\"n/a\",'QRY - ExportPupilNumbersbyYearG'!T9,\"n/a\")","v":0},{"$f":"IF($C30<>\"n/a\",'QRY - ExportPupilNumbersbyYearG'!U9,\"n/a\")","v":0},{"$f":"IF($C30<>\"n/a\",'QRY - ExportPupilNumbersbyYearG'!V9,\"n/a\")","v":29},{"$f":"IF($C30<>\"n/a\",'QRY - ExportPupilNumbersbyYearG'!W9,\"n/a\")","v":30},{"$f":"IF($C30<>\"n/a\",'QRY - ExportPupilNumbersbyYearG'!X9,\"n/a\")","v":26},{"$f":"IF($C30<>\"n/a\",'QRY - ExportPupilNumbersbyYearG'!Y9,\"n/a\")","v":21},{"$f":"IF($C30<>\"n/a\",'QRY - ExportPupilNumbersbyYearG'!Z9,\"n/a\")","v":22},{"$f":"IF($C30<>\"n/a\",'QRY - ExportPupilNumbersbyYearG'!AA9,\"n/a\")","v":0},{"$f":"IF($C30<>\"n/a\",'QRY - ExportPupilNumbersbyYearG'!AB9,\"n/a\")","v":0},{"$f":"IF($C30<>\"n/a\",'QRY - ExportPupilNumbersbyYearG'!AC9,\"n/a\")","v":0},{"$f":"IF($C30<>\"n/a\",'QRY - ExportPupilNumbersbyYearG'!AD9,\"n/a\")","v":0},{"$f":"IF($C30<>\"n/a\",'QRY - ExportPupilNumbersbyYearG'!AE9,\"n/a\")","v":0},{"$f":"IF($C30<>\"n/a\",'QRY - ExportPupilNumbersbyYearG'!AF9,\"n/a\")","v":0},{"$f":"IF($C30<>\"n/a\",'QRY - ExportPupilNumbersbyYearG'!AG9,\"n/a\")","v":0},{"$f":"IF($C30<>\"n/a\",'QRY - ExportPupilNumbersbyYearG'!AH9,\"n/a\")","v":0},{"$f":"IF($C30<>\"n/a\",'QRY - ExportPupilNumbersbyYearG'!AI9,\"n/a\")","v":0},{"$f":"IF($C30<>\"n/a\",'QRY - ExportPupilNumbersbyYearG'!AJ9,\"n/a\")","v":0},{"$f":"IF($C30<>\"n/a\",'QRY - ExportPupilNumbersbyYearG'!AK9,\"n/a\")","v":0},128,128,29,56,43,0,0,0]
[null,null,{"$f":"IF('QRY - ExportPupilNumbersbyYearG'!K10 =\"\",\"n/a\",'QRY - ExportPupilNumbersbyYearG'!K10)","v":"Burchetts Green CE Infant School"},{"$f":"IF($C31=\"n/a\",\"\",'QRY - ExportPupilNumbersbyYearG'!E10)","v":"Maidenhead"},{"$f":"IF($C31=\"n/a\",\"\",'QRY - ExportPupilNumbersbyYearG'!F10)","v":"Maidenhead Villages"},{"$f":"IF($C31=\"n/a\",\"\",'QRY - ExportPupilNumbersbyYearG'!G10)","v":"Burchett's Green"},{"$f":"IF($C31=\"n/a\",\"\",'QRY - ExportPupilNumbersbyYearG'!I10)","v":"Primary"},{"$f":"IF($C31=\"n/a\",\"\",'QRY - ExportPupilNumbersbyYearG'!H10)","v":"Two Tier"},{"$f":"IF($C31=\"n/a\",\"\",'QRY - ExportPupilNumbersbyYearG'!J10)","v":"Infants"},{"$f":"IF($C31=\"n/a\",\"\",'QRY - ExportPupilNumbersbyYearG'!L10)","v":"Academy"},{"$f":"IF('QRY - ExportPupilNumbersbyYearG'!Q10=\"\",\"\",'QRY - ExportPupilNumbersbyYearG'!Q10)","v":"2014-12-01"},{"$f":"IF($C31=\"n/a\",\"\",'QRY - ExportPupilNumbersbyYearG'!M10)","v":"Church of England"},{"$f":"IF($C31<>\"n/a\",'QRY - ExportPupilNumbersbyYearG'!R10,\"n/a\")","v":0},{"$f":"IF($C31<>\"n/a\",'QRY - ExportPupilNumbersbyYearG'!S10,\"n/a\")","v":0},{"$f":"IF($C31<>\"n/a\",'QRY - ExportPupilNumbersbyYearG'!T10,\"n/a\")","v":0},{"$f":"IF($C31<>\"n/a\",'QRY - ExportPupilNumbersbyYearG'!U10,\"n/a\")","v":0},{"$f":"IF($C31<>\"n/a\",'QRY - ExportPupilNumbersbyYearG'!V10,\"n/a\")","v":22},{"$f":"IF($C31<>\"n/a\",'QRY - ExportPupilNumbersbyYearG'!W10,\"n/a\")","v":24},{"$f":"IF($C31<>\"n/a\",'QRY - ExportPupilNumbersbyYearG'!X10,\"n/a\")","v":24},{"$f":"IF($C31<>\"n/a\",'QRY - ExportPupilNumbersbyYearG'!Y10,\"n/a\")","v":0},{"$f":"IF($C31<>\"n/a\",'QRY - ExportPupilNumbersbyYearG'!Z10,\"n/a\")","v":0},{"$f":"IF($C31<>\"n/a\",'QRY - ExportPupilNumbersbyYearG'!AA10,\"n/a\")","v":0},{"$f":"IF($C31<>\"n/a\",'QRY - ExportPupilNumbersbyYearG'!AB10,\"n/a\")","v":0},{"$f":"IF($C31<>\"n/a\",'QRY - ExportPupilNumbersbyYearG'!AC10,\"n/a\")","v":0},{"$f":"IF($C31<>\"n/a\",'QRY - ExportPupilNumbersbyYearG'!AD10,\"n/a\")","v":0},{"$f":"IF($C31<>\"n/a\",'QRY - ExportPupilNumbersbyYearG'!AE10,\"n/a\")","v":0},{"$f":"IF($C31<>\"n/a\",'QRY - ExportPupilNumbersbyYearG'!AF10,\"n/a\")","v":0},{"$f":"IF($C31<>\"n/a\",'QRY - ExportPupilNumbersbyYearG'!AG10,\"n/a\")","v":0},{"$f":"IF($C31<>\"n/a\",'QRY - ExportPupilNumbersbyYearG'!AH10,\"n/a\")","v":0},{"$f":"IF($C31<>\"n/a\",'QRY - ExportPupilNumbersbyYearG'!AI10,\"n/a\")","v":0},{"$f":"IF($C31<>\"n/a\",'QRY - ExportPupilNumbersbyYearG'!AJ10,\"n/a\")","v":0},{"$f":"IF($C31<>\"n/a\",'QRY - ExportPupilNumbersbyYearG'!AK10,\"n/a\")","v":0},70,70,22,48,0,0,0,0]
[null,null,{"$f":"IF('QRY - ExportPupilNumbersbyYearG'!K11 =\"\",\"n/a\",'QRY - ExportPupilNumbersbyYearG'!K11)","v":"Charters School"},{"$f":"IF($C32=\"n/a\",\"\",'QRY - ExportPupilNumbersbyYearG'!E11)","v":"Ascot"},{"$f":"IF($C32=\"n/a\",\"\",'QRY - ExportPupilNumbersbyYearG'!F11)","v":"Ascot"},{"$f":"IF($C32=\"n/a\",\"\",'QRY - ExportPupilNumbersbyYearG'!G11)","v":"South Sunningdale"},{"$f":"IF($C32=\"n/a\",\"\",'QRY - ExportPupilNumbersbyYearG'!I11)","v":"Secondary"},{"$f":"IF($C32=\"n/a\",\"\",'QRY - ExportPupilNumbersbyYearG'!H11)","v":"Two Tier"},{"$f":"IF($C32=\"n/a\",\"\",'QRY - ExportPupilNumbersbyYearG'!J11)","v":"Secondary"},{"$f":"IF($C32=\"n/a\",\"\",'QRY - ExportPupilNumbersbyYearG'!L11)","v":"Academy"},{"$f":"IF('QRY - ExportPupilNumbersbyYearG'!Q11=\"\",\"\",'QRY - ExportPupilNumbersbyYearG'!Q11)","v":"2012-10-01"},{"$f":"IF($C32=\"n/a\",\"\",'QRY - ExportPupilNumbersbyYearG'!M11)","v":"None"},{"$f":"IF($C32<>\"n/a\",'QRY - ExportPupilNumbersbyYearG'!R11,\"n/a\")","v":0},{"$f":"IF($C32<>\"n/a\",'QRY - ExportPupilNumbersbyYearG'!S11,\"n/a\")","v":0},{"$f":"IF($C32<>\"n/a\",'QRY - ExportPupilNumbersbyYearG'!T11,\"n/a\")","v":0},{"$f":"IF($C32<>\"n/a\",'QRY - ExportPupilNumbersbyYearG'!U11,\"n/a\")","v":0},{"$f":"IF($C32<>\"n/a\",'QRY - ExportPupilNumbersbyYearG'!V11,\"n/a\")","v":0},{"$f":"IF($C32<>\"n/a\",'QRY - ExportPupilNumbersbyYearG'!W11,\"n/a\")","v":0},{"$f":"IF($C32<>\"n/a\",'QRY - ExportPupilNumbersbyYearG'!X11,\"n/a\")","v":0},{"$f":"IF($C32<>\"n/a\",'QRY - ExportPupilNumbersbyYearG'!Y11,\"n/a\")","v":0},{"$f":"IF($C32<>\"n/a\",'QRY - ExportPupilNumbersbyYearG'!Z11,\"n/a\")","v":0},{"$f":"IF($C32<>\"n/a\",'QRY - ExportPupilNumbersbyYearG'!AA11,\"n/a\")","v":0},{"$f":"IF($C32<>\"n/a\",'QRY - ExportPupilNumbersbyYearG'!AB11,\"n/a\")","v":0},{"$f":"IF($C32<>\"n/a\",'QRY - ExportPupilNumbersbyYearG'!AC11,\"n/a\")","v":270},{"$f":"IF($C32<>\"n/a\",'QRY - ExportPupilNumbersbyYearG'!AD11,\"n/a\")","v":304},{"$f":"IF($C32<>\"n/a\",'QRY - ExportPupilNumbersbyYearG'!AE11,\"n/a\")","v":270},{"$f":"IF($C32<>\"n/a\",'QRY - ExportPupilNumbersbyYearG'!AF11,\"n/a\")","v":274},{"$f":"IF($C32<>\"n/a\",'QRY - ExportPupilNumbersbyYearG'!AG11,\"n/a\")","v":240},{"$f":"IF($C32<>\"n/a\",'QRY - ExportPupilNumbersbyYearG'!AH11,\"n/a\")","v":197},{"$f":"IF($C32<>\"n/a\",'QRY - ExportPupilNumbersbyYearG'!AI11,\"n/a\")","v":181},{"$f":"IF($C32<>\"n/a\",'QRY - ExportPupilNumbersbyYearG'!AJ11,\"n/a\")","v":0},{"$f":"IF($C32<>\"n/a\",'QRY - ExportPupilNumbersbyYearG'!AK11,\"n/a\")","v":0},1736,1736,0,0,0,844,514,378]
[null,null,{"$f":"IF('QRY - ExportPupilNumbersbyYearG'!K12 =\"\",\"n/a\",'QRY - ExportPupilNumbersbyYearG'!K12)","v":"Cheapside CE Primary School"},{"$f":"IF($C33=\"n/a\",\"\",'QRY - ExportPupilNumbersbyYearG'!E12)","v":"Ascot"},{"$f":"IF($C33=\"n/a\",\"\",'QRY - ExportPupilNumbersbyYearG'!F12)","v":"Ascot"},{"$f":"IF($C33=\"n/a\",\"\",'QRY - ExportPupilNumbersbyYearG'!G12)","v":"Cheapside"},{"$f":"IF($C33=\"n/a\",\"\",'QRY - ExportPupilNumbersbyYearG'!I12)","v":"Primary"},{"$f":"IF($C33=\"n/a\",\"\",'QRY - ExportPupilNumbersbyYearG'!H12)","v":"Two Tier"},{"$f":"IF($C33=\"n/a\",\"\",'QRY - ExportPupilNumbersbyYearG'!J12)","v":"JMI"},{"$f":"IF($C33=\"n/a\",\"\",'QRY - ExportPupilNumbersbyYearG'!L12)","v":"Voluntary Aided"},{"$f":"IF('QRY - ExportPupilNumbersbyYearG'!Q12=\"\",\"\",'QRY - ExportPupilNumbersbyYearG'!Q12)","v":""},{"$f":"IF($C33=\"n/a\",\"\",'QRY - ExportPupilNumbersbyYearG'!M12)","v":"Church of England"},{"$f":"IF($C33<>\"n/a\",'QRY - ExportPupilNumbersbyYearG'!R12,\"n/a\")","v":0},{"$f":"IF($C33<>\"n/a\",'QRY - ExportPupilNumbersbyYearG'!S12,\"n/a\")","v":0},{"$f":"IF($C33<>\"n/a\",'QRY - ExportPupilNumbersbyYearG'!T12,\"n/a\")","v":0},{"$f":"IF($C33<>\"n/a\",'QRY - ExportPupilNumbersbyYearG'!U12,\"n/a\")","v":0},{"$f":"IF($C33<>\"n/a\",'QRY - ExportPupilNumbersbyYearG'!V12,\"n/a\")","v":29},{"$f":"IF($C33<>\"n/a\",'QRY - ExportPupilNumbersbyYearG'!W12,\"n/a\")","v":30},{"$f":"IF($C33<>\"n/a\",'QRY - ExportPupilNumbersbyYearG'!X12,\"n/a\")","v":29},{"$f":"IF($C33<>\"n/a\",'QRY - ExportPupilNumbersbyYearG'!Y12,\"n/a\")","v":28},{"$f":"IF($C33<>\"n/a\",'QRY - ExportPupilNumbersbyYearG'!Z12,\"n/a\")","v":29},{"$f":"IF($C33<>\"n/a\",'QRY - ExportPupilNumbersbyYearG'!AA12,\"n/a\")","v":30},{"$f":"IF($C33<>\"n/a\",'QRY - ExportPupilNumbersbyYearG'!AB12,\"n/a\")","v":30},{"$f":"IF($C33<>\"n/a\",'QRY - ExportPupilNumbersbyYearG'!AC12,\"n/a\")","v":0},{"$f":"IF($C33<>\"n/a\",'QRY - ExportPupilNumbersbyYearG'!AD12,\"n/a\")","v":0},{"$f":"IF($C33<>\"n/a\",'QRY - ExportPupilNumbersbyYearG'!AE12,\"n/a\")","v":0},{"$f":"IF($C33<>\"n/a\",'QRY - ExportPupilNumbersbyYearG'!AF12,\"n/a\")","v":0},{"$f":"IF($C33<>\"n/a\",'QRY - ExportPupilNumbersbyYearG'!AG12,\"n/a\")","v":0},{"$f":"IF($C33<>\"n/a\",'QRY - ExportPupilNumbersbyYearG'!AH12,\"n/a\")","v":0},{"$f":"IF($C33<>\"n/a\",'QRY - ExportPupilNumbersbyYearG'!AI12,\"n/a\")","v":0},{"$f":"IF($C33<>\"n/a\",'QRY - ExportPupilNumbersbyYearG'!AJ12,\"n/a\")","v":0},{"$f":"IF($C33<>\"n/a\",'QRY - ExportPupilNumbersbyYearG'!AK12,\"n/a\")","v":0},205,205,29,59,117,0,0,0]
[null,null,{"$f":"IF('QRY - ExportPupilNumbersbyYearG'!K13 =\"\",\"n/a\",'QRY - ExportPupilNumbersbyYearG'!K13)","v":"Churchmead Church of England School"},{"$f":"IF($C34=\"n/a\",\"\",'QRY - ExportPupilNumbersbyYearG'!E13)","v":"Datchet & Wraysbury"},{"$f":"IF($C34=\"n/a\",\"\",'QRY - ExportPupilNumbersbyYearG'!F13)","v":"Datchet and Wraysbury"},{"$f":"IF($C34=\"n/a\",\"\",'QRY - ExportPupilNumbersbyYearG'!G13)","v":"Datchet East"},{"$f":"IF($C34=\"n/a\",\"\",'QRY - ExportPupilNumbersbyYearG'!I13)","v":"Secondary"},{"$f":"IF($C34=\"n/a\",\"\",'QRY - ExportPupilNumbersbyYearG'!H13)","v":"Two Tier"},{"$f":"IF($C34=\"n/a\",\"\",'QRY - ExportPupilNumbersbyYearG'!J13)","v":"Secondary"},{"$f":"IF($C34=\"n/a\",\"\",'QRY - ExportPupilNumbersbyYearG'!L13)","v":"Voluntary Aided"},{"$f":"IF('QRY - ExportPupilNumbersbyYearG'!Q13=\"\",\"\",'QRY - ExportPupilNumbersbyYearG'!Q13)","v":""},{"$f":"IF($C34=\"n/a\",\"\",'QRY - ExportPupilNumbersbyYearG'!M13)","v":"Church of England"},{"$f":"IF($C34<>\"n/a\",'QRY - ExportPupilNumbersbyYearG'!R13,\"n/a\")","v":0},{"$f":"IF($C34<>\"n/a\",'QRY - ExportPupilNumbersbyYearG'!S13,\"n/a\")","v":0},{"$f":"IF($C34<>\"n/a\",'QRY - ExportPupilNumbersbyYearG'!T13,\"n/a\")","v":0},{"$f":"IF($C34<>\"n/a\",'QRY - ExportPupilNumbersbyYearG'!U13,\"n/a\")","v":0},{"$f":"IF($C34<>\"n/a\",'QRY - ExportPupilNumbersbyYearG'!V13,\"n/a\")","v":0},{"$f":"IF($C34<>\"n/a\",'QRY - ExportPupilNumbersbyYearG'!W13,\"n/a\")","v":0},{"$f":"IF($C34<>\"n/a\",'QRY - ExportPupilNumbersbyYearG'!X13,\"n/a\")","v":0},{"$f":"IF($C34<>\"n/a\",'QRY - ExportPupilNumbersbyYearG'!Y13,\"n/a\")","v":0},{"$f":"IF($C34<>\"n/a\",'QRY - ExportPupilNumbersbyYearG'!Z13,\"n/a\")","v":0},{"$f":"IF($C34<>\"n/a\",'QRY - ExportPupilNumbersbyYearG'!AA13,\"n/a\")","v":0},{"$f":"IF($C34<>\"n/a\",'QRY - ExportPupilNumbersbyYearG'!AB13,\"n/a\")","v":0},{"$f":"IF($C34<>\"n/a\",'QRY - ExportPupilNumbersbyYearG'!AC13,\"n/a\")","v":119},{"$f":"IF($C34<>\"n/a\",'QRY - ExportPupilNumbersbyYearG'!AD13,\"n/a\")","v":90},{"$f":"IF($C34<>\"n/a\",'QRY - ExportPupilNumbersbyYearG'!AE13,\"n/a\")","v":97},{"$f":"IF($C34<>\"n/a\",'QRY - ExportPupilNumbersbyYearG'!AF13,\"n/a\")","v":57},{"$f":"IF($C34<>\"n/a\",'QRY - ExportPupilNumbersbyYearG'!AG13,\"n/a\")","v":53},{"$f":"IF($C34<>\"n/a\",'QRY - ExportPupilNumbersbyYearG'!AH13,\"n/a\")","v":0},{"$f":"IF($C34<>\"n/a\",'QRY - ExportPupilNumbersbyYearG'!AI13,\"n/a\")","v":0},{"$f":"IF($C34<>\"n/a\",'QRY - ExportPupilNumbersbyYearG'!AJ13,\"n/a\")","v":0},{"$f":"IF($C34<>\"n/a\",'QRY - ExportPupilNumbersbyYearG'!AK13,\"n/a\")","v":0},416,416,0,0,0,306,110,0]
[null,null,{"$f":"IF('QRY - ExportPupilNumbersbyYearG'!K14 =\"\",\"n/a\",'QRY - ExportPupilNumbersbyYearG'!K14)","v":"Clewer Green CE School"},{"$f":"IF($C35=\"n/a\",\"\",'QRY - ExportPupilNumbersbyYearG'!E14)","v":"Windsor"},{"$f":"IF($C35=\"n/a\",\"\",'QRY - ExportPupilNumbersbyYearG'!F14)","v":"Windsor South"},{"$f":"IF($C35=\"n/a\",\"\",'QRY - ExportPupilNumbersbyYearG'!G14)","v":"New Town"},{"$f":"IF($C35=\"n/a\",\"\",'QRY - ExportPupilNumbersbyYearG'!I14)","v":"Primary"},{"$f":"IF($C35=\"n/a\",\"\",'QRY - ExportPupilNumbersbyYearG'!H14)","v":"Three Tier"},{"$f":"IF($C35=\"n/a\",\"\",'QRY - ExportPupilNumbersbyYearG'!J14)","v":"First"},{"$f":"IF($C35=\"n/a\",\"\",'QRY - ExportPupilNumbersbyYearG'!L14)","v":"Academy"},{"$f":"IF('QRY - ExportPupilNumbersbyYearG'!Q14=\"\",\"\",'QRY - ExportPupilNumbersbyYearG'!Q14)","v":"2020-04-01"},{"$f":"IF($C35=\"n/a\",\"\",'QRY - ExportPupilNumbersbyYearG'!M14)","v":"Church of England"},{"$f":"IF($C35<>\"n/a\",'QRY - ExportPupilNumbersbyYearG'!R14,\"n/a\")","v":0},{"$f":"IF($C35<>\"n/a\",'QRY - ExportPupilNumbersbyYearG'!S14,\"n/a\")","v":0},{"$f":"IF($C35<>\"n/a\",'QRY - ExportPupilNumbersbyYearG'!T14,\"n/a\")","v":0},{"$f":"IF($C35<>\"n/a\",'QRY - ExportPupilNumbersbyYearG'!U14,\"n/a\")","v":0},{"$f":"IF($C35<>\"n/a\",'QRY - ExportPupilNumbersbyYearG'!V14,\"n/a\")","v":59},{"$f":"IF($C35<>\"n/a\",'QRY - ExportPupilNumbersbyYearG'!W14,\"n/a\")","v":53},{"$f":"IF($C35<>\"n/a\",'QRY - ExportPupilNumbersbyYearG'!X14,\"n/a\")","v":47},{"$f":"IF($C35<>\"n/a\",'QRY - ExportPupilNumbersbyYearG'!Y14,\"n/a\")","v":60},{"$f":"IF($C35<>\"n/a\",'QRY - ExportPupilNumbersbyYearG'!Z14,\"n/a\")","v":55},{"$f":"IF($C35<>\"n/a\",'QRY - ExportPupilNumbersbyYearG'!AA14,\"n/a\")","v":0},{"$f":"IF($C35<>\"n/a\",'QRY - ExportPupilNumbersbyYearG'!AB14,\"n/a\")","v":0},{"$f":"IF($C35<>\"n/a\",'QRY - ExportPupilNumbersbyYearG'!AC14,\"n/a\")","v":0},{"$f":"IF($C35<>\"n/a\",'QRY - ExportPupilNumbersbyYearG'!AD14,\"n/a\")","v":0},{"$f":"IF($C35<>\"n/a\",'QRY - ExportPupilNumbersbyYearG'!AE14,\"n/a\")","v":0},{"$f":"IF($C35<>\"n/a\",'QRY - ExportPupilNumbersbyYearG'!AF14,\"n/a\")","v":0},{"$f":"IF($C35<>\"n/a\",'QRY - ExportPupilNumbersbyYearG'!AG14,\"n/a\")","v":0},{"$f":"IF($C35<>\"n/a\",'QRY - ExportPupilNumbersbyYearG'!AH14,\"n/a\")","v":0},{"$f":"IF($C35<>\"n/a\",'QRY - ExportPupilNumbersbyYearG'!AI14,\"n/a\")","v":0},{"$f":"IF($C35<>\"n/a\",'QRY - ExportPupilNumbersbyYearG'!AJ14,\"n/a\")","v":0},{"$f":"IF($C35<>\"n/a\",'QRY - ExportPupilNumbersbyYearG'!AK14,\"n/a\")","v":0},274,274,59,100,115,0,0,0]
[null,null,{"$f":"IF('QRY - ExportPupilNumbersbyYearG'!K15 =\"\",\"n/a\",'QRY - ExportPupilNumbersbyYearG'!K15)","v":"Cookham Dean CE Primary School"},{"$f":"IF($C36=\"n/a\",\"\",'QRY - ExportPupilNumbersbyYearG'!E15)","v":"Maidenhead"},{"$f":"IF($C36=\"n/a\",\"\",'QRY - ExportPupilNumbersbyYearG'!F15)","v":"Bisham and Cookham"},{"$f":"IF($C36=\"n/a\",\"\",'QRY - ExportPupilNumbersbyYearG'!G15)","v":"Cookham Dean South"},{"$f":"IF($C36=\"n/a\",\"\",'QRY - ExportPupilNumbersbyYearG'!I15)","v":"Primary"},{"$f":"IF($C36=\"n/a\",\"\",'QRY - ExportPupilNumbersbyYearG'!H15)","v":"Two Tier"},{"$f":"IF($C36=\"n/a\",\"\",'QRY - ExportPupilNumbersbyYearG'!J15)","v":"JMI"},{"$f":"IF($C36=\"n/a\",\"\",'QRY - ExportPupilNumbersbyYearG'!L15)","v":"Voluntary Aided"},{"$f":"IF('QRY - ExportPupilNumbersbyYearG'!Q15=\"\",\"\",'QRY - ExportPupilNumbersbyYearG'!Q15)","v":""},{"$f":"IF($C36=\"n/a\",\"\",'QRY - ExportPupilNumbersbyYearG'!M15)","v":"Church of England"},{"$f":"IF($C36<>\"n/a\",'QRY - ExportPupilNumbersbyYearG'!R15,\"n/a\")","v":0},{"$f":"IF($C36<>\"n/a\",'QRY - ExportPupilNumbersbyYearG'!S15,\"n/a\")","v":0},{"$f":"IF($C36<>\"n/a\",'QRY - ExportPupilNumbersbyYearG'!T15,\"n/a\")","v":0},{"$f":"IF($C36<>\"n/a\",'QRY - ExportPupilNumbersbyYearG'!U15,\"n/a\")","v":0},{"$f":"IF($C36<>\"n/a\",'QRY - ExportPupilNumbersbyYearG'!V15,\"n/a\")","v":27},{"$f":"IF($C36<>\"n/a\",'QRY - ExportPupilNumbersbyYearG'!W15,\"n/a\")","v":27},{"$f":"IF($C36<>\"n/a\",'QRY - ExportPupilNumbersbyYearG'!X15,\"n/a\")","v":28},{"$f":"IF($C36<>\"n/a\",'QRY - ExportPupilNumbersbyYearG'!Y15,\"n/a\")","v":27},{"$f":"IF($C36<>\"n/a\",'QRY - ExportPupilNumbersbyYearG'!Z15,\"n/a\")","v":25},{"$f":"IF($C36<>\"n/a\",'QRY - ExportPupilNumbersbyYearG'!AA15,\"n/a\")","v":28},{"$f":"IF($C36<>\"n/a\",'QRY - ExportPupilNumbersbyYearG'!AB15,\"n/a\")","v":27},{"$f":"IF($C36<>\"n/a\",'QRY - ExportPupilNumbersbyYearG'!AC15,\"n/a\")","v":0},{"$f":"IF($C36<>\"n/a\",'QRY - ExportPupilNumbersbyYearG'!AD15,\"n/a\")","v":0},{"$f":"IF($C36<>\"n/a\",'QRY - ExportPupilNumbersbyYearG'!AE15,\"n/a\")","v":0},{"$f":"IF($C36<>\"n/a\",'QRY - ExportPupilNumbersbyYearG'!AF15,\"n/a\")","v":0},{"$f":"IF($C36<>\"n/a\",'QRY - ExportPupilNumbersbyYearG'!AG15,\"n/a\")","v":0},{"$f":"IF($C36<>\"n/a\",'QRY - ExportPupilNumbersbyYearG'!AH15,\"n/a\")","v":0},{"$f":"IF($C36<>\"n/a\",'QRY - ExportPupilNumbersbyYearG'!AI15,\"n/a\")","v":0},{"$f":"IF($C36<>\"n/a\",'QRY - ExportPupilNumbersbyYearG'!AJ15,\"n/a\")","v":0},{"$f":"IF($C36<>\"n/a\",'QRY - ExportPupilNumbersbyYearG'!AK15,\"n/a\")","v":0},189,189,27,55,107,0,0,0]
[null,null,{"$f":"IF('QRY - ExportPupilNumbersbyYearG'!K16 =\"\",\"n/a\",'QRY - ExportPupilNumbersbyYearG'!K16)","v":"Cookham Nursery School"},{"$f":"IF($C37=\"n/a\",\"\",'QRY - ExportPupilNumbersbyYearG'!E16)","v":"Maidenhead"},{"$f":"IF($C37=\"n/a\",\"\",'QRY - ExportPupilNumbersbyYearG'!F16)","v":"Bisham and Cookham"},{"$f":"IF($C37=\"n/a\",\"\",'QRY - ExportPupilNumbersbyYearG'!G16)","v":"Cookham"},{"$f":"IF($C37=\"n/a\",\"\",'QRY - ExportPupilNumbersbyYearG'!I16)","v":"Early Years"},{"$f":"IF($C37=\"n/a\",\"\",'QRY - ExportPupilNumbersbyYearG'!H16)","v":"NA"},{"$f":"IF($C37=\"n/a\",\"\",'QRY - ExportPupilNumbersbyYearG'!J16)","v":"Nursery School"},{"$f":"IF($C37=\"n/a\",\"\",'QRY - ExportPupilNumbersbyYearG'!L16)","v":"Community"},{"$f":"IF('QRY - ExportPupilNumbersbyYearG'!Q16=\"\",\"\",'QRY - ExportPupilNumbersbyYearG'!Q16)","v":""},{"$f":"IF($C37=\"n/a\",\"\",'QRY - ExportPupilNumbersbyYearG'!M16)","v":"None"},{"$f":"IF($C37<>\"n/a\",'QRY - ExportPupilNumbersbyYearG'!R16,\"n/a\")","v":0},{"$f":"IF($C37<>\"n/a\",'QRY - ExportPupilNumbersbyYearG'!S16,\"n/a\")","v":0},{"$f":"IF($C37<>\"n/a\",'QRY - ExportPupilNumbersbyYearG'!T16,\"n/a\")","v":14},{"$f":"IF($C37<>\"n/a\",'QRY - ExportPupilNumbersbyYearG'!U16,\"n/a\")","v":58},{"$f":"IF($C37<>\"n/a\",'QRY - ExportPupilNumbersbyYearG'!V16,\"n/a\")","v":0},{"$f":"IF($C37<>\"n/a\",'QRY - ExportPupilNumbersbyYearG'!W16,\"n/a\")","v":0},{"$f":"IF($C37<>\"n/a\",'QRY - ExportPupilNumbersbyYearG'!X16,\"n/a\")","v":0},{"$f":"IF($C37<>\"n/a\",'QRY - ExportPupilNumbersbyYearG'!Y16,\"n/a\")","v":0},{"$f":"IF($C37<>\"n/a\",'QRY - ExportPupilNumbersbyYearG'!Z16,\"n/a\")","v":0},{"$f":"IF($C37<>\"n/a\",'QRY - ExportPupilNumbersbyYearG'!AA16,\"n/a\")","v":0},{"$f":"IF($C37<>\"n/a\",'QRY - ExportPupilNumbersbyYearG'!AB16,\"n/a\")","v":0},{"$f":"IF($C37<>\"n/a\",'QRY - ExportPupilNumbersbyYearG'!AC16,\"n/a\")","v":0},{"$f":"IF($C37<>\"n/a\",'QRY - ExportPupilNumbersbyYearG'!AD16,\"n/a\")","v":0},{"$f":"IF($C37<>\"n/a\",'QRY - ExportPupilNumbersbyYearG'!AE16,\"n/a\")","v":0},{"$f":"IF($C37<>\"n/a\",'QRY - ExportPupilNumbersbyYearG'!AF16,\"n/a\")","v":0},{"$f":"IF($C37<>\"n/a\",'QRY - ExportPupilNumbersbyYearG'!AG16,\"n/a\")","v":0},{"$f":"IF($C37<>\"n/a\",'QRY - ExportPupilNumbersbyYearG'!AH16,\"n/a\")","v":0},{"$f":"IF($C37<>\"n/a\",'QRY - ExportPupilNumbersbyYearG'!AI16,\"n/a\")","v":0},{"$f":"IF($C37<>\"n/a\",'QRY - ExportPupilNumbersbyYearG'!AJ16,\"n/a\")","v":0},{"$f":"IF($C37<>\"n/a\",'QRY - ExportPupilNumbersbyYearG'!AK16,\"n/a\")","v":0},0,72,72,0,0,0,0,0]
[null,null,{"$f":"IF('QRY - ExportPupilNumbersbyYearG'!K17 =\"\",\"n/a\",'QRY - ExportPupilNumbersbyYearG'!K17)","v":"Cookham Rise Primary School"},{"$f":"IF($C38=\"n/a\",\"\",'QRY - ExportPupilNumbersbyYearG'!E17)","v":"Maidenhead"},{"$f":"IF($C38=\"n/a\",\"\",'QRY - ExportPupilNumbersbyYearG'!F17)","v":"Bisham and Cookham"},{"$f":"IF($C38=\"n/a\",\"\",'QRY - ExportPupilNumbersbyYearG'!G17)","v":"Cookham Rise"},{"$f":"IF($C38=\"n/a\",\"\",'QRY - ExportPupilNumbersbyYearG'!I17)","v":"Primary"},{"$f":"IF($C38=\"n/a\",\"\",'QRY - ExportPupilNumbersbyYearG'!H17)","v":"Two Tier"},{"$f":"IF($C38=\"n/a\",\"\",'QRY - ExportPupilNumbersbyYearG'!J17)","v":"JMI"},{"$f":"IF($C38=\"n/a\",\"\",'QRY - ExportPupilNumbersbyYearG'!L17)","v":"Community"},{"$f":"IF('QRY - ExportPupilNumbersbyYearG'!Q17=\"\",\"\",'QRY - ExportPupilNumbersbyYearG'!Q17)","v":""},{"$f":"IF($C38=\"n/a\",\"\",'QRY - ExportPupilNumbersbyYearG'!M17)","v":"None"},{"$f":"IF($C38<>\"n/a\",'QRY - ExportPupilNumbersbyYearG'!R17,\"n/a\")","v":0},{"$f":"IF($C38<>\"n/a\",'QRY - ExportPupilNumbersbyYearG'!S17,\"n/a\")","v":0},{"$f":"IF($C38<>\"n/a\",'QRY - ExportPupilNumbersbyYearG'!T17,\"n/a\")","v":0},{"$f":"IF($C38<>\"n/a\",'QRY - ExportPupilNumbersbyYearG'!U17,\"n/a\")","v":0},{"$f":"IF($C38<>\"n/a\",'QRY - ExportPupilNumbersbyYearG'!V17,\"n/a\")","v":30},{"$f":"IF($C38<>\"n/a\",'QRY - ExportPupilNumbersbyYearG'!W17,\"n/a\")","v":30},{"$f":"IF($C38<>\"n/a\",'QRY - ExportPupilNumbersbyYearG'!X17,\"n/a\")","v":29},{"$f":"IF($C38<>\"n/a\",'QRY - ExportPupilNumbersbyYearG'!Y17,\"n/a\")","v":30},{"$f":"IF($C38<>\"n/a\",'QRY - ExportPupilNumbersbyYearG'!Z17,\"n/a\")","v":31},{"$f":"IF($C38<>\"n/a\",'QRY - ExportPupilNumbersbyYearG'!AA17,\"n/a\")","v":30},{"$f":"IF($C38<>\"n/a\",'QRY - ExportPupilNumbersbyYearG'!AB17,\"n/a\")","v":29},{"$f":"IF($C38<>\"n/a\",'QRY - ExportPupilNumbersbyYearG'!AC17,\"n/a\")","v":0},{"$f":"IF($C38<>\"n/a\",'QRY - ExportPupilNumbersbyYearG'!AD17,\"n/a\")","v":0},{"$f":"IF($C38<>\"n/a\",'QRY - ExportPupilNumbersbyYearG'!AE17,\"n/a\")","v":0},{"$f":"IF($C38<>\"n/a\",'QRY - ExportPupilNumbersbyYearG'!AF17,\"n/a\")","v":0},{"$f":"IF($C38<>\"n/a\",'QRY - ExportPupilNumbersbyYearG'!AG17,\"n/a\")","v":0},{"$f":"IF($C38<>\"n/a\",'QRY - ExportPupilNumbersbyYearG'!AH17,\"n/a\")","v":0},{"$f":"IF($C38<>\"n/a\",'QRY - ExportPupilNumbersbyYearG'!AI17,\"n/a\")","v":0},{"$f":"IF($C38<>\"n/a\",'QRY - ExportPupilNumbersbyYearG'!AJ17,\"n/a\")","v":0},{"$f":"IF($C38<>\"n/a\",'QRY - ExportPupilNumbersbyYearG'!AK17,\"n/a\")","v":0},209,209,30,59,120,0,0,0]
[null,null,{"$f":"IF('QRY - ExportPupilNumbersbyYearG'!K18 =\"\",\"n/a\",'QRY - ExportPupilNumbersbyYearG'!K18)","v":"Courthouse Junior School"},{"$f":"IF($C39=\"n/a\",\"\",'QRY - ExportPupilNumbersbyYearG'!E18)","v":"Maidenhead"},{"$f":"IF($C39=\"n/a\",\"\",'QRY - ExportPupilNumbersbyYearG'!F18)","v":"North West Maidenhead"},{"$f":"IF($C39=\"n/a\",\"\",'QRY - ExportPupilNumbersbyYearG'!G18)","v":"St Mark's"},{"$f":"IF($C39=\"n/a\",\"\",'QRY - ExportPupilNumbersbyYearG'!I18)","v":"Primary"},{"$f":"IF($C39=\"n/a\",\"\",'QRY - ExportPupilNumbersbyYearG'!H18)","v":"Two Tier"},{"$f":"IF($C39=\"n/a\",\"\",'QRY - ExportPupilNumbersbyYearG'!J18)","v":"Junior"},{"$f":"IF($C39=\"n/a\",\"\",'QRY - ExportPupilNumbersbyYearG'!L18)","v":"Community"},{"$f":"IF('QRY - ExportPupilNumbersbyYearG'!Q18=\"\",\"\",'QRY - ExportPupilNumbersbyYearG'!Q18)","v":""},{"$f":"IF($C39=\"n/a\",\"\",'QRY - ExportPupilNumbersbyYearG'!M18)","v":"None"},{"$f":"IF($C39<>\"n/a\",'QRY - ExportPupilNumbersbyYearG'!R18,\"n/a\")","v":0},{"$f":"IF($C39<>\"n/a\",'QRY - ExportPupilNumbersbyYearG'!S18,\"n/a\")","v":0},{"$f":"IF($C39<>\"n/a\",'QRY - ExportPupilNumbersbyYearG'!T18,\"n/a\")","v":0},{"$f":"IF($C39<>\"n/a\",'QRY - ExportPupilNumbersbyYearG'!U18,\"n/a\")","v":0},{"$f":"IF($C39<>\"n/a\",'QRY - ExportPupilNumbersbyYearG'!V18,\"n/a\")","v":0},{"$f":"IF($C39<>\"n/a\",'QRY - ExportPupilNumbersbyYearG'!W18,\"n/a\")","v":0},{"$f":"IF($C39<>\"n/a\",'QRY - ExportPupilNumbersbyYearG'!X18,\"n/a\")","v":0},{"$f":"IF($C39<>\"n/a\",'QRY - ExportPupilNumbersbyYearG'!Y18,\"n/a\")","v":85},{"$f":"IF($C39<>\"n/a\",'QRY - ExportPupilNumbersbyYearG'!Z18,\"n/a\")","v":103},{"$f":"IF($C39<>\"n/a\",'QRY - ExportPupilNumbersbyYearG'!AA18,\"n/a\")","v":78},{"$f":"IF($C39<>\"n/a\",'QRY - ExportPupilNumbersbyYearG'!AB18,\"n/a\")","v":97},{"$f":"IF($C39<>\"n/a\",'QRY - ExportPupilNumbersbyYearG'!AC18,\"n/a\")","v":0},{"$f":"IF($C39<>\"n/a\",'QRY - ExportPupilNumbersbyYearG'!AD18,\"n/a\")","v":0},{"$f":"IF($C39<>\"n/a\",'QRY - ExportPupilNumbersbyYearG'!AE18,\"n/a\")","v":0},{"$f":"IF($C39<>\"n/a\",'QRY - ExportPupilNumbersbyYearG'!AF18,\"n/a\")","v":0},{"$f":"IF($C39<>\"n/a\",'QRY - ExportPupilNumbersbyYearG'!AG18,\"n/a\")","v":0},{"$f":"IF($C39<>\"n/a\",'QRY - ExportPupilNumbersbyYearG'!AH18,\"n/a\")","v":0},{"$f":"IF($C39<>\"n/a\",'QRY - ExportPupilNumbersbyYearG'!AI18,\"n/a\")","v":0},{"$f":"IF($C39<>\"n/a\",'QRY - ExportPupilNumbersbyYearG'!AJ18,\"n/a\")","v":0},{"$f":"IF($C39<>\"n/a\",'QRY - ExportPupilNumbersbyYearG'!AK18,\"n/a\")","v":0},363,363,0,0,363,0,0,0]
[null,null,{"$f":"IF('QRY - ExportPupilNumbersbyYearG'!K19 =\"\",\"n/a\",'QRY - ExportPupilNumbersbyYearG'!K19)","v":"Cox Green School"},{"$f":"IF($C40=\"n/a\",\"\",'QRY - ExportPupilNumbersbyYearG'!E19)","v":"Maidenhead"},{"$f":"IF($C40=\"n/a\",\"\",'QRY - ExportPupilNumbersbyYearG'!F19)","v":"South West Maidenhead"},{"$f":"IF($C40=\"n/a\",\"\",'QRY - ExportPupilNumbersbyYearG'!G19)","v":"Lowbrook"},{"$f":"IF($C40=\"n/a\",\"\",'QRY - ExportPupilNumbersbyYearG'!I19)","v":"Secondary"},{"$f":"IF($C40=\"n/a\",\"\",'QRY - ExportPupilNumbersbyYearG'!H19)","v":"Two Tier"},{"$f":"IF($C40=\"n/a\",\"\",'QRY - ExportPupilNumbersbyYearG'!J19)","v":"Secondary"},{"$f":"IF($C40=\"n/a\",\"\",'QRY - ExportPupilNumbersbyYearG'!L19)","v":"Academy"},{"$f":"IF('QRY - ExportPupilNumbersbyYearG'!Q19=\"\",\"\",'QRY - ExportPupilNumbersbyYearG'!Q19)","v":"2011-12-01"},{"$f":"IF($C40=\"n/a\",\"\",'QRY - ExportPupilNumbersbyYearG'!M19)","v":"None"},{"$f":"IF($C40<>\"n/a\",'QRY - ExportPupilNumbersbyYearG'!R19,\"n/a\")","v":0},{"$f":"IF($C40<>\"n/a\",'QRY - ExportPupilNumbersbyYearG'!S19,\"n/a\")","v":0},{"$f":"IF($C40<>\"n/a\",'QRY - ExportPupilNumbersbyYearG'!T19,\"n/a\")","v":0},{"$f":"IF($C40<>\"n/a\",'QRY - ExportPupilNumbersbyYearG'!U19,\"n/a\")","v":0},{"$f":"IF($C40<>\"n/a\",'QRY - ExportPupilNumbersbyYearG'!V19,\"n/a\")","v":0},{"$f":"IF($C40<>\"n/a\",'QRY - ExportPupilNumbersbyYearG'!W19,\"n/a\")","v":0},{"$f":"IF($C40<>\"n/a\",'QRY - ExportPupilNumbersbyYearG'!X19,\"n/a\")","v":0},{"$f":"IF($C40<>\"n/a\",'QRY - ExportPupilNumbersbyYearG'!Y19,\"n/a\")","v":0},{"$f":"IF($C40<>\"n/a\",'QRY - ExportPupilNumbersbyYearG'!Z19,\"n/a\")","v":0},{"$f":"IF($C40<>\"n/a\",'QRY - ExportPupilNumbersbyYearG'!AA19,\"n/a\")","v":0},{"$f":"IF($C40<>\"n/a\",'QRY - ExportPupilNumbersbyYearG'!AB19,\"n/a\")","v":0},{"$f":"IF($C40<>\"n/a\",'QRY - ExportPupilNumbersbyYearG'!AC19,\"n/a\")","v":208},{"$f":"IF($C40<>\"n/a\",'QRY - ExportPupilNumbersbyYearG'!AD19,\"n/a\")","v":195},{"$f":"IF($C40<>\"n/a\",'QRY - ExportPupilNumbersbyYearG'!AE19,\"n/a\")","v":204},{"$f":"IF($C40<>\"n/a\",'QRY - ExportPupilNumbersbyYearG'!AF19,\"n/a\")","v":191},{"$f":"IF($C40<>\"n/a\",'QRY - ExportPupilNumbersbyYearG'!AG19,\"n/a\")","v":183},{"$f":"IF($C40<>\"n/a\",'QRY - ExportPupilNumbersbyYearG'!AH19,\"n/a\")","v":72},{"$f":"IF($C40<>\"n/a\",'QRY - ExportPupilNumbersbyYearG'!AI19,\"n/a\")","v":80},{"$f":"IF($C40<>\"n/a\",'QRY - ExportPupilNumbersbyYearG'!AJ19,\"n/a\")","v":0},{"$f":"IF($C40<>\"n/a\",'QRY - ExportPupilNumbersbyYearG'!AK19,\"n/a\")","v":0},1133,1133,0,0,0,607,374,152]
[null,null,{"$f":"IF('QRY - ExportPupilNumbersbyYearG'!K20 =\"\",\"n/a\",'QRY - ExportPupilNumbersbyYearG'!K20)","v":"Datchet St Mary's C of E Primary Academy"},{"$f":"IF($C41=\"n/a\",\"\",'QRY - ExportPupilNumbersbyYearG'!E20)","v":"Datchet & Wraysbury"},{"$f":"IF($C41=\"n/a\",\"\",'QRY - ExportPupilNumbersbyYearG'!F20)","v":"Datchet and Wraysbury"},{"$f":"IF($C41=\"n/a\",\"\",'QRY - ExportPupilNumbersbyYearG'!G20)","v":"Datchet East"},{"$f":"IF($C41=\"n/a\",\"\",'QRY - ExportPupilNumbersbyYearG'!I20)","v":"Primary"},{"$f":"IF($C41=\"n/a\",\"\",'QRY - ExportPupilNumbersbyYearG'!H20)","v":"Two Tier"},{"$f":"IF($C41=\"n/a\",\"\",'QRY - ExportPupilNumbersbyYearG'!J20)","v":"JMI"},{"$f":"IF($C41=\"n/a\",\"\",'QRY - ExportPupilNumbersbyYearG'!L20)","v":"Academy"},{"$f":"IF('QRY - ExportPupilNumbersbyYearG'!Q20=\"\",\"\",'QRY - ExportPupilNumbersbyYearG'!Q20)","v":"2012-01-01"},{"$f":"IF($C41=\"n/a\",\"\",'QRY - ExportPupilNumbersbyYearG'!M20)","v":"Church of England"},{"$f":"IF($C41<>\"n/a\",'QRY - ExportPupilNumbersbyYearG'!R20,\"n/a\")","v":0},{"$f":"IF($C41<>\"n/a\",'QRY - ExportPupilNumbersbyYearG'!S20,\"n/a\")","v":0},{"$f":"IF($C41<>\"n/a\",'QRY - ExportPupilNumbersbyYearG'!T20,\"n/a\")","v":4},{"$f":"IF($C41<>\"n/a\",'QRY - ExportPupilNumbersbyYearG'!U20,\"n/a\")","v":22},{"$f":"IF($C41<>\"n/a\",'QRY - ExportPupilNumbersbyYearG'!V20,\"n/a\")","v":28},{"$f":"IF($C41<>\"n/a\",'QRY - ExportPupilNumbersbyYearG'!W20,\"n/a\")","v":31},{"$f":"IF($C41<>\"n/a\",'QRY - ExportPupilNumbersbyYearG'!X20,\"n/a\")","v":30},{"$f":"IF($C41<>\"n/a\",'QRY - ExportPupilNumbersbyYearG'!Y20,\"n/a\")","v":31},{"$f":"IF($C41<>\"n/a\",'QRY - ExportPupilNumbersbyYearG'!Z20,\"n/a\")","v":28},{"$f":"IF($C41<>\"n/a\",'QRY - ExportPupilNumbersbyYearG'!AA20,\"n/a\")","v":30},{"$f":"IF($C41<>\"n/a\",'QRY - ExportPupilNumbersbyYearG'!AB20,\"n/a\")","v":44},{"$f":"IF($C41<>\"n/a\",'QRY - ExportPupilNumbersbyYearG'!AC20,\"n/a\")","v":0},{"$f":"IF($C41<>\"n/a\",'QRY - ExportPupilNumbersbyYearG'!AD20,\"n/a\")","v":0},{"$f":"IF($C41<>\"n/a\",'QRY - ExportPupilNumbersbyYearG'!AE20,\"n/a\")","v":0},{"$f":"IF($C41<>\"n/a\",'QRY - ExportPupilNumbersbyYearG'!AF20,\"n/a\")","v":0},{"$f":"IF($C41<>\"n/a\",'QRY - ExportPupilNumbersbyYearG'!AG20,\"n/a\")","v":0},{"$f":"IF($C41<>\"n/a\",'QRY - ExportPupilNumbersbyYearG'!AH20,\"n/a\")","v":0},{"$f":"IF($C41<>\"n/a\",'QRY - ExportPupilNumbersbyYearG'!AI20,\"n/a\")","v":0},{"$f":"IF($C41<>\"n/a\",'QRY - ExportPupilNumbersbyYearG'!AJ20,\"n/a\")","v":0},{"$f":"IF($C41<>\"n/a\",'QRY - ExportPupilNumbersbyYearG'!AK20,\"n/a\")","v":0},222,248,54,61,133,0,0,0]
[null,null,{"$f":"IF('QRY - ExportPupilNumbersbyYearG'!K21 =\"\",\"n/a\",'QRY - ExportPupilNumbersbyYearG'!K21)","v":"Dedworth Green First School"},{"$f":"IF($C42=\"n/a\",\"\",'QRY - ExportPupilNumbersbyYearG'!E21)","v":"Windsor"},{"$f":"IF($C42=\"n/a\",\"\",'QRY - ExportPupilNumbersbyYearG'!F21)","v":"Windsor North"},{"$f":"IF($C42=\"n/a\",\"\",'QRY - ExportPupilNumbersbyYearG'!G21)","v":"Dedworth"},{"$f":"IF($C42=\"n/a\",\"\",'QRY - ExportPupilNumbersbyYearG'!I21)","v":"Primary"},{"$f":"IF($C42=\"n/a\",\"\",'QRY - ExportPupilNumbersbyYearG'!H21)","v":"Three Tier"},{"$f":"IF($C42=\"n/a\",\"\",'QRY - ExportPupilNumbersbyYearG'!J21)","v":"First"},{"$f":"IF($C42=\"n/a\",\"\",'QRY - ExportPupilNumbersbyYearG'!L21)","v":"Academy"},{"$f":"IF('QRY - ExportPupilNumbersbyYearG'!Q21=\"\",\"\",'QRY - ExportPupilNumbersbyYearG'!Q21)","v":"2016-05-01"},{"$f":"IF($C42=\"n/a\",\"\",'QRY - ExportPupilNumbersbyYearG'!M21)","v":"None"},{"$f":"IF($C42<>\"n/a\",'QRY - ExportPupilNumbersbyYearG'!R21,\"n/a\")","v":0},{"$f":"IF($C42<>\"n/a\",'QRY - ExportPupilNumbersbyYearG'!S21,\"n/a\")","v":0},{"$f":"IF($C42<>\"n/a\",'QRY - ExportPupilNumbersbyYearG'!T21,\"n/a\")","v":11},{"$f":"IF($C42<>\"n/a\",'QRY - ExportPupilNumbersbyYearG'!U21,\"n/a\")","v":6},{"$f":"IF($C42<>\"n/a\",'QRY - ExportPupilNumbersbyYearG'!V21,\"n/a\")","v":25},{"$f":"IF($C42<>\"n/a\",'QRY - ExportPupilNumbersbyYearG'!W21,\"n/a\")","v":26},{"$f":"IF($C42<>\"n/a\",'QRY - ExportPupilNumbersbyYearG'!X21,\"n/a\")","v":29},{"$f":"IF($C42<>\"n/a\",'QRY - ExportPupilNumbersbyYearG'!Y21,\"n/a\")","v":30},{"$f":"IF($C42<>\"n/a\",'QRY - ExportPupilNumbersbyYearG'!Z21,\"n/a\")","v":29},{"$f":"IF($C42<>\"n/a\",'QRY - ExportPupilNumbersbyYearG'!AA21,\"n/a\")","v":0},{"$f":"IF($C42<>\"n/a\",'QRY - ExportPupilNumbersbyYearG'!AB21,\"n/a\")","v":0},{"$f":"IF($C42<>\"n/a\",'QRY - ExportPupilNumbersbyYearG'!AC21,\"n/a\")","v":0},{"$f":"IF($C42<>\"n/a\",'QRY - ExportPupilNumbersbyYearG'!AD21,\"n/a\")","v":0},{"$f":"IF($C42<>\"n/a\",'QRY - ExportPupilNumbersbyYearG'!AE21,\"n/a\")","v":0},{"$f":"IF($C42<>\"n/a\",'QRY - ExportPupilNumbersbyYearG'!AF21,\"n/a\")","v":0},{"$f":"IF($C42<>\"n/a\",'QRY - ExportPupilNumbersbyYearG'!AG21,\"n/a\")","v":0},{"$f":"IF($C42<>\"n/a\",'QRY - ExportPupilNumbersbyYearG'!AH21,\"n/a\")","v":0},{"$f":"IF($C42<>\"n/a\",'QRY - ExportPupilNumbersbyYearG'!AI21,\"n/a\")","v":0},{"$f":"IF($C42<>\"n/a\",'QRY - ExportPupilNumbersbyYearG'!AJ21,\"n/a\")","v":0},{"$f":"IF($C42<>\"n/a\",'QRY - ExportPupilNumbersbyYearG'!AK21,\"n/a\")","v":0},139,156,42,55,59,0,0,0]
[null,null,{"$f":"IF('QRY - ExportPupilNumbersbyYearG'!K22 =\"\",\"n/a\",'QRY - ExportPupilNumbersbyYearG'!K22)","v":"Dedworth Middle School"},{"$f":"IF($C43=\"n/a\",\"\",'QRY - ExportPupilNumbersbyYearG'!E22)","v":"Windsor"},{"$f":"IF($C43=\"n/a\",\"\",'QRY - ExportPupilNumbersbyYearG'!F22)","v":"Windsor North"},{"$f":"IF($C43=\"n/a\",\"\",'QRY - ExportPupilNumbersbyYearG'!G22)","v":"Dedworth"},{"$f":"IF($C43=\"n/a\",\"\",'QRY - ExportPupilNumbersbyYearG'!I22)","v":"Secondary"},{"$f":"IF($C43=\"n/a\",\"\",'QRY - ExportPupilNumbersbyYearG'!H22)","v":"Three Tier"},{"$f":"IF($C43=\"n/a\",\"\",'QRY - ExportPupilNumbersbyYearG'!J22)","v":"Middle"},{"$f":"IF($C43=\"n/a\",\"\",'QRY - ExportPupilNumbersbyYearG'!L22)","v":"Academy"},{"$f":"IF('QRY - ExportPupilNumbersbyYearG'!Q22=\"\",\"\",'QRY - ExportPupilNumbersbyYearG'!Q22)","v":"2016-05-01"},{"$f":"IF($C43=\"n/a\",\"\",'QRY - ExportPupilNumbersbyYearG'!M22)","v":"None"},{"$f":"IF($C43<>\"n/a\",'QRY - ExportPupilNumbersbyYearG'!R22,\"n/a\")","v":0},{"$f":"IF($C43<>\"n/a\",'QRY - ExportPupilNumbersbyYearG'!S22,\"n/a\")","v":0},{"$f":"IF($C43<>\"n/a\",'QRY - ExportPupilNumbersbyYearG'!T22,\"n/a\")","v":0},{"$f":"IF($C43<>\"n/a\",'QRY - ExportPupilNumbersbyYearG'!U22,\"n/a\")","v":0},{"$f":"IF($C43<>\"n/a\",'QRY - ExportPupilNumbersbyYearG'!V22,\"n/a\")","v":0},{"$f":"IF($C43<>\"n/a\",'QRY - ExportPupilNumbersbyYearG'!W22,\"n/a\")","v":0},{"$f":"IF($C43<>\"n/a\",'QRY - ExportPupilNumbersbyYearG'!X22,\"n/a\")","v":0},{"$f":"IF($C43<>\"n/a\",'QRY - ExportPupilNumbersbyYearG'!Y22,\"n/a\")","v":0},{"$f":"IF($C43<>\"n/a\",'QRY - ExportPupilNumbersbyYearG'!Z22,\"n/a\")","v":0},{"$f":"IF($C43<>\"n/a\",'QRY - ExportPupilNumbersbyYearG'!AA22,\"n/a\")","v":122},{"$f":"IF($C43<>\"n/a\",'QRY - ExportPupilNumbersbyYearG'!AB22,\"n/a\")","v":135},{"$f":"IF($C43<>\"n/a\",'QRY - ExportPupilNumbersbyYearG'!AC22,\"n/a\")","v":112},{"$f":"IF($C43<>\"n/a\",'QRY - ExportPupilNumbersbyYearG'!AD22,\"n/a\")","v":125},{"$f":"IF($C43<>\"n/a\",'QRY - ExportPupilNumbersbyYearG'!AE22,\"n/a\")","v":0},{"$f":"IF($C43<>\"n/a\",'QRY - ExportPupilNumbersbyYearG'!AF22,\"n/a\")","v":0},{"$f":"IF($C43<>\"n/a\",'QRY - ExportPupilNumbersbyYearG'!AG22,\"n/a\")","v":0},{"$f":"IF($C43<>\"n/a\",'QRY - ExportPupilNumbersbyYearG'!AH22,\"n/a\")","v":0},{"$f":"IF($C43<>\"n/a\",'QRY - ExportPupilNumbersbyYearG'!AI22,\"n/a\")","v":0},{"$f":"IF($C43<>\"n/a\",'QRY - ExportPupilNumbersbyYearG'!AJ22,\"n/a\")","v":0},{"$f":"IF($C43<>\"n/a\",'QRY - ExportPupilNumbersbyYearG'!AK22,\"n/a\")","v":0},494,494,0,0,257,237,0,0]
[null,null,{"$f":"IF('QRY - ExportPupilNumbersbyYearG'!K23 =\"\",\"n/a\",'QRY - ExportPupilNumbersbyYearG'!K23)","v":"Desborough College"},{"$f":"IF($C44=\"n/a\",\"\",'QRY - ExportPupilNumbersbyYearG'!E23)","v":"Maidenhead"},{"$f":"IF($C44=\"n/a\",\"\",'QRY - ExportPupilNumbersbyYearG'!F23)","v":"Central Maidenhead"},{"$f":"IF($C44=\"n/a\",\"\",'QRY - ExportPupilNumbersbyYearG'!G23)","v":"Larchfield East"},{"$f":"IF($C44=\"n/a\",\"\",'QRY - ExportPupilNumbersbyYearG'!I23)","v":"Secondary"},{"$f":"IF($C44=\"n/a\",\"\",'QRY - ExportPupilNumbersbyYearG'!H23)","v":"Two Tier"},{"$f":"IF($C44=\"n/a\",\"\",'QRY - ExportPupilNumbersbyYearG'!J23)","v":"Secondary"},{"$f":"IF($C44=\"n/a\",\"\",'QRY - ExportPupilNumbersbyYearG'!L23)","v":"Academy"},{"$f":"IF('QRY - ExportPupilNumbersbyYearG'!Q23=\"\",\"\",'QRY - ExportPupilNumbersbyYearG'!Q23)","v":"2012-10-01"},{"$f":"IF($C44=\"n/a\",\"\",'QRY - ExportPupilNumbersbyYearG'!M23)","v":"None"},{"$f":"IF($C44<>\"n/a\",'QRY - ExportPupilNumbersbyYearG'!R23,\"n/a\")","v":0},{"$f":"IF($C44<>\"n/a\",'QRY - ExportPupilNumbersbyYearG'!S23,\"n/a\")","v":0},{"$f":"IF($C44<>\"n/a\",'QRY - ExportPupilNumbersbyYearG'!T23,\"n/a\")","v":0},{"$f":"IF($C44<>\"n/a\",'QRY - ExportPupilNumbersbyYearG'!U23,\"n/a\")","v":0},{"$f":"IF($C44<>\"n/a\",'QRY - ExportPupilNumbersbyYearG'!V23,\"n/a\")","v":0},{"$f":"IF($C44<>\"n/a\",'QRY - ExportPupilNumbersbyYearG'!W23,\"n/a\")","v":0},{"$f":"IF($C44<>\"n/a\",'QRY - ExportPupilNumbersbyYearG'!X23,\"n/a\")","v":0},{"$f":"IF($C44<>\"n/a\",'QRY - ExportPupilNumbersbyYearG'!Y23,\"n/a\")","v":0},{"$f":"IF($C44<>\"n/a\",'QRY - ExportPupilNumbersbyYearG'!Z23,\"n/a\")","v":0},{"$f":"IF($C44<>\"n/a\",'QRY - ExportPupilNumbersbyYearG'!AA23,\"n/a\")","v":0},{"$f":"IF($C44<>\"n/a\",'QRY - ExportPupilNumbersbyYearG'!AB23,\"n/a\")","v":0},{"$f":"IF($C44<>\"n/a\",'QRY - ExportPupilNumbersbyYearG'!AC23,\"n/a\")","v":140},{"$f":"IF($C44<>\"n/a\",'QRY - ExportPupilNumbersbyYearG'!AD23,\"n/a\")","v":179},{"$f":"IF($C44<>\"n/a\",'QRY - ExportPupilNumbersbyYearG'!AE23,\"n/a\")","v":179},{"$f":"IF($C44<>\"n/a\",'QRY - ExportPupilNumbersbyYearG'!AF23,\"n/a\")","v":182},{"$f":"IF($C44<>\"n/a\",'QRY - ExportPupilNumbersbyYearG'!AG23,\"n/a\")","v":153},{"$f":"IF($C44<>\"n/a\",'QRY - ExportPupilNumbersbyYearG'!AH23,\"n/a\")","v":59},{"$f":"IF($C44<>\"n/a\",'QRY - ExportPupilNumbersbyYearG'!AI23,\"n/a\")","v":36},{"$f":"IF($C44<>\"n/a\",'QRY - ExportPupilNumbersbyYearG'!AJ23,\"n/a\")","v":0},{"$f":"IF($C44<>\"n/a\",'QRY - ExportPupilNumbersbyYearG'!AK23,\"n/a\")","v":0},928,928,0,0,0,498,335,95]
[null,null,{"$f":"IF('QRY - ExportPupilNumbersbyYearG'!K24 =\"\",\"n/a\",'QRY - ExportPupilNumbersbyYearG'!K24)","v":"Eton Porny C of E First School"},{"$f":"IF($C45=\"n/a\",\"\",'QRY - ExportPupilNumbersbyYearG'!E24)","v":"Windsor"},{"$f":"IF($C45=\"n/a\",\"\",'QRY - ExportPupilNumbersbyYearG'!F24)","v":"Eton"},{"$f":"IF($C45=\"n/a\",\"\",'QRY - ExportPupilNumbersbyYearG'!G24)","v":"Eton"},{"$f":"IF($C45=\"n/a\",\"\",'QRY - ExportPupilNumbersbyYearG'!I24)","v":"Primary"},{"$f":"IF($C45=\"n/a\",\"\",'QRY - ExportPupilNumbersbyYearG'!H24)","v":"Three Tier"},{"$f":"IF($C45=\"n/a\",\"\",'QRY - ExportPupilNumbersbyYearG'!J24)","v":"First"},{"$f":"IF($C45=\"n/a\",\"\",'QRY - ExportPupilNumbersbyYearG'!L24)","v":"Academy"},{"$f":"IF('QRY - ExportPupilNumbersbyYearG'!Q24=\"\",\"\",'QRY - ExportPupilNumbersbyYearG'!Q24)","v":"2016-02-01"},{"$f":"IF($C45=\"n/a\",\"\",'QRY - ExportPupilNumbersbyYearG'!M24)","v":"Church of England"},{"$f":"IF($C45<>\"n/a\",'QRY - ExportPupilNumbersbyYearG'!R24,\"n/a\")","v":0},{"$f":"IF($C45<>\"n/a\",'QRY - ExportPupilNumbersbyYearG'!S24,\"n/a\")","v":0},{"$f":"IF($C45<>\"n/a\",'QRY - ExportPupilNumbersbyYearG'!T24,\"n/a\")","v":0},{"$f":"IF($C45<>\"n/a\",'QRY - ExportPupilNumbersbyYearG'!U24,\"n/a\")","v":0},{"$f":"IF($C45<>\"n/a\",'QRY - ExportPupilNumbersbyYearG'!V24,\"n/a\")","v":30},{"$f":"IF($C45<>\"n/a\",'QRY - ExportPupilNumbersbyYearG'!W24,\"n/a\")","v":30},{"$f":"IF($C45<>\"n/a\",'QRY - ExportPupilNumbersbyYearG'!X24,\"n/a\")","v":30},{"$f":"IF($C45<>\"n/a\",'QRY - ExportPupilNumbersbyYearG'!Y24,\"n/a\")","v":24},{"$f":"IF($C45<>\"n/a\",'QRY - ExportPupilNumbersbyYearG'!Z24,\"n/a\")","v":22},{"$f":"IF($C45<>\"n/a\",'QRY - ExportPupilNumbersbyYearG'!AA24,\"n/a\")","v":0},{"$f":"IF($C45<>\"n/a\",'QRY - ExportPupilNumbersbyYearG'!AB24,\"n/a\")","v":0},{"$f":"IF($C45<>\"n/a\",'QRY - ExportPupilNumbersbyYearG'!AC24,\"n/a\")","v":0},{"$f":"IF($C45<>\"n/a\",'QRY - ExportPupilNumbersbyYearG'!AD24,\"n/a\")","v":0},{"$f":"IF($C45<>\"n/a\",'QRY - ExportPupilNumbersbyYearG'!AE24,\"n/a\")","v":0},{"$f":"IF($C45<>\"n/a\",'QRY - ExportPupilNumbersbyYearG'!AF24,\"n/a\")","v":0},{"$f":"IF($C45<>\"n/a\",'QRY - ExportPupilNumbersbyYearG'!AG24,\"n/a\")","v":0},{"$f":"IF($C45<>\"n/a\",'QRY - ExportPupilNumbersbyYearG'!AH24,\"n/a\")","v":0},{"$f":"IF($C45<>\"n/a\",'QRY - ExportPupilNumbersbyYearG'!AI24,\"n/a\")","v":0},{"$f":"IF($C45<>\"n/a\",'QRY - ExportPupilNumbersbyYearG'!AJ24,\"n/a\")","v":0},{"$f":"IF($C45<>\"n/a\",'QRY - ExportPupilNumbersbyYearG'!AK24,\"n/a\")","v":0},136,136,30,60,46,0,0,0]
[null,null,{"$f":"IF('QRY - ExportPupilNumbersbyYearG'!K25 =\"\",\"n/a\",'QRY - ExportPupilNumbersbyYearG'!K25)","v":"Eton Wick C of E First School"},{"$f":"IF($C46=\"n/a\",\"\",'QRY - ExportPupilNumbersbyYearG'!E25)","v":"Windsor"},{"$f":"IF($C46=\"n/a\",\"\",'QRY - ExportPupilNumbersbyYearG'!F25)","v":"Eton"},{"$f":"IF($C46=\"n/a\",\"\",'QRY - ExportPupilNumbersbyYearG'!G25)","v":"Eton Wick"},{"$f":"IF($C46=\"n/a\",\"\",'QRY - ExportPupilNumbersbyYearG'!I25)","v":"Primary"},{"$f":"IF($C46=\"n/a\",\"\",'QRY - ExportPupilNumbersbyYearG'!H25)","v":"Three Tier"},{"$f":"IF($C46=\"n/a\",\"\",'QRY - ExportPupilNumbersbyYearG'!J25)","v":"First"},{"$f":"IF($C46=\"n/a\",\"\",'QRY - ExportPupilNumbersbyYearG'!L25)","v":"Voluntary Controlled"},{"$f":"IF('QRY - ExportPupilNumbersbyYearG'!Q25=\"\",\"\",'QRY - ExportPupilNumbersbyYearG'!Q25)","v":""},{"$f":"IF($C46=\"n/a\",\"\",'QRY - ExportPupilNumbersbyYearG'!M25)","v":"Church of England"},{"$f":"IF($C46<>\"n/a\",'QRY - ExportPupilNumbersbyYearG'!R25,\"n/a\")","v":0},{"$f":"IF($C46<>\"n/a\",'QRY - ExportPupilNumbersbyYearG'!S25,\"n/a\")","v":0},{"$f":"IF($C46<>\"n/a\",'QRY - ExportPupilNumbersbyYearG'!T25,\"n/a\")","v":9},{"$f":"IF($C46<>\"n/a\",'QRY - ExportPupilNumbersbyYearG'!U25,\"n/a\")","v":7},{"$f":"IF($C46<>\"n/a\",'QRY - ExportPupilNumbersbyYearG'!V25,\"n/a\")","v":15},{"$f":"IF($C46<>\"n/a\",'QRY - ExportPupilNumbersbyYearG'!W25,\"n/a\")","v":12},{"$f":"IF($C46<>\"n/a\",'QRY - ExportPupilNumbersbyYearG'!X25,\"n/a\")","v":15},{"$f":"IF($C46<>\"n/a\",'QRY - ExportPupilNumbersbyYearG'!Y25,\"n/a\")","v":25},{"$f":"IF($C46<>\"n/a\",'QRY - ExportPupilNumbersbyYearG'!Z25,\"n/a\")","v":23},{"$f":"IF($C46<>\"n/a\",'QRY - ExportPupilNumbersbyYearG'!AA25,\"n/a\")","v":0},{"$f":"IF($C46<>\"n/a\",'QRY - ExportPupilNumbersbyYearG'!AB25,\"n/a\")","v":0},{"$f":"IF($C46<>\"n/a\",'QRY - ExportPupilNumbersbyYearG'!AC25,\"n/a\")","v":0},{"$f":"IF($C46<>\"n/a\",'QRY - ExportPupilNumbersbyYearG'!AD25,\"n/a\")","v":0},{"$f":"IF($C46<>\"n/a\",'QRY - ExportPupilNumbersbyYearG'!AE25,\"n/a\")","v":0},{"$f":"IF($C46<>\"n/a\",'QRY - ExportPupilNumbersbyYearG'!AF25,\"n/a\")","v":0},{"$f":"IF($C46<>\"n/a\",'QRY - ExportPupilNumbersbyYearG'!AG25,\"n/a\")","v":0},{"$f":"IF($C46<>\"n/a\",'QRY - ExportPupilNumbersbyYearG'!AH25,\"n/a\")","v":0},{"$f":"IF($C46<>\"n/a\",'QRY - ExportPupilNumbersbyYearG'!AI25,\"n/a\")","v":0},{"$f":"IF($C46<>\"n/a\",'QRY - ExportPupilNumbersbyYearG'!AJ25,\"n/a\")","v":0},{"$f":"IF($C46<>\"n/a\",'QRY - ExportPupilNumbersbyYearG'!AK25,\"n/a\")","v":0},90,106,31,27,48,0,0,0]
[null,null,{"$f":"IF('QRY - ExportPupilNumbersbyYearG'!K26 =\"\",\"n/a\",'QRY - ExportPupilNumbersbyYearG'!K26)","v":"Forest Bridge School"},{"$f":"IF($C47=\"n/a\",\"\",'QRY - ExportPupilNumbersbyYearG'!E26)","v":"Maidenhead"},{"$f":"IF($C47=\"n/a\",\"\",'QRY - ExportPupilNumbersbyYearG'!F26)","v":"South East Maidenhead"},{"$f":"IF($C47=\"n/a\",\"\",'QRY - ExportPupilNumbersbyYearG'!G26)","v":"Central"},{"$f":"IF($C47=\"n/a\",\"\",'QRY - ExportPupilNumbersbyYearG'!I26)","v":"All-through"},{"$f":"IF($C47=\"n/a\",\"\",'QRY - ExportPupilNumbersbyYearG'!H26)","v":"NA"},{"$f":"IF($C47=\"n/a\",\"\",'QRY - ExportPupilNumbersbyYearG'!J26)","v":"All Years"},{"$f":"IF($C47=\"n/a\",\"\",'QRY - ExportPupilNumbersbyYearG'!L26)","v":"Free School"},{"$f":"IF('QRY - ExportPupilNumbersbyYearG'!Q26=\"\",\"\",'QRY - ExportPupilNumbersbyYearG'!Q26)","v":""},{"$f":"IF($C47=\"n/a\",\"\",'QRY - ExportPupilNumbersbyYearG'!M26)","v":"None"},{"$f":"IF($C47<>\"n/a\",'QRY - ExportPupilNumbersbyYearG'!R26,\"n/a\")","v":0},{"$f":"IF($C47<>\"n/a\",'QRY - ExportPupilNumbersbyYearG'!S26,\"n/a\")","v":0},{"$f":"IF($C47<>\"n/a\",'QRY - ExportPupilNumbersbyYearG'!T26,\"n/a\")","v":0},{"$f":"IF($C47<>\"n/a\",'QRY - ExportPupilNumbersbyYearG'!U26,\"n/a\")","v":0},{"$f":"IF($C47<>\"n/a\",'QRY - ExportPupilNumbersbyYearG'!V26,\"n/a\")","v":0},{"$f":"IF($C47<>\"n/a\",'QRY - ExportPupilNumbersbyYearG'!W26,\"n/a\")","v":4},{"$f":"IF($C47<>\"n/a\",'QRY - ExportPupilNumbersbyYearG'!X26,\"n/a\")","v":10},{"$f":"IF($C47<>\"n/a\",'QRY - ExportPupilNumbersbyYearG'!Y26,\"n/a\")","v":6},{"$f":"IF($C47<>\"n/a\",'QRY - ExportPupilNumbersbyYearG'!Z26,\"n/a\")","v":6},{"$f":"IF($C47<>\"n/a\",'QRY - ExportPupilNumbersbyYearG'!AA26,\"n/a\")","v":7},{"$f":"IF($C47<>\"n/a\",'QRY - ExportPupilNumbersbyYearG'!AB26,\"n/a\")","v":9},{"$f":"IF($C47<>\"n/a\",'QRY - ExportPupilNumbersbyYearG'!AC26,\"n/a\")","v":14},{"$f":"IF($C47<>\"n/a\",'QRY - ExportPupilNumbersbyYearG'!AD26,\"n/a\")","v":17},{"$f":"IF($C47<>\"n/a\",'QRY - ExportPupilNumbersbyYearG'!AE26,\"n/a\")","v":4},{"$f":"IF($C47<>\"n/a\",'QRY - ExportPupilNumbersbyYearG'!AF26,\"n/a\")","v":4},{"$f":"IF($C47<>\"n/a\",'QRY - ExportPupilNumbersbyYearG'!AG26,\"n/a\")","v":2},{"$f":"IF($C47<>\"n/a\",'QRY - ExportPupilNumbersbyYearG'!AH26,\"n/a\")","v":1},{"$f":"IF($C47<>\"n/a\",'QRY - ExportPupilNumbersbyYearG'!AI26,\"n/a\")","v":0},{"$f":"IF($C47<>\"n/a\",'QRY - ExportPupilNumbersbyYearG'!AJ26,\"n/a\")","v":0},{"$f":"IF($C47<>\"n/a\",'QRY - ExportPupilNumbersbyYearG'!AK26,\"n/a\")","v":0},84,84,0,14,28,35,6,1]
[null,null,{"$f":"IF('QRY - ExportPupilNumbersbyYearG'!K27 =\"\",\"n/a\",'QRY - ExportPupilNumbersbyYearG'!K27)","v":"Furze Platt Infant School"},{"$f":"IF($C48=\"n/a\",\"\",'QRY - ExportPupilNumbersbyYearG'!E27)","v":"Maidenhead"},{"$f":"IF($C48=\"n/a\",\"\",'QRY - ExportPupilNumbersbyYearG'!F27)","v":"North West Maidenhead"},{"$f":"IF($C48=\"n/a\",\"\",'QRY - ExportPupilNumbersbyYearG'!G27)","v":"Furze Platt"},{"$f":"IF($C48=\"n/a\",\"\",'QRY - ExportPupilNumbersbyYearG'!I27)","v":"Primary"},{"$f":"IF($C48=\"n/a\",\"\",'QRY - ExportPupilNumbersbyYearG'!H27)","v":"Two Tier"},{"$f":"IF($C48=\"n/a\",\"\",'QRY - ExportPupilNumbersbyYearG'!J27)","v":"Infants"},{"$f":"IF($C48=\"n/a\",\"\",'QRY - ExportPupilNumbersbyYearG'!L27)","v":"Community"},{"$f":"IF('QRY - ExportPupilNumbersbyYearG'!Q27=\"\",\"\",'QRY - ExportPupilNumbersbyYearG'!Q27)","v":""},{"$f":"IF($C48=\"n/a\",\"\",'QRY - ExportPupilNumbersbyYearG'!M27)","v":"None"},{"$f":"IF($C48<>\"n/a\",'QRY - ExportPupilNumbersbyYearG'!R27,\"n/a\")","v":0},{"$f":"IF($C48<>\"n/a\",'QRY - ExportPupilNumbersbyYearG'!S27,\"n/a\")","v":0},{"$f":"IF($C48<>\"n/a\",'QRY - ExportPupilNumbersbyYearG'!T27,\"n/a\")","v":0},{"$f":"IF($C48<>\"n/a\",'QRY - ExportPupilNumbersbyYearG'!U27,\"n/a\")","v":0},{"$f":"IF($C48<>\"n/a\",'QRY - ExportPupilNumbersbyYearG'!V27,\"n/a\")","v":88},{"$f":"IF($C48<>\"n/a\",'QRY - ExportPupilNumbersbyYearG'!W27,\"n/a\")","v":90},{"$f":"IF($C48<>\"n/a\",'QRY - ExportPupilNumbersbyYearG'!X27,\"n/a\")","v":89},{"$f":"IF($C48<>\"n/a\",'QRY - ExportPupilNumbersbyYearG'!Y27,\"n/a\")","v":0},{"$f":"IF($C48<>\"n/a\",'QRY - ExportPupilNumbersbyYearG'!Z27,\"n/a\")","v":0},{"$f":"IF($C48<>\"n/a\",'QRY - ExportPupilNumbersbyYearG'!AA27,\"n/a\")","v":0},{"$f":"IF($C48<>\"n/a\",'QRY - ExportPupilNumbersbyYearG'!AB27,\"n/a\")","v":0},{"$f":"IF($C48<>\"n/a\",'QRY - ExportPupilNumbersbyYearG'!AC27,\"n/a\")","v":0},{"$f":"IF($C48<>\"n/a\",'QRY - ExportPupilNumbersbyYearG'!AD27,\"n/a\")","v":0},{"$f":"IF($C48<>\"n/a\",'QRY - ExportPupilNumbersbyYearG'!AE27,\"n/a\")","v":0},{"$f":"IF($C48<>\"n/a\",'QRY - ExportPupilNumbersbyYearG'!AF27,\"n/a\")","v":0},{"$f":"IF($C48<>\"n/a\",'QRY - ExportPupilNumbersbyYearG'!AG27,\"n/a\")","v":0},{"$f":"IF($C48<>\"n/a\",'QRY - ExportPupilNumbersbyYearG'!AH27,\"n/a\")","v":0},{"$f":"IF($C48<>\"n/a\",'QRY - ExportPupilNumbersbyYearG'!AI27,\"n/a\")","v":0},{"$f":"IF($C48<>\"n/a\",'QRY - ExportPupilNumbersbyYearG'!AJ27,\"n/a\")","v":0},{"$f":"IF($C48<>\"n/a\",'QRY - ExportPupilNumbersbyYearG'!AK27,\"n/a\")","v":0},267,267,88,179,0,0,0,0]
[null,null,{"$f":"IF('QRY - ExportPupilNumbersbyYearG'!K28 =\"\",\"n/a\",'QRY - ExportPupilNumbersbyYearG'!K28)","v":"Furze Platt Junior School"},{"$f":"IF($C49=\"n/a\",\"\",'QRY - ExportPupilNumbersbyYearG'!E28)","v":"Maidenhead"},{"$f":"IF($C49=\"n/a\",\"\",'QRY - ExportPupilNumbersbyYearG'!F28)","v":"North West Maidenhead"},{"$f":"IF($C49=\"n/a\",\"\",'QRY - ExportPupilNumbersbyYearG'!G28)","v":"Furze Platt"},{"$f":"IF($C49=\"n/a\",\"\",'QRY - ExportPupilNumbersbyYearG'!I28)","v":"Primary"},{"$f":"IF($C49=\"n/a\",\"\",'QRY - ExportPupilNumbersbyYearG'!H28)","v":"Two Tier"},{"$f":"IF($C49=\"n/a\",\"\",'QRY - ExportPupilNumbersbyYearG'!J28)","v":"Junior"},{"$f":"IF($C49=\"n/a\",\"\",'QRY - ExportPupilNumbersbyYearG'!L28)","v":"Community"},{"$f":"IF('QRY - ExportPupilNumbersbyYearG'!Q28=\"\",\"\",'QRY - ExportPupilNumbersbyYearG'!Q28)","v":""},{"$f":"IF($C49=\"n/a\",\"\",'QRY - ExportPupilNumbersbyYearG'!M28)","v":"None"},{"$f":"IF($C49<>\"n/a\",'QRY - ExportPupilNumbersbyYearG'!R28,\"n/a\")","v":0},{"$f":"IF($C49<>\"n/a\",'QRY - ExportPupilNumbersbyYearG'!S28,\"n/a\")","v":0},{"$f":"IF($C49<>\"n/a\",'QRY - ExportPupilNumbersbyYearG'!T28,\"n/a\")","v":0},{"$f":"IF($C49<>\"n/a\",'QRY - ExportPupilNumbersbyYearG'!U28,\"n/a\")","v":0},{"$f":"IF($C49<>\"n/a\",'QRY - ExportPupilNumbersbyYearG'!V28,\"n/a\")","v":0},{"$f":"IF($C49<>\"n/a\",'QRY - ExportPupilNumbersbyYearG'!W28,\"n/a\")","v":0},{"$f":"IF($C49<>\"n/a\",'QRY - ExportPupilNumbersbyYearG'!X28,\"n/a\")","v":0},{"$f":"IF($C49<>\"n/a\",'QRY - ExportPupilNumbersbyYearG'!Y28,\"n/a\")","v":89},{"$f":"IF($C49<>\"n/a\",'QRY - ExportPupilNumbersbyYearG'!Z28,\"n/a\")","v":91},{"$f":"IF($C49<>\"n/a\",'QRY - ExportPupilNumbersbyYearG'!AA28,\"n/a\")","v":90},{"$f":"IF($C49<>\"n/a\",'QRY - ExportPupilNumbersbyYearG'!AB28,\"n/a\")","v":90},{"$f":"IF($C49<>\"n/a\",'QRY - ExportPupilNumbersbyYearG'!AC28,\"n/a\")","v":0},{"$f":"IF($C49<>\"n/a\",'QRY - ExportPupilNumbersbyYearG'!AD28,\"n/a\")","v":0},{"$f":"IF($C49<>\"n/a\",'QRY - ExportPupilNumbersbyYearG'!AE28,\"n/a\")","v":0},{"$f":"IF($C49<>\"n/a\",'QRY - ExportPupilNumbersbyYearG'!AF28,\"n/a\")","v":0},{"$f":"IF($C49<>\"n/a\",'QRY - ExportPupilNumbersbyYearG'!AG28,\"n/a\")","v":0},{"$f":"IF($C49<>\"n/a\",'QRY - ExportPupilNumbersbyYearG'!AH28,\"n/a\")","v":0},{"$f":"IF($C49<>\"n/a\",'QRY - ExportPupilNumbersbyYearG'!AI28,\"n/a\")","v":0},{"$f":"IF($C49<>\"n/a\",'QRY - ExportPupilNumbersbyYearG'!AJ28,\"n/a\")","v":0},{"$f":"IF($C49<>\"n/a\",'QRY - ExportPupilNumbersbyYearG'!AK28,\"n/a\")","v":0},360,360,0,0,360,0,0,0]
[null,null,{"$f":"IF('QRY - ExportPupilNumbersbyYearG'!K29 =\"\",\"n/a\",'QRY - ExportPupilNumbersbyYearG'!K29)","v":"Furze Platt Senior School"},{"$f":"IF($C50=\"n/a\",\"\",'QRY - ExportPupilNumbersbyYearG'!E29)","v":"Maidenhead"},{"$f":"IF($C50=\"n/a\",\"\",'QRY - ExportPupilNumbersbyYearG'!F29)","v":"North West Maidenhead"},{"$f":"IF($C50=\"n/a\",\"\",'QRY - ExportPupilNumbersbyYearG'!G29)","v":"Furze Platt"},{"$f":"IF($C50=\"n/a\",\"\",'QRY - ExportPupilNumbersbyYearG'!I29)","v":"Secondary"},{"$f":"IF($C50=\"n/a\",\"\",'QRY - ExportPupilNumbersbyYearG'!H29)","v":"Two Tier"},{"$f":"IF($C50=\"n/a\",\"\",'QRY - ExportPupilNumbersbyYearG'!J29)","v":"Secondary"},{"$f":"IF($C50=\"n/a\",\"\",'QRY - ExportPupilNumbersbyYearG'!L29)","v":"Academy"},{"$f":"IF('QRY - ExportPupilNumbersbyYearG'!Q29=\"\",\"\",'QRY - ExportPupilNumbersbyYearG'!Q29)","v":"2011-12-01"},{"$f":"IF($C50=\"n/a\",\"\",'QRY - ExportPupilNumbersbyYearG'!M29)","v":"None"},{"$f":"IF($C50<>\"n/a\",'QRY - ExportPupilNumbersbyYearG'!R29,\"n/a\")","v":0},{"$f":"IF($C50<>\"n/a\",'QRY - ExportPupilNumbersbyYearG'!S29,\"n/a\")","v":0},{"$f":"IF($C50<>\"n/a\",'QRY - ExportPupilNumbersbyYearG'!T29,\"n/a\")","v":0},{"$f":"IF($C50<>\"n/a\",'QRY - ExportPupilNumbersbyYearG'!U29,\"n/a\")","v":0},{"$f":"IF($C50<>\"n/a\",'QRY - ExportPupilNumbersbyYearG'!V29,\"n/a\")","v":0},{"$f":"IF($C50<>\"n/a\",'QRY - ExportPupilNumbersbyYearG'!W29,\"n/a\")","v":0},{"$f":"IF($C50<>\"n/a\",'QRY - ExportPupilNumbersbyYearG'!X29,\"n/a\")","v":0},{"$f":"IF($C50<>\"n/a\",'QRY - ExportPupilNumbersbyYearG'!Y29,\"n/a\")","v":0},{"$f":"IF($C50<>\"n/a\",'QRY - ExportPupilNumbersbyYearG'!Z29,\"n/a\")","v":0},{"$f":"IF($C50<>\"n/a\",'QRY - ExportPupilNumbersbyYearG'!AA29,\"n/a\")","v":0},{"$f":"IF($C50<>\"n/a\",'QRY - ExportPupilNumbersbyYearG'!AB29,\"n/a\")","v":0},{"$f":"IF($C50<>\"n/a\",'QRY - ExportPupilNumbersbyYearG'!AC29,\"n/a\")","v":257},{"$f":"IF($C50<>\"n/a\",'QRY - ExportPupilNumbersbyYearG'!AD29,\"n/a\")","v":233},{"$f":"IF($C50<>\"n/a\",'QRY - ExportPupilNumbersbyYearG'!AE29,\"n/a\")","v":220},{"$f":"IF($C50<>\"n/a\",'QRY - ExportPupilNumbersbyYearG'!AF29,\"n/a\")","v":202},{"$f":"IF($C50<>\"n/a\",'QRY - ExportPupilNumbersbyYearG'!AG29,\"n/a\")","v":202},{"$f":"IF($C50<>\"n/a\",'QRY - ExportPupilNumbersbyYearG'!AH29,\"n/a\")","v":144},{"$f":"IF($C50<>\"n/a\",'QRY - ExportPupilNumbersbyYearG'!AI29,\"n/a\")","v":149},{"$f":"IF($C50<>\"n/a\",'QRY - ExportPupilNumbersbyYearG'!AJ29,\"n/a\")","v":0},{"$f":"IF($C50<>\"n/a\",'QRY - ExportPupilNumbersbyYearG'!AK29,\"n/a\")","v":0},1407,1407,0,0,0,710,404,293]
[null,null,{"$f":"IF('QRY - ExportPupilNumbersbyYearG'!K30 =\"\",\"n/a\",'QRY - ExportPupilNumbersbyYearG'!K30)","v":"Hilltop First School"},{"$f":"IF($C51=\"n/a\",\"\",'QRY - ExportPupilNumbersbyYearG'!E30)","v":"Windsor"},{"$f":"IF($C51=\"n/a\",\"\",'QRY - ExportPupilNumbersbyYearG'!F30)","v":"Windsor South"},{"$f":"IF($C51=\"n/a\",\"\",'QRY - ExportPupilNumbersbyYearG'!G30)","v":"Hilltop"},{"$f":"IF($C51=\"n/a\",\"\",'QRY - ExportPupilNumbersbyYearG'!I30)","v":"Primary"},{"$f":"IF($C51=\"n/a\",\"\",'QRY - ExportPupilNumbersbyYearG'!H30)","v":"Three Tier"},{"$f":"IF($C51=\"n/a\",\"\",'QRY - ExportPupilNumbersbyYearG'!J30)","v":"First"},{"$f":"IF($C51=\"n/a\",\"\",'QRY - ExportPupilNumbersbyYearG'!L30)","v":"Community"},{"$f":"IF('QRY - ExportPupilNumbersbyYearG'!Q30=\"\",\"\",'QRY - ExportPupilNumbersbyYearG'!Q30)","v":""},{"$f":"IF($C51=\"n/a\",\"\",'QRY - ExportPupilNumbersbyYearG'!M30)","v":"None"},{"$f":"IF($C51<>\"n/a\",'QRY - ExportPupilNumbersbyYearG'!R30,\"n/a\")","v":0},{"$f":"IF($C51<>\"n/a\",'QRY - ExportPupilNumbersbyYearG'!S30,\"n/a\")","v":0},{"$f":"IF($C51<>\"n/a\",'QRY - ExportPupilNumbersbyYearG'!T30,\"n/a\")","v":4},{"$f":"IF($C51<>\"n/a\",'QRY - ExportPupilNumbersbyYearG'!U30,\"n/a\")","v":24},{"$f":"IF($C51<>\"n/a\",'QRY - ExportPupilNumbersbyYearG'!V30,\"n/a\")","v":43},{"$f":"IF($C51<>\"n/a\",'QRY - ExportPupilNumbersbyYearG'!W30,\"n/a\")","v":44},{"$f":"IF($C51<>\"n/a\",'QRY - ExportPupilNumbersbyYearG'!X30,\"n/a\")","v":43},{"$f":"IF($C51<>\"n/a\",'QRY - ExportPupilNumbersbyYearG'!Y30,\"n/a\")","v":42},{"$f":"IF($C51<>\"n/a\",'QRY - ExportPupilNumbersbyYearG'!Z30,\"n/a\")","v":44},{"$f":"IF($C51<>\"n/a\",'QRY - ExportPupilNumbersbyYearG'!AA30,\"n/a\")","v":0},{"$f":"IF($C51<>\"n/a\",'QRY - ExportPupilNumbersbyYearG'!AB30,\"n/a\")","v":0},{"$f":"IF($C51<>\"n/a\",'QRY - ExportPupilNumbersbyYearG'!AC30,\"n/a\")","v":0},{"$f":"IF($C51<>\"n/a\",'QRY - ExportPupilNumbersbyYearG'!AD30,\"n/a\")","v":0},{"$f":"IF($C51<>\"n/a\",'QRY - ExportPupilNumbersbyYearG'!AE30,\"n/a\")","v":0},{"$f":"IF($C51<>\"n/a\",'QRY - ExportPupilNumbersbyYearG'!AF30,\"n/a\")","v":0},{"$f":"IF($C51<>\"n/a\",'QRY - ExportPupilNumbersbyYearG'!AG30,\"n/a\")","v":0},{"$f":"IF($C51<>\"n/a\",'QRY - ExportPupilNumbersbyYearG'!AH30,\"n/a\")","v":0},{"$f":"IF($C51<>\"n/a\",'QRY - ExportPupilNumbersbyYearG'!AI30,\"n/a\")","v":0},{"$f":"IF($C51<>\"n/a\",'QRY - ExportPupilNumbersbyYearG'!AJ30,\"n/a\")","v":0},{"$f":"IF($C51<>\"n/a\",'QRY - ExportPupilNumbersbyYearG'!AK30,\"n/a\")","v":0},216,244,71,87,86,0,0,0]
[null,null,{"$f":"IF('QRY - ExportPupilNumbersbyYearG'!K31 =\"\",\"n/a\",'QRY - ExportPupilNumbersbyYearG'!K31)","v":"Holy Trinity C of E Primary School, Cookham"},{"$f":"IF($C52=\"n/a\",\"\",'QRY - ExportPupilNumbersbyYearG'!E31)","v":"Maidenhead"},{"$f":"IF($C52=\"n/a\",\"\",'QRY - ExportPupilNumbersbyYearG'!F31)","v":"Bisham and Cookham"},{"$f":"IF($C52=\"n/a\",\"\",'QRY - ExportPupilNumbersbyYearG'!G31)","v":"Cookham"},{"$f":"IF($C52=\"n/a\",\"\",'QRY - ExportPupilNumbersbyYearG'!I31)","v":"Primary"},{"$f":"IF($C52=\"n/a\",\"\",'QRY - ExportPupilNumbersbyYearG'!H31)","v":"Two Tier"},{"$f":"IF($C52=\"n/a\",\"\",'QRY - ExportPupilNumbersbyYearG'!J31)","v":"JMI"},{"$f":"IF($C52=\"n/a\",\"\",'QRY - ExportPupilNumbersbyYearG'!L31)","v":"Voluntary Controlled"},{"$f":"IF('QRY - ExportPupilNumbersbyYearG'!Q31=\"\",\"\",'QRY - ExportPupilNumbersbyYearG'!Q31)","v":""},{"$f":"IF($C52=\"n/a\",\"\",'QRY - ExportPupilNumbersbyYearG'!M31)","v":"Church of England"},{"$f":"IF($C52<>\"n/a\",'QRY - ExportPupilNumbersbyYearG'!R31,\"n/a\")","v":0},{"$f":"IF($C52<>\"n/a\",'QRY - ExportPupilNumbersbyYearG'!S31,\"n/a\")","v":0},{"$f":"IF($C52<>\"n/a\",'QRY - ExportPupilNumbersbyYearG'!T31,\"n/a\")","v":0},{"$f":"IF($C52<>\"n/a\",'QRY - ExportPupilNumbersbyYearG'!U31,\"n/a\")","v":0},{"$f":"IF($C52<>\"n/a\",'QRY - ExportPupilNumbersbyYearG'!V31,\"n/a\")","v":30},{"$f":"IF($C52<>\"n/a\",'QRY - ExportPupilNumbersbyYearG'!W31,\"n/a\")","v":30},{"$f":"IF($C52<>\"n/a\",'QRY - ExportPupilNumbersbyYearG'!X31,\"n/a\")","v":29},{"$f":"IF($C52<>\"n/a\",'QRY - ExportPupilNumbersbyYearG'!Y31,\"n/a\")","v":30},{"$f":"IF($C52<>\"n/a\",'QRY - ExportPupilNumbersbyYearG'!Z31,\"n/a\")","v":30},{"$f":"IF($C52<>\"n/a\",'QRY - ExportPupilNumbersbyYearG'!AA31,\"n/a\")","v":26},{"$f":"IF($C52<>\"n/a\",'QRY - ExportPupilNumbersbyYearG'!AB31,\"n/a\")","v":30},{"$f":"IF($C52<>\"n/a\",'QRY - ExportPupilNumbersbyYearG'!AC31,\"n/a\")","v":0},{"$f":"IF($C52<>\"n/a\",'QRY - ExportPupilNumbersbyYearG'!AD31,\"n/a\")","v":0},{"$f":"IF($C52<>\"n/a\",'QRY - ExportPupilNumbersbyYearG'!AE31,\"n/a\")","v":0},{"$f":"IF($C52<>\"n/a\",'QRY - ExportPupilNumbersbyYearG'!AF31,\"n/a\")","v":0},{"$f":"IF($C52<>\"n/a\",'QRY - ExportPupilNumbersbyYearG'!AG31,\"n/a\")","v":0},{"$f":"IF($C52<>\"n/a\",'QRY - ExportPupilNumbersbyYearG'!AH31,\"n/a\")","v":0},{"$f":"IF($C52<>\"n/a\",'QRY - ExportPupilNumbersbyYearG'!AI31,\"n/a\")","v":0},{"$f":"IF($C52<>\"n/a\",'QRY - ExportPupilNumbersbyYearG'!AJ31,\"n/a\")","v":0},{"$f":"IF($C52<>\"n/a\",'QRY - ExportPupilNumbersbyYearG'!AK31,\"n/a\")","v":0},205,205,30,59,116,0,0,0]
[null,null,{"$f":"IF('QRY - ExportPupilNumbersbyYearG'!K32 =\"\",\"n/a\",'QRY - ExportPupilNumbersbyYearG'!K32)","v":"Holy Trinity CE Primary School, Sunningdale"},{"$f":"IF($C53=\"n/a\",\"\",'QRY - ExportPupilNumbersbyYearG'!E32)","v":"Ascot"},{"$f":"IF($C53=\"n/a\",\"\",'QRY - ExportPupilNumbersbyYearG'!F32)","v":"Ascot"},{"$f":"IF($C53=\"n/a\",\"\",'QRY - ExportPupilNumbersbyYearG'!G32)","v":"North Sunningdale"},{"$f":"IF($C53=\"n/a\",\"\",'QRY - ExportPupilNumbersbyYearG'!I32)","v":"Primary"},{"$f":"IF($C53=\"n/a\",\"\",'QRY - ExportPupilNumbersbyYearG'!H32)","v":"Two Tier"},{"$f":"IF($C53=\"n/a\",\"\",'QRY - ExportPupilNumbersbyYearG'!J32)","v":"JMI"},{"$f":"IF($C53=\"n/a\",\"\",'QRY - ExportPupilNumbersbyYearG'!L32)","v":"Voluntary Aided"},{"$f":"IF('QRY - ExportPupilNumbersbyYearG'!Q32=\"\",\"\",'QRY - ExportPupilNumbersbyYearG'!Q32)","v":""},{"$f":"IF($C53=\"n/a\",\"\",'QRY - ExportPupilNumbersbyYearG'!M32)","v":"Church of England"},{"$f":"IF($C53<>\"n/a\",'QRY - ExportPupilNumbersbyYearG'!R32,\"n/a\")","v":0},{"$f":"IF($C53<>\"n/a\",'QRY - ExportPupilNumbersbyYearG'!S32,\"n/a\")","v":0},{"$f":"IF($C53<>\"n/a\",'QRY - ExportPupilNumbersbyYearG'!T32,\"n/a\")","v":0},{"$f":"IF($C53<>\"n/a\",'QRY - ExportPupilNumbersbyYearG'!U32,\"n/a\")","v":0},{"$f":"IF($C53<>\"n/a\",'QRY - ExportPupilNumbersbyYearG'!V32,\"n/a\")","v":30},{"$f":"IF($C53<>\"n/a\",'QRY - ExportPupilNumbersbyYearG'!W32,\"n/a\")","v":30},{"$f":"IF($C53<>\"n/a\",'QRY - ExportPupilNumbersbyYearG'!X32,\"n/a\")","v":30},{"$f":"IF($C53<>\"n/a\",'QRY - ExportPupilNumbersbyYearG'!Y32,\"n/a\")","v":30},{"$f":"IF($C53<>\"n/a\",'QRY - ExportPupilNumbersbyYearG'!Z32,\"n/a\")","v":31},{"$f":"IF($C53<>\"n/a\",'QRY - ExportPupilNumbersbyYearG'!AA32,\"n/a\")","v":57},{"$f":"IF($C53<>\"n/a\",'QRY - ExportPupilNumbersbyYearG'!AB32,\"n/a\")","v":30},{"$f":"IF($C53<>\"n/a\",'QRY - ExportPupilNumbersbyYearG'!AC32,\"n/a\")","v":0},{"$f":"IF($C53<>\"n/a\",'QRY - ExportPupilNumbersbyYearG'!AD32,\"n/a\")","v":0},{"$f":"IF($C53<>\"n/a\",'QRY - ExportPupilNumbersbyYearG'!AE32,\"n/a\")","v":0},{"$f":"IF($C53<>\"n/a\",'QRY - ExportPupilNumbersbyYearG'!AF32,\"n/a\")","v":0},{"$f":"IF($C53<>\"n/a\",'QRY - ExportPupilNumbersbyYearG'!AG32,\"n/a\")","v":0},{"$f":"IF($C53<>\"n/a\",'QRY - ExportPupilNumbersbyYearG'!AH32,\"n/a\")","v":0},{"$f":"IF($C53<>\"n/a\",'QRY - ExportPupilNumbersbyYearG'!AI32,\"n/a\")","v":0},{"$f":"IF($C53<>\"n/a\",'QRY - ExportPupilNumbersbyYearG'!AJ32,\"n/a\")","v":0},{"$f":"IF($C53<>\"n/a\",'QRY - ExportPupilNumbersbyYearG'!AK32,\"n/a\")","v":0},238,238,30,60,148,0,0,0]
[null,null,{"$f":"IF('QRY - ExportPupilNumbersbyYearG'!K33 =\"\",\"n/a\",'QRY - ExportPupilNumbersbyYearG'!K33)","v":"Holyport C of E Primary School & Foundation Unit"},{"$f":"IF($C54=\"n/a\",\"\",'QRY - ExportPupilNumbersbyYearG'!E33)","v":"Maidenhead"},{"$f":"IF($C54=\"n/a\",\"\",'QRY - ExportPupilNumbersbyYearG'!F33)","v":"South East Maidenhead"},{"$f":"IF($C54=\"n/a\",\"\",'QRY - ExportPupilNumbersbyYearG'!G33)","v":"Holyport Rural"},{"$f":"IF($C54=\"n/a\",\"\",'QRY - ExportPupilNumbersbyYearG'!I33)","v":"Primary"},{"$f":"IF($C54=\"n/a\",\"\",'QRY - ExportPupilNumbersbyYearG'!H33)","v":"Two Tier"},{"$f":"IF($C54=\"n/a\",\"\",'QRY - ExportPupilNumbersbyYearG'!J33)","v":"JMI"},{"$f":"IF($C54=\"n/a\",\"\",'QRY - ExportPupilNumbersbyYearG'!L33)","v":"Academy"},{"$f":"IF('QRY - ExportPupilNumbersbyYearG'!Q33=\"\",\"\",'QRY - ExportPupilNumbersbyYearG'!Q33)","v":"2016-06-01"},{"$f":"IF($C54=\"n/a\",\"\",'QRY - ExportPupilNumbersbyYearG'!M33)","v":"Church of England"},{"$f":"IF($C54<>\"n/a\",'QRY - ExportPupilNumbersbyYearG'!R33,\"n/a\")","v":0},{"$f":"IF($C54<>\"n/a\",'QRY - ExportPupilNumbersbyYearG'!S33,\"n/a\")","v":0},{"$f":"IF($C54<>\"n/a\",'QRY - ExportPupilNumbersbyYearG'!T33,\"n/a\")","v":0},{"$f":"IF($C54<>\"n/a\",'QRY - ExportPupilNumbersbyYearG'!U33,\"n/a\")","v":8},{"$f":"IF($C54<>\"n/a\",'QRY - ExportPupilNumbersbyYearG'!V33,\"n/a\")","v":30},{"$f":"IF($C54<>\"n/a\",'QRY - ExportPupilNumbersbyYearG'!W33,\"n/a\")","v":30},{"$f":"IF($C54<>\"n/a\",'QRY - ExportPupilNumbersbyYearG'!X33,\"n/a\")","v":24},{"$f":"IF($C54<>\"n/a\",'QRY - ExportPupilNumbersbyYearG'!Y33,\"n/a\")","v":36},{"$f":"IF($C54<>\"n/a\",'QRY - ExportPupilNumbersbyYearG'!Z33,\"n/a\")","v":43},{"$f":"IF($C54<>\"n/a\",'QRY - ExportPupilNumbersbyYearG'!AA33,\"n/a\")","v":47},{"$f":"IF($C54<>\"n/a\",'QRY - ExportPupilNumbersbyYearG'!AB33,\"n/a\")","v":44},{"$f":"IF($C54<>\"n/a\",'QRY - ExportPupilNumbersbyYearG'!AC33,\"n/a\")","v":0},{"$f":"IF($C54<>\"n/a\",'QRY - ExportPupilNumbersbyYearG'!AD33,\"n/a\")","v":0},{"$f":"IF($C54<>\"n/a\",'QRY - ExportPupilNumbersbyYearG'!AE33,\"n/a\")","v":0},{"$f":"IF($C54<>\"n/a\",'QRY - ExportPupilNumbersbyYearG'!AF33,\"n/a\")","v":0},{"$f":"IF($C54<>\"n/a\",'QRY - ExportPupilNumbersbyYearG'!AG33,\"n/a\")","v":0},{"$f":"IF($C54<>\"n/a\",'QRY - ExportPupilNumbersbyYearG'!AH33,\"n/a\")","v":0},{"$f":"IF($C54<>\"n/a\",'QRY - ExportPupilNumbersbyYearG'!AI33,\"n/a\")","v":0},{"$f":"IF($C54<>\"n/a\",'QRY - ExportPupilNumbersbyYearG'!AJ33,\"n/a\")","v":0},{"$f":"IF($C54<>\"n/a\",'QRY - ExportPupilNumbersbyYearG'!AK33,\"n/a\")","v":0},254,262,38,54,170,0,0,0]
[null,null,{"$f":"IF('QRY - ExportPupilNumbersbyYearG'!K34 =\"\",\"n/a\",'QRY - ExportPupilNumbersbyYearG'!K34)","v":"Holyport College"},{"$f":"IF($C55=\"n/a\",\"\",'QRY - ExportPupilNumbersbyYearG'!E34)","v":"Maidenhead"},{"$f":"IF($C55=\"n/a\",\"\",'QRY - ExportPupilNumbersbyYearG'!F34)","v":"South East Maidenhead"},{"$f":"IF($C55=\"n/a\",\"\",'QRY - ExportPupilNumbersbyYearG'!G34)","v":"Holyport Rural"},{"$f":"IF($C55=\"n/a\",\"\",'QRY - ExportPupilNumbersbyYearG'!I34)","v":"Secondary"},{"$f":"IF($C55=\"n/a\",\"\",'QRY - ExportPupilNumbersbyYearG'!H34)","v":"Two Tier"},{"$f":"IF($C55=\"n/a\",\"\",'QRY - ExportPupilNumbersbyYearG'!J34)","v":"Secondary"},{"$f":"IF($C55=\"n/a\",\"\",'QRY - ExportPupilNumbersbyYearG'!L34)","v":"Free School"},{"$f":"IF('QRY - ExportPupilNumbersbyYearG'!Q34=\"\",\"\",'QRY - ExportPupilNumbersbyYearG'!Q34)","v":""},{"$f":"IF($C55=\"n/a\",\"\",'QRY - ExportPupilNumbersbyYearG'!M34)","v":"None"},{"$f":"IF($C55<>\"n/a\",'QRY - ExportPupilNumbersbyYearG'!R34,\"n/a\")","v":0},{"$f":"IF($C55<>\"n/a\",'QRY - ExportPupilNumbersbyYearG'!S34,\"n/a\")","v":0},{"$f":"IF($C55<>\"n/a\",'QRY - ExportPupilNumbersbyYearG'!T34,\"n/a\")","v":0},{"$f":"IF($C55<>\"n/a\",'QRY - ExportPupilNumbersbyYearG'!U34,\"n/a\")","v":0},{"$f":"IF($C55<>\"n/a\",'QRY - ExportPupilNumbersbyYearG'!V34,\"n/a\")","v":0},{"$f":"IF($C55<>\"n/a\",'QRY - ExportPupilNumbersbyYearG'!W34,\"n/a\")","v":0},{"$f":"IF($C55<>\"n/a\",'QRY - ExportPupilNumbersbyYearG'!X34,\"n/a\")","v":0},{"$f":"IF($C55<>\"n/a\",'QRY - ExportPupilNumbersbyYearG'!Y34,\"n/a\")","v":0},{"$f":"IF($C55<>\"n/a\",'QRY - ExportPupilNumbersbyYearG'!Z34,\"n/a\")","v":0},{"$f":"IF($C55<>\"n/a\",'QRY - ExportPupilNumbersbyYearG'!AA34,\"n/a\")","v":0},{"$f":"IF($C55<>\"n/a\",'QRY - ExportPupilNumbersbyYearG'!AB34,\"n/a\")","v":0},{"$f":"IF($C55<>\"n/a\",'QRY - ExportPupilNumbersbyYearG'!AC34,\"n/a\")","v":69},{"$f":"IF($C55<>\"n/a\",'QRY - ExportPupilNumbersbyYearG'!AD34,\"n/a\")","v":47},{"$f":"IF($C55<>\"n/a\",'QRY - ExportPupilNumbersbyYearG'!AE34,\"n/a\")","v":83},{"$f":"IF($C55<>\"n/a\",'QRY - ExportPupilNumbersbyYearG'!AF34,\"n/a\")","v":87},{"$f":"IF($C55<>\"n/a\",'QRY - ExportPupilNumbersbyYearG'!AG34,\"n/a\")","v":87},{"$f":"IF($C55<>\"n/a\",'QRY - ExportPupilNumbersbyYearG'!AH34,\"n/a\")","v":109},{"$f":"IF($C55<>\"n/a\",'QRY - ExportPupilNumbersbyYearG'!AI34,\"n/a\")","v":98},{"$f":"IF($C55<>\"n/a\",'QRY - ExportPupilNumbersbyYearG'!AJ34,\"n/a\")","v":0},{"$f":"IF($C55<>\"n/a\",'QRY - ExportPupilNumbersbyYearG'!AK34,\"n/a\")","v":0},580,580,0,0,0,199,174,207]
[null,null,{"$f":"IF('QRY - ExportPupilNumbersbyYearG'!K35 =\"\",\"n/a\",'QRY - ExportPupilNumbersbyYearG'!K35)","v":"Homer First School and Nursery"},{"$f":"IF($C56=\"n/a\",\"\",'QRY - ExportPupilNumbersbyYearG'!E35)","v":"Windsor"},{"$f":"IF($C56=\"n/a\",\"\",'QRY - ExportPupilNumbersbyYearG'!F35)","v":"Windsor North"},{"$f":"IF($C56=\"n/a\",\"\",'QRY - ExportPupilNumbersbyYearG'!G35)","v":"Homer"},{"$f":"IF($C56=\"n/a\",\"\",'QRY - ExportPupilNumbersbyYearG'!I35)","v":"Primary"},{"$f":"IF($C56=\"n/a\",\"\",'QRY - ExportPupilNumbersbyYearG'!H35)","v":"Three Tier"},{"$f":"IF($C56=\"n/a\",\"\",'QRY - ExportPupilNumbersbyYearG'!J35)","v":"First"},{"$f":"IF($C56=\"n/a\",\"\",'QRY - ExportPupilNumbersbyYearG'!L35)","v":"Community"},{"$f":"IF('QRY - ExportPupilNumbersbyYearG'!Q35=\"\",\"\",'QRY - ExportPupilNumbersbyYearG'!Q35)","v":""},{"$f":"IF($C56=\"n/a\",\"\",'QRY - ExportPupilNumbersbyYearG'!M35)","v":"None"},{"$f":"IF($C56<>\"n/a\",'QRY - ExportPupilNumbersbyYearG'!R35,\"n/a\")","v":0},{"$f":"IF($C56<>\"n/a\",'QRY - ExportPupilNumbersbyYearG'!S35,\"n/a\")","v":0},{"$f":"IF($C56<>\"n/a\",'QRY - ExportPupilNumbersbyYearG'!T35,\"n/a\")","v":7},{"$f":"IF($C56<>\"n/a\",'QRY - ExportPupilNumbersbyYearG'!U35,\"n/a\")","v":17},{"$f":"IF($C56<>\"n/a\",'QRY - ExportPupilNumbersbyYearG'!V35,\"n/a\")","v":40},{"$f":"IF($C56<>\"n/a\",'QRY - ExportPupilNumbersbyYearG'!W35,\"n/a\")","v":42},{"$f":"IF($C56<>\"n/a\",'QRY - ExportPupilNumbersbyYearG'!X35,\"n/a\")","v":37},{"$f":"IF($C56<>\"n/a\",'QRY - ExportPupilNumbersbyYearG'!Y35,\"n/a\")","v":45},{"$f":"IF($C56<>\"n/a\",'QRY - ExportPupilNumbersbyYearG'!Z35,\"n/a\")","v":58},{"$f":"IF($C56<>\"n/a\",'QRY - ExportPupilNumbersbyYearG'!AA35,\"n/a\")","v":0},{"$f":"IF($C56<>\"n/a\",'QRY - ExportPupilNumbersbyYearG'!AB35,\"n/a\")","v":0},{"$f":"IF($C56<>\"n/a\",'QRY - ExportPupilNumbersbyYearG'!AC35,\"n/a\")","v":0},{"$f":"IF($C56<>\"n/a\",'QRY - ExportPupilNumbersbyYearG'!AD35,\"n/a\")","v":0},{"$f":"IF($C56<>\"n/a\",'QRY - ExportPupilNumbersbyYearG'!AE35,\"n/a\")","v":0},{"$f":"IF($C56<>\"n/a\",'QRY - ExportPupilNumbersbyYearG'!AF35,\"n/a\")","v":0},{"$f":"IF($C56<>\"n/a\",'QRY - ExportPupilNumbersbyYearG'!AG35,\"n/a\")","v":0},{"$f":"IF($C56<>\"n/a\",'QRY - ExportPupilNumbersbyYearG'!AH35,\"n/a\")","v":0},{"$f":"IF($C56<>\"n/a\",'QRY - ExportPupilNumbersbyYearG'!AI35,\"n/a\")","v":0},{"$f":"IF($C56<>\"n/a\",'QRY - ExportPupilNumbersbyYearG'!AJ35,\"n/a\")","v":0},{"$f":"IF($C56<>\"n/a\",'QRY - ExportPupilNumbersbyYearG'!AK35,\"n/a\")","v":0},222,246,64,79,103,0,0,0]
[null,null,{"$f":"IF('QRY - ExportPupilNumbersbyYearG'!K36 =\"\",\"n/a\",'QRY - ExportPupilNumbersbyYearG'!K36)","v":"Kings Court First School"},{"$f":"IF($C57=\"n/a\",\"\",'QRY - ExportPupilNumbersbyYearG'!E36)","v":"Windsor"},{"$f":"IF($C57=\"n/a\",\"\",'QRY - ExportPupilNumbersbyYearG'!F36)","v":"Windsor Villages"},{"$f":"IF($C57=\"n/a\",\"\",'QRY - ExportPupilNumbersbyYearG'!G36)","v":"Old Windsor"},{"$f":"IF($C57=\"n/a\",\"\",'QRY - ExportPupilNumbersbyYearG'!I36)","v":"Primary"},{"$f":"IF($C57=\"n/a\",\"\",'QRY - ExportPupilNumbersbyYearG'!H36)","v":"Three Tier"},{"$f":"IF($C57=\"n/a\",\"\",'QRY - ExportPupilNumbersbyYearG'!J36)","v":"First"},{"$f":"IF($C57=\"n/a\",\"\",'QRY - ExportPupilNumbersbyYearG'!L36)","v":"Community"},{"$f":"IF('QRY - ExportPupilNumbersbyYearG'!Q36=\"\",\"\",'QRY - ExportPupilNumbersbyYearG'!Q36)","v":""},{"$f":"IF($C57=\"n/a\",\"\",'QRY - ExportPupilNumbersbyYearG'!M36)","v":"None"},{"$f":"IF($C57<>\"n/a\",'QRY - ExportPupilNumbersbyYearG'!R36,\"n/a\")","v":0},{"$f":"IF($C57<>\"n/a\",'QRY - ExportPupilNumbersbyYearG'!S36,\"n/a\")","v":0},{"$f":"IF($C57<>\"n/a\",'QRY - ExportPupilNumbersbyYearG'!T36,\"n/a\")","v":0},{"$f":"IF($C57<>\"n/a\",'QRY - ExportPupilNumbersbyYearG'!U36,\"n/a\")","v":0},{"$f":"IF($C57<>\"n/a\",'QRY - ExportPupilNumbersbyYearG'!V36,\"n/a\")","v":26},{"$f":"IF($C57<>\"n/a\",'QRY - ExportPupilNumbersbyYearG'!W36,\"n/a\")","v":37},{"$f":"IF($C57<>\"n/a\",'QRY - ExportPupilNumbersbyYearG'!X36,\"n/a\")","v":41},{"$f":"IF($C57<>\"n/a\",'QRY - ExportPupilNumbersbyYearG'!Y36,\"n/a\")","v":36},{"$f":"IF($C57<>\"n/a\",'QRY - ExportPupilNumbersbyYearG'!Z36,\"n/a\")","v":39},{"$f":"IF($C57<>\"n/a\",'QRY - ExportPupilNumbersbyYearG'!AA36,\"n/a\")","v":0},{"$f":"IF($C57<>\"n/a\",'QRY - ExportPupilNumbersbyYearG'!AB36,\"n/a\")","v":0},{"$f":"IF($C57<>\"n/a\",'QRY - ExportPupilNumbersbyYearG'!AC36,\"n/a\")","v":0},{"$f":"IF($C57<>\"n/a\",'QRY - ExportPupilNumbersbyYearG'!AD36,\"n/a\")","v":0},{"$f":"IF($C57<>\"n/a\",'QRY - ExportPupilNumbersbyYearG'!AE36,\"n/a\")","v":0},{"$f":"IF($C57<>\"n/a\",'QRY - ExportPupilNumbersbyYearG'!AF36,\"n/a\")","v":0},{"$f":"IF($C57<>\"n/a\",'QRY - ExportPupilNumbersbyYearG'!AG36,\"n/a\")","v":0},{"$f":"IF($C57<>\"n/a\",'QRY - ExportPupilNumbersbyYearG'!AH36,\"n/a\")","v":0},{"$f":"IF($C57<>\"n/a\",'QRY - ExportPupilNumbersbyYearG'!AI36,\"n/a\")","v":0},{"$f":"IF($C57<>\"n/a\",'QRY - ExportPupilNumbersbyYearG'!AJ36,\"n/a\")","v":0},{"$f":"IF($C57<>\"n/a\",'QRY - ExportPupilNumbersbyYearG'!AK36,\"n/a\")","v":0},179,179,26,78,75,0,0,0]
[null,null,{"$f":"IF('QRY - ExportPupilNumbersbyYearG'!K37 =\"\",\"n/a\",'QRY - ExportPupilNumbersbyYearG'!K37)","v":"Knowl Hill C of E Academy"},{"$f":"IF($C58=\"n/a\",\"\",'QRY - ExportPupilNumbersbyYearG'!E37)","v":"Maidenhead"},{"$f":"IF($C58=\"n/a\",\"\",'QRY - ExportPupilNumbersbyYearG'!F37)","v":"Maidenhead Villages"},{"$f":"IF($C58=\"n/a\",\"\",'QRY - ExportPupilNumbersbyYearG'!G37)","v":"Knowl Hill"},{"$f":"IF($C58=\"n/a\",\"\",'QRY - ExportPupilNumbersbyYearG'!I37)","v":"Primary"},{"$f":"IF($C58=\"n/a\",\"\",'QRY - ExportPupilNumbersbyYearG'!H37)","v":"Two Tier"},{"$f":"IF($C58=\"n/a\",\"\",'QRY - ExportPupilNumbersbyYearG'!J37)","v":"JMI"},{"$f":"IF($C58=\"n/a\",\"\",'QRY - ExportPupilNumbersbyYearG'!L37)","v":"Academy"},{"$f":"IF('QRY - ExportPupilNumbersbyYearG'!Q37=\"\",\"\",'QRY - ExportPupilNumbersbyYearG'!Q37)","v":"2014-09-01"},{"$f":"IF($C58=\"n/a\",\"\",'QRY - ExportPupilNumbersbyYearG'!M37)","v":"Church of England"},{"$f":"IF($C58<>\"n/a\",'QRY - ExportPupilNumbersbyYearG'!R37,\"n/a\")","v":0},{"$f":"IF($C58<>\"n/a\",'QRY - ExportPupilNumbersbyYearG'!S37,\"n/a\")","v":0},{"$f":"IF($C58<>\"n/a\",'QRY - ExportPupilNumbersbyYearG'!T37,\"n/a\")","v":0},{"$f":"IF($C58<>\"n/a\",'QRY - ExportPupilNumbersbyYearG'!U37,\"n/a\")","v":0},{"$f":"IF($C58<>\"n/a\",'QRY - ExportPupilNumbersbyYearG'!V37,\"n/a\")","v":18},{"$f":"IF($C58<>\"n/a\",'QRY - ExportPupilNumbersbyYearG'!W37,\"n/a\")","v":25},{"$f":"IF($C58<>\"n/a\",'QRY - ExportPupilNumbersbyYearG'!X37,\"n/a\")","v":24},{"$f":"IF($C58<>\"n/a\",'QRY - ExportPupilNumbersbyYearG'!Y37,\"n/a\")","v":23},{"$f":"IF($C58<>\"n/a\",'QRY - ExportPupilNumbersbyYearG'!Z37,\"n/a\")","v":26},{"$f":"IF($C58<>\"n/a\",'QRY - ExportPupilNumbersbyYearG'!AA37,\"n/a\")","v":20},{"$f":"IF($C58<>\"n/a\",'QRY - ExportPupilNumbersbyYearG'!AB37,\"n/a\")","v":16},{"$f":"IF($C58<>\"n/a\",'QRY - ExportPupilNumbersbyYearG'!AC37,\"n/a\")","v":0},{"$f":"IF($C58<>\"n/a\",'QRY - ExportPupilNumbersbyYearG'!AD37,\"n/a\")","v":0},{"$f":"IF($C58<>\"n/a\",'QRY - ExportPupilNumbersbyYearG'!AE37,\"n/a\")","v":0},{"$f":"IF($C58<>\"n/a\",'QRY - ExportPupilNumbersbyYearG'!AF37,\"n/a\")","v":0},{"$f":"IF($C58<>\"n/a\",'QRY - ExportPupilNumbersbyYearG'!AG37,\"n/a\")","v":0},{"$f":"IF($C58<>\"n/a\",'QRY - ExportPupilNumbersbyYearG'!AH37,\"n/a\")","v":0},{"$f":"IF($C58<>\"n/a\",'QRY - ExportPupilNumbersbyYearG'!AI37,\"n/a\")","v":0},{"$f":"IF($C58<>\"n/a\",'QRY - ExportPupilNumbersbyYearG'!AJ37,\"n/a\")","v":0},{"$f":"IF($C58<>\"n/a\",'QRY - ExportPupilNumbersbyYearG'!AK37,\"n/a\")","v":0},152,152,18,49,85,0,0,0]
[null,null,{"$f":"IF('QRY - ExportPupilNumbersbyYearG'!K38 =\"\",\"n/a\",'QRY - ExportPupilNumbersbyYearG'!K38)","v":"Larchfield Primary and Nursery School"},{"$f":"IF($C59=\"n/a\",\"\",'QRY - ExportPupilNumbersbyYearG'!E38)","v":"Maidenhead"},{"$f":"IF($C59=\"n/a\",\"\",'QRY - ExportPupilNumbersbyYearG'!F38)","v":"Central Maidenhead"},{"$f":"IF($C59=\"n/a\",\"\",'QRY - ExportPupilNumbersbyYearG'!G38)","v":"Larchfield West"},{"$f":"IF($C59=\"n/a\",\"\",'QRY - ExportPupilNumbersbyYearG'!I38)","v":"Primary"},{"$f":"IF($C59=\"n/a\",\"\",'QRY - ExportPupilNumbersbyYearG'!H38)","v":"Two Tier"},{"$f":"IF($C59=\"n/a\",\"\",'QRY - ExportPupilNumbersbyYearG'!J38)","v":"JMI"},{"$f":"IF($C59=\"n/a\",\"\",'QRY - ExportPupilNumbersbyYearG'!L38)","v":"Community"},{"$f":"IF('QRY - ExportPupilNumbersbyYearG'!Q38=\"\",\"\",'QRY - ExportPupilNumbersbyYearG'!Q38)","v":""},{"$f":"IF($C59=\"n/a\",\"\",'QRY - ExportPupilNumbersbyYearG'!M38)","v":"None"},{"$f":"IF($C59<>\"n/a\",'QRY - ExportPupilNumbersbyYearG'!R38,\"n/a\")","v":0},{"$f":"IF($C59<>\"n/a\",'QRY - ExportPupilNumbersbyYearG'!S38,\"n/a\")","v":0},{"$f":"IF($C59<>\"n/a\",'QRY - ExportPupilNumbersbyYearG'!T38,\"n/a\")","v":8},{"$f":"IF($C59<>\"n/a\",'QRY - ExportPupilNumbersbyYearG'!U38,\"n/a\")","v":21},{"$f":"IF($C59<>\"n/a\",'QRY - ExportPupilNumbersbyYearG'!V38,\"n/a\")","v":30},{"$f":"IF($C59<>\"n/a\",'QRY - ExportPupilNumbersbyYearG'!W38,\"n/a\")","v":27},{"$f":"IF($C59<>\"n/a\",'QRY - ExportPupilNumbersbyYearG'!X38,\"n/a\")","v":30},{"$f":"IF($C59<>\"n/a\",'QRY - ExportPupilNumbersbyYearG'!Y38,\"n/a\")","v":27},{"$f":"IF($C59<>\"n/a\",'QRY - ExportPupilNumbersbyYearG'!Z38,\"n/a\")","v":30},{"$f":"IF($C59<>\"n/a\",'QRY - ExportPupilNumbersbyYearG'!AA38,\"n/a\")","v":28},{"$f":"IF($C59<>\"n/a\",'QRY - ExportPupilNumbersbyYearG'!AB38,\"n/a\")","v":28},{"$f":"IF($C59<>\"n/a\",'QRY - ExportPupilNumbersbyYearG'!AC38,\"n/a\")","v":0},{"$f":"IF($C59<>\"n/a\",'QRY - ExportPupilNumbersbyYearG'!AD38,\"n/a\")","v":0},{"$f":"IF($C59<>\"n/a\",'QRY - ExportPupilNumbersbyYearG'!AE38,\"n/a\")","v":0},{"$f":"IF($C59<>\"n/a\",'QRY - ExportPupilNumbersbyYearG'!AF38,\"n/a\")","v":0},{"$f":"IF($C59<>\"n/a\",'QRY - ExportPupilNumbersbyYearG'!AG38,\"n/a\")","v":0},{"$f":"IF($C59<>\"n/a\",'QRY - ExportPupilNumbersbyYearG'!AH38,\"n/a\")","v":0},{"$f":"IF($C59<>\"n/a\",'QRY - ExportPupilNumbersbyYearG'!AI38,\"n/a\")","v":0},{"$f":"IF($C59<>\"n/a\",'QRY - ExportPupilNumbersbyYearG'!AJ38,\"n/a\")","v":0},{"$f":"IF($C59<>\"n/a\",'QRY - ExportPupilNumbersbyYearG'!AK38,\"n/a\")","v":0},200,229,59,57,113,0,0,0]
[null,null,{"$f":"IF('QRY - ExportPupilNumbersbyYearG'!K39 =\"\",\"n/a\",'QRY - ExportPupilNumbersbyYearG'!K39)","v":"Lowbrook Academy"},{"$f":"IF($C60=\"n/a\",\"\",'QRY - ExportPupilNumbersbyYearG'!E39)","v":"Maidenhead"},{"$f":"IF($C60=\"n/a\",\"\",'QRY - ExportPupilNumbersbyYearG'!F39)","v":"South West Maidenhead"},{"$f":"IF($C60=\"n/a\",\"\",'QRY - ExportPupilNumbersbyYearG'!G39)","v":"Lowbrook"},{"$f":"IF($C60=\"n/a\",\"\",'QRY - ExportPupilNumbersbyYearG'!I39)","v":"Primary"},{"$f":"IF($C60=\"n/a\",\"\",'QRY - ExportPupilNumbersbyYearG'!H39)","v":"Two Tier"},{"$f":"IF($C60=\"n/a\",\"\",'QRY - ExportPupilNumbersbyYearG'!J39)","v":"JMI"},{"$f":"IF($C60=\"n/a\",\"\",'QRY - ExportPupilNumbersbyYearG'!L39)","v":"Academy"},{"$f":"IF('QRY - ExportPupilNumbersbyYearG'!Q39=\"\",\"\",'QRY - ExportPupilNumbersbyYearG'!Q39)","v":"2011-04-01"},{"$f":"IF($C60=\"n/a\",\"\",'QRY - ExportPupilNumbersbyYearG'!M39)","v":"None"},{"$f":"IF($C60<>\"n/a\",'QRY - ExportPupilNumbersbyYearG'!R39,\"n/a\")","v":0},{"$f":"IF($C60<>\"n/a\",'QRY - ExportPupilNumbersbyYearG'!S39,\"n/a\")","v":0},{"$f":"IF($C60<>\"n/a\",'QRY - ExportPupilNumbersbyYearG'!T39,\"n/a\")","v":0},{"$f":"IF($C60<>\"n/a\",'QRY - ExportPupilNumbersbyYearG'!U39,\"n/a\")","v":0},{"$f":"IF($C60<>\"n/a\",'QRY - ExportPupilNumbersbyYearG'!V39,\"n/a\")","v":59},{"$f":"IF($C60<>\"n/a\",'QRY - ExportPupilNumbersbyYearG'!W39,\"n/a\")","v":30},{"$f":"IF($C60<>\"n/a\",'QRY - ExportPupilNumbersbyYearG'!X39,\"n/a\")","v":30},{"$f":"IF($C60<>\"n/a\",'QRY - ExportPupilNumbersbyYearG'!Y39,\"n/a\")","v":30},{"$f":"IF($C60<>\"n/a\",'QRY - ExportPupilNumbersbyYearG'!Z39,\"n/a\")","v":60},{"$f":"IF($C60<>\"n/a\",'QRY - ExportPupilNumbersbyYearG'!AA39,\"n/a\")","v":60},{"$f":"IF($C60<>\"n/a\",'QRY - ExportPupilNumbersbyYearG'!AB39,\"n/a\")","v":58},{"$f":"IF($C60<>\"n/a\",'QRY - ExportPupilNumbersbyYearG'!AC39,\"n/a\")","v":0},{"$f":"IF($C60<>\"n/a\",'QRY - ExportPupilNumbersbyYearG'!AD39,\"n/a\")","v":0},{"$f":"IF($C60<>\"n/a\",'QRY - ExportPupilNumbersbyYearG'!AE39,\"n/a\")","v":0},{"$f":"IF($C60<>\"n/a\",'QRY - ExportPupilNumbersbyYearG'!AF39,\"n/a\")","v":0},{"$f":"IF($C60<>\"n/a\",'QRY - ExportPupilNumbersbyYearG'!AG39,\"n/a\")","v":0},{"$f":"IF($C60<>\"n/a\",'QRY - ExportPupilNumbersbyYearG'!AH39,\"n/a\")","v":0},{"$f":"IF($C60<>\"n/a\",'QRY - ExportPupilNumbersbyYearG'!AI39,\"n/a\")","v":0},{"$f":"IF($C60<>\"n/a\",'QRY - ExportPupilNumbersbyYearG'!AJ39,\"n/a\")","v":0},{"$f":"IF($C60<>\"n/a\",'QRY - ExportPupilNumbersbyYearG'!AK39,\"n/a\")","v":0},327,327,59,60,208,0,0,0]
[null,null,{"$f":"IF('QRY - ExportPupilNumbersbyYearG'!K40 =\"\",\"n/a\",'QRY - ExportPupilNumbersbyYearG'!K40)","v":"Maidenhead Nursery School"},{"$f":"IF($C61=\"n/a\",\"\",'QRY - ExportPupilNumbersbyYearG'!E40)","v":"Maidenhead"},{"$f":"IF($C61=\"n/a\",\"\",'QRY - ExportPupilNumbersbyYearG'!F40)","v":"North East Maidenhead"},{"$f":"IF($C61=\"n/a\",\"\",'QRY - ExportPupilNumbersbyYearG'!G40)","v":"North Town"},{"$f":"IF($C61=\"n/a\",\"\",'QRY - ExportPupilNumbersbyYearG'!I40)","v":"Early Years"},{"$f":"IF($C61=\"n/a\",\"\",'QRY - ExportPupilNumbersbyYearG'!H40)","v":"NA"},{"$f":"IF($C61=\"n/a\",\"\",'QRY - ExportPupilNumbersbyYearG'!J40)","v":"Nursery School"},{"$f":"IF($C61=\"n/a\",\"\",'QRY - ExportPupilNumbersbyYearG'!L40)","v":"Community"},{"$f":"IF('QRY - ExportPupilNumbersbyYearG'!Q40=\"\",\"\",'QRY - ExportPupilNumbersbyYearG'!Q40)","v":""},{"$f":"IF($C61=\"n/a\",\"\",'QRY - ExportPupilNumbersbyYearG'!M40)","v":"None"},{"$f":"IF($C61<>\"n/a\",'QRY - ExportPupilNumbersbyYearG'!R40,\"n/a\")","v":1},{"$f":"IF($C61<>\"n/a\",'QRY - ExportPupilNumbersbyYearG'!S40,\"n/a\")","v":1},{"$f":"IF($C61<>\"n/a\",'QRY - ExportPupilNumbersbyYearG'!T40,\"n/a\")","v":18},{"$f":"IF($C61<>\"n/a\",'QRY - ExportPupilNumbersbyYearG'!U40,\"n/a\")","v":47},{"$f":"IF($C61<>\"n/a\",'QRY - ExportPupilNumbersbyYearG'!V40,\"n/a\")","v":0},{"$f":"IF($C61<>\"n/a\",'QRY - ExportPupilNumbersbyYearG'!W40,\"n/a\")","v":0},{"$f":"IF($C61<>\"n/a\",'QRY - ExportPupilNumbersbyYearG'!X40,\"n/a\")","v":0},{"$f":"IF($C61<>\"n/a\",'QRY - ExportPupilNumbersbyYearG'!Y40,\"n/a\")","v":0},{"$f":"IF($C61<>\"n/a\",'QRY - ExportPupilNumbersbyYearG'!Z40,\"n/a\")","v":0},{"$f":"IF($C61<>\"n/a\",'QRY - ExportPupilNumbersbyYearG'!AA40,\"n/a\")","v":0},{"$f":"IF($C61<>\"n/a\",'QRY - ExportPupilNumbersbyYearG'!AB40,\"n/a\")","v":0},{"$f":"IF($C61<>\"n/a\",'QRY - ExportPupilNumbersbyYearG'!AC40,\"n/a\")","v":0},{"$f":"IF($C61<>\"n/a\",'QRY - ExportPupilNumbersbyYearG'!AD40,\"n/a\")","v":0},{"$f":"IF($C61<>\"n/a\",'QRY - ExportPupilNumbersbyYearG'!AE40,\"n/a\")","v":0},{"$f":"IF($C61<>\"n/a\",'QRY - ExportPupilNumbersbyYearG'!AF40,\"n/a\")","v":0},{"$f":"IF($C61<>\"n/a\",'QRY - ExportPupilNumbersbyYearG'!AG40,\"n/a\")","v":0},{"$f":"IF($C61<>\"n/a\",'QRY - ExportPupilNumbersbyYearG'!AH40,\"n/a\")","v":0},{"$f":"IF($C61<>\"n/a\",'QRY - ExportPupilNumbersbyYearG'!AI40,\"n/a\")","v":0},{"$f":"IF($C61<>\"n/a\",'QRY - ExportPupilNumbersbyYearG'!AJ40,\"n/a\")","v":0},{"$f":"IF($C61<>\"n/a\",'QRY - ExportPupilNumbersbyYearG'!AK40,\"n/a\")","v":0},0,67,67,0,0,0,0,0]
[null,null,{"$f":"IF('QRY - ExportPupilNumbersbyYearG'!K41 =\"\",\"n/a\",'QRY - ExportPupilNumbersbyYearG'!K41)","v":"Manor Green School"},{"$f":"IF($C62=\"n/a\",\"\",'QRY - ExportPupilNumbersbyYearG'!E41)","v":"Maidenhead"},{"$f":"IF($C62=\"n/a\",\"\",'QRY - ExportPupilNumbersbyYearG'!F41)","v":"South West Maidenhead"},{"$f":"IF($C62=\"n/a\",\"\",'QRY - ExportPupilNumbersbyYearG'!G41)","v":"Lowbrook"},{"$f":"IF($C62=\"n/a\",\"\",'QRY - ExportPupilNumbersbyYearG'!I41)","v":"All-through"},{"$f":"IF($C62=\"n/a\",\"\",'QRY - ExportPupilNumbersbyYearG'!H41)","v":"NA"},{"$f":"IF($C62=\"n/a\",\"\",'QRY - ExportPupilNumbersbyYearG'!J41)","v":"All Years"},{"$f":"IF($C62=\"n/a\",\"\",'QRY - ExportPupilNumbersbyYearG'!L41)","v":"Community"},{"$f":"IF('QRY - ExportPupilNumbersbyYearG'!Q41=\"\",\"\",'QRY - ExportPupilNumbersbyYearG'!Q41)","v":""},{"$f":"IF($C62=\"n/a\",\"\",'QRY - ExportPupilNumbersbyYearG'!M41)","v":"None"},{"$f":"IF($C62<>\"n/a\",'QRY - ExportPupilNumbersbyYearG'!R41,\"n/a\")","v":0},{"$f":"IF($C62<>\"n/a\",'QRY - ExportPupilNumbersbyYearG'!S41,\"n/a\")","v":0},{"$f":"IF($C62<>\"n/a\",'QRY - ExportPupilNumbersbyYearG'!T41,\"n/a\")","v":0},{"$f":"IF($C62<>\"n/a\",'QRY - ExportPupilNumbersbyYearG'!U41,\"n/a\")","v":1},{"$f":"IF($C62<>\"n/a\",'QRY - ExportPupilNumbersbyYearG'!V41,\"n/a\")","v":8},{"$f":"IF($C62<>\"n/a\",'QRY - ExportPupilNumbersbyYearG'!W41,\"n/a\")","v":13},{"$f":"IF($C62<>\"n/a\",'QRY - ExportPupilNumbersbyYearG'!X41,\"n/a\")","v":12},{"$f":"IF($C62<>\"n/a\",'QRY - ExportPupilNumbersbyYearG'!Y41,\"n/a\")","v":14},{"$f":"IF($C62<>\"n/a\",'QRY - ExportPupilNumbersbyYearG'!Z41,\"n/a\")","v":19},{"$f":"IF($C62<>\"n/a\",'QRY - ExportPupilNumbersbyYearG'!AA41,\"n/a\")","v":20},{"$f":"IF($C62<>\"n/a\",'QRY - ExportPupilNumbersbyYearG'!AB41,\"n/a\")","v":30},{"$f":"IF($C62<>\"n/a\",'QRY - ExportPupilNumbersbyYearG'!AC41,\"n/a\")","v":21},{"$f":"IF($C62<>\"n/a\",'QRY - ExportPupilNumbersbyYearG'!AD41,\"n/a\")","v":31},{"$f":"IF($C62<>\"n/a\",'QRY - ExportPupilNumbersbyYearG'!AE41,\"n/a\")","v":17},{"$f":"IF($C62<>\"n/a\",'QRY - ExportPupilNumbersbyYearG'!AF41,\"n/a\")","v":26},{"$f":"IF($C62<>\"n/a\",'QRY - ExportPupilNumbersbyYearG'!AG41,\"n/a\")","v":26},{"$f":"IF($C62<>\"n/a\",'QRY - ExportPupilNumbersbyYearG'!AH41,\"n/a\")","v":18},{"$f":"IF($C62<>\"n/a\",'QRY - ExportPupilNumbersbyYearG'!AI41,\"n/a\")","v":10},{"$f":"IF($C62<>\"n/a\",'QRY - ExportPupilNumbersbyYearG'!AJ41,\"n/a\")","v":8},{"$f":"IF($C62<>\"n/a\",'QRY - ExportPupilNumbersbyYearG'!AK41,\"n/a\")","v":0},273,274,9,25,83,69,52,36]
[null,null,{"$f":"IF('QRY - ExportPupilNumbersbyYearG'!K42 =\"\",\"n/a\",'QRY - ExportPupilNumbersbyYearG'!K42)","v":"Newlands Girls' School"},{"$f":"IF($C63=\"n/a\",\"\",'QRY - ExportPupilNumbersbyYearG'!E42)","v":"Maidenhead"},{"$f":"IF($C63=\"n/a\",\"\",'QRY - ExportPupilNumbersbyYearG'!F42)","v":"North West Maidenhead"},{"$f":"IF($C63=\"n/a\",\"\",'QRY - ExportPupilNumbersbyYearG'!G42)","v":"Highway"},{"$f":"IF($C63=\"n/a\",\"\",'QRY - ExportPupilNumbersbyYearG'!I42)","v":"Secondary"},{"$f":"IF($C63=\"n/a\",\"\",'QRY - ExportPupilNumbersbyYearG'!H42)","v":"Two Tier"},{"$f":"IF($C63=\"n/a\",\"\",'QRY - ExportPupilNumbersbyYearG'!J42)","v":"Secondary"},{"$f":"IF($C63=\"n/a\",\"\",'QRY - ExportPupilNumbersbyYearG'!L42)","v":"Academy"},{"$f":"IF('QRY - ExportPupilNumbersbyYearG'!Q42=\"\",\"\",'QRY - ExportPupilNumbersbyYearG'!Q42)","v":"2015-10-01"},{"$f":"IF($C63=\"n/a\",\"\",'QRY - ExportPupilNumbersbyYearG'!M42)","v":"None"},{"$f":"IF($C63<>\"n/a\",'QRY - ExportPupilNumbersbyYearG'!R42,\"n/a\")","v":0},{"$f":"IF($C63<>\"n/a\",'QRY - ExportPupilNumbersbyYearG'!S42,\"n/a\")","v":0},{"$f":"IF($C63<>\"n/a\",'QRY - ExportPupilNumbersbyYearG'!T42,\"n/a\")","v":0},{"$f":"IF($C63<>\"n/a\",'QRY - ExportPupilNumbersbyYearG'!U42,\"n/a\")","v":0},{"$f":"IF($C63<>\"n/a\",'QRY - ExportPupilNumbersbyYearG'!V42,\"n/a\")","v":0},{"$f":"IF($C63<>\"n/a\",'QRY - ExportPupilNumbersbyYearG'!W42,\"n/a\")","v":0},{"$f":"IF($C63<>\"n/a\",'QRY - ExportPupilNumbersbyYearG'!X42,\"n/a\")","v":0},{"$f":"IF($C63<>\"n/a\",'QRY - ExportPupilNumbersbyYearG'!Y42,\"n/a\")","v":0},{"$f":"IF($C63<>\"n/a\",'QRY - ExportPupilNumbersbyYearG'!Z42,\"n/a\")","v":0},{"$f":"IF($C63<>\"n/a\",'QRY - ExportPupilNumbersbyYearG'!AA42,\"n/a\")","v":0},{"$f":"IF($C63<>\"n/a\",'QRY - ExportPupilNumbersbyYearG'!AB42,\"n/a\")","v":0},{"$f":"IF($C63<>\"n/a\",'QRY - ExportPupilNumbersbyYearG'!AC42,\"n/a\")","v":189},{"$f":"IF($C63<>\"n/a\",'QRY - ExportPupilNumbersbyYearG'!AD42,\"n/a\")","v":192},{"$f":"IF($C63<>\"n/a\",'QRY - ExportPupilNumbersbyYearG'!AE42,\"n/a\")","v":191},{"$f":"IF($C63<>\"n/a\",'QRY - ExportPupilNumbersbyYearG'!AF42,\"n/a\")","v":187},{"$f":"IF($C63<>\"n/a\",'QRY - ExportPupilNumbersbyYearG'!AG42,\"n/a\")","v":191},{"$f":"IF($C63<>\"n/a\",'QRY - ExportPupilNumbersbyYearG'!AH42,\"n/a\")","v":129},{"$f":"IF($C63<>\"n/a\",'QRY - ExportPupilNumbersbyYearG'!AI42,\"n/a\")","v":106},{"$f":"IF($C63<>\"n/a\",'QRY - ExportPupilNumbersbyYearG'!AJ42,\"n/a\")","v":0},{"$f":"IF($C63<>\"n/a\",'QRY - ExportPupilNumbersbyYearG'!AK42,\"n/a\")","v":0},1185,1185,0,0,0,572,378,235]
[null,null,{"$f":"IF('QRY - ExportPupilNumbersbyYearG'!K43 =\"\",\"n/a\",'QRY - ExportPupilNumbersbyYearG'!K43)","v":"Oakfield First School"},{"$f":"IF($C64=\"n/a\",\"\",'QRY - ExportPupilNumbersbyYearG'!E43)","v":"Windsor"},{"$f":"IF($C64=\"n/a\",\"\",'QRY - ExportPupilNumbersbyYearG'!F43)","v":"East Windsor"},{"$f":"IF($C64=\"n/a\",\"\",'QRY - ExportPupilNumbersbyYearG'!G43)","v":"Oakfield"},{"$f":"IF($C64=\"n/a\",\"\",'QRY - ExportPupilNumbersbyYearG'!I43)","v":"Primary"},{"$f":"IF($C64=\"n/a\",\"\",'QRY - ExportPupilNumbersbyYearG'!H43)","v":"Three Tier"},{"$f":"IF($C64=\"n/a\",\"\",'QRY - ExportPupilNumbersbyYearG'!J43)","v":"First"},{"$f":"IF($C64=\"n/a\",\"\",'QRY - ExportPupilNumbersbyYearG'!L43)","v":"Community"},{"$f":"IF('QRY - ExportPupilNumbersbyYearG'!Q43=\"\",\"\",'QRY - ExportPupilNumbersbyYearG'!Q43)","v":""},{"$f":"IF($C64=\"n/a\",\"\",'QRY - ExportPupilNumbersbyYearG'!M43)","v":"None"},{"$f":"IF($C64<>\"n/a\",'QRY - ExportPupilNumbersbyYearG'!R43,\"n/a\")","v":0},{"$f":"IF($C64<>\"n/a\",'QRY - ExportPupilNumbersbyYearG'!S43,\"n/a\")","v":0},{"$f":"IF($C64<>\"n/a\",'QRY - ExportPupilNumbersbyYearG'!T43,\"n/a\")","v":0},{"$f":"IF($C64<>\"n/a\",'QRY - ExportPupilNumbersbyYearG'!U43,\"n/a\")","v":0},{"$f":"IF($C64<>\"n/a\",'QRY - ExportPupilNumbersbyYearG'!V43,\"n/a\")","v":59},{"$f":"IF($C64<>\"n/a\",'QRY - ExportPupilNumbersbyYearG'!W43,\"n/a\")","v":56},{"$f":"IF($C64<>\"n/a\",'QRY - ExportPupilNumbersbyYearG'!X43,\"n/a\")","v":60},{"$f":"IF($C64<>\"n/a\",'QRY - ExportPupilNumbersbyYearG'!Y43,\"n/a\")","v":60},{"$f":"IF($C64<>\"n/a\",'QRY - ExportPupilNumbersbyYearG'!Z43,\"n/a\")","v":54},{"$f":"IF($C64<>\"n/a\",'QRY - ExportPupilNumbersbyYearG'!AA43,\"n/a\")","v":0},{"$f":"IF($C64<>\"n/a\",'QRY - ExportPupilNumbersbyYearG'!AB43,\"n/a\")","v":0},{"$f":"IF($C64<>\"n/a\",'QRY - ExportPupilNumbersbyYearG'!AC43,\"n/a\")","v":0},{"$f":"IF($C64<>\"n/a\",'QRY - ExportPupilNumbersbyYearG'!AD43,\"n/a\")","v":0},{"$f":"IF($C64<>\"n/a\",'QRY - ExportPupilNumbersbyYearG'!AE43,\"n/a\")","v":0},{"$f":"IF($C64<>\"n/a\",'QRY - ExportPupilNumbersbyYearG'!AF43,\"n/a\")","v":0},{"$f":"IF($C64<>\"n/a\",'QRY - ExportPupilNumbersbyYearG'!AG43,\"n/a\")","v":0},{"$f":"IF($C64<>\"n/a\",'QRY - ExportPupilNumbersbyYearG'!AH43,\"n/a\")","v":0},{"$f":"IF($C64<>\"n/a\",'QRY - ExportPupilNumbersbyYearG'!AI43,\"n/a\")","v":0},{"$f":"IF($C64<>\"n/a\",'QRY - ExportPupilNumbersbyYearG'!AJ43,\"n/a\")","v":0},{"$f":"IF($C64<>\"n/a\",'QRY - ExportPupilNumbersbyYearG'!AK43,\"n/a\")","v":0},289,289,59,116,114,0,0,0]
[null,null,{"$f":"IF('QRY - ExportPupilNumbersbyYearG'!K44 =\"\",\"n/a\",'QRY - ExportPupilNumbersbyYearG'!K44)","v":"Oldfield Primary School"},{"$f":"IF($C65=\"n/a\",\"\",'QRY - ExportPupilNumbersbyYearG'!E44)","v":"Maidenhead"},{"$f":"IF($C65=\"n/a\",\"\",'QRY - ExportPupilNumbersbyYearG'!F44)","v":"South East Maidenhead"},{"$f":"IF($C65=\"n/a\",\"\",'QRY - ExportPupilNumbersbyYearG'!G44)","v":"Fishery"},{"$f":"IF($C65=\"n/a\",\"\",'QRY - ExportPupilNumbersbyYearG'!I44)","v":"Primary"},{"$f":"IF($C65=\"n/a\",\"\",'QRY - ExportPupilNumbersbyYearG'!H44)","v":"Two Tier"},{"$f":"IF($C65=\"n/a\",\"\",'QRY - ExportPupilNumbersbyYearG'!J44)","v":"JMI"},{"$f":"IF($C65=\"n/a\",\"\",'QRY - ExportPupilNumbersbyYearG'!L44)","v":"Community"},{"$f":"IF('QRY - ExportPupilNumbersbyYearG'!Q44=\"\",\"\",'QRY - ExportPupilNumbersbyYearG'!Q44)","v":""},{"$f":"IF($C65=\"n/a\",\"\",'QRY - ExportPupilNumbersbyYearG'!M44)","v":"None"},{"$f":"IF($C65<>\"n/a\",'QRY - ExportPupilNumbersbyYearG'!R44,\"n/a\")","v":0},{"$f":"IF($C65<>\"n/a\",'QRY - ExportPupilNumbersbyYearG'!S44,\"n/a\")","v":0},{"$f":"IF($C65<>\"n/a\",'QRY - ExportPupilNumbersbyYearG'!T44,\"n/a\")","v":0},{"$f":"IF($C65<>\"n/a\",'QRY - ExportPupilNumbersbyYearG'!U44,\"n/a\")","v":0},{"$f":"IF($C65<>\"n/a\",'QRY - ExportPupilNumbersbyYearG'!V44,\"n/a\")","v":60},{"$f":"IF($C65<>\"n/a\",'QRY - ExportPupilNumbersbyYearG'!W44,\"n/a\")","v":60},{"$f":"IF($C65<>\"n/a\",'QRY - ExportPupilNumbersbyYearG'!X44,\"n/a\")","v":60},{"$f":"IF($C65<>\"n/a\",'QRY - ExportPupilNumbersbyYearG'!Y44,\"n/a\")","v":60},{"$f":"IF($C65<>\"n/a\",'QRY - ExportPupilNumbersbyYearG'!Z44,\"n/a\")","v":60},{"$f":"IF($C65<>\"n/a\",'QRY - ExportPupilNumbersbyYearG'!AA44,\"n/a\")","v":60},{"$f":"IF($C65<>\"n/a\",'QRY - ExportPupilNumbersbyYearG'!AB44,\"n/a\")","v":62},{"$f":"IF($C65<>\"n/a\",'QRY - ExportPupilNumbersbyYearG'!AC44,\"n/a\")","v":0},{"$f":"IF($C65<>\"n/a\",'QRY - ExportPupilNumbersbyYearG'!AD44,\"n/a\")","v":0},{"$f":"IF($C65<>\"n/a\",'QRY - ExportPupilNumbersbyYearG'!AE44,\"n/a\")","v":0},{"$f":"IF($C65<>\"n/a\",'QRY - ExportPupilNumbersbyYearG'!AF44,\"n/a\")","v":0},{"$f":"IF($C65<>\"n/a\",'QRY - ExportPupilNumbersbyYearG'!AG44,\"n/a\")","v":0},{"$f":"IF($C65<>\"n/a\",'QRY - ExportPupilNumbersbyYearG'!AH44,\"n/a\")","v":0},{"$f":"IF($C65<>\"n/a\",'QRY - ExportPupilNumbersbyYearG'!AI44,\"n/a\")","v":0},{"$f":"IF($C65<>\"n/a\",'QRY - ExportPupilNumbersbyYearG'!AJ44,\"n/a\")","v":0},{"$f":"IF($C65<>\"n/a\",'QRY - ExportPupilNumbersbyYearG'!AK44,\"n/a\")","v":0},422,422,60,120,242,0,0,0]
[null,null,{"$f":"IF('QRY - ExportPupilNumbersbyYearG'!K45 =\"\",\"n/a\",'QRY - ExportPupilNumbersbyYearG'!K45)","v":"RISE Alternative Learning Provision"},{"$f":"IF($C66=\"n/a\",\"\",'QRY - ExportPupilNumbersbyYearG'!E45)","v":"Maidenhead"},{"$f":"IF($C66=\"n/a\",\"\",'QRY - ExportPupilNumbersbyYearG'!F45)","v":"South East Maidenhead"},{"$f":"IF($C66=\"n/a\",\"\",'QRY - ExportPupilNumbersbyYearG'!G45)","v":"Central"},{"$f":"IF($C66=\"n/a\",\"\",'QRY - ExportPupilNumbersbyYearG'!I45)","v":"All-through"},{"$f":"IF($C66=\"n/a\",\"\",'QRY - ExportPupilNumbersbyYearG'!H45)","v":"NA"},{"$f":"IF($C66=\"n/a\",\"\",'QRY - ExportPupilNumbersbyYearG'!J45)","v":"All-through PRU"},{"$f":"IF($C66=\"n/a\",\"\",'QRY - ExportPupilNumbersbyYearG'!L45)","v":"Community"},{"$f":"IF('QRY - ExportPupilNumbersbyYearG'!Q45=\"\",\"\",'QRY - ExportPupilNumbersbyYearG'!Q45)","v":""},{"$f":"IF($C66=\"n/a\",\"\",'QRY - ExportPupilNumbersbyYearG'!M45)","v":"None"},{"$f":"IF($C66<>\"n/a\",'QRY - ExportPupilNumbersbyYearG'!R45,\"n/a\")","v":0},{"$f":"IF($C66<>\"n/a\",'QRY - ExportPupilNumbersbyYearG'!S45,\"n/a\")","v":0},{"$f":"IF($C66<>\"n/a\",'QRY - ExportPupilNumbersbyYearG'!T45,\"n/a\")","v":0},{"$f":"IF($C66<>\"n/a\",'QRY - ExportPupilNumbersbyYearG'!U45,\"n/a\")","v":0},{"$f":"IF($C66<>\"n/a\",'QRY - ExportPupilNumbersbyYearG'!V45,\"n/a\")","v":0},{"$f":"IF($C66<>\"n/a\",'QRY - ExportPupilNumbersbyYearG'!W45,\"n/a\")","v":0},{"$f":"IF($C66<>\"n/a\",'QRY - ExportPupilNumbersbyYearG'!X45,\"n/a\")","v":1},{"$f":"IF($C66<>\"n/a\",'QRY - ExportPupilNumbersbyYearG'!Y45,\"n/a\")","v":1},{"$f":"IF($C66<>\"n/a\",'QRY - ExportPupilNumbersbyYearG'!Z45,\"n/a\")","v":0},{"$f":"IF($C66<>\"n/a\",'QRY - ExportPupilNumbersbyYearG'!AA45,\"n/a\")","v":1},{"$f":"IF($C66<>\"n/a\",'QRY - ExportPupilNumbersbyYearG'!AB45,\"n/a\")","v":0},{"$f":"IF($C66<>\"n/a\",'QRY - ExportPupilNumbersbyYearG'!AC45,\"n/a\")","v":0},{"$f":"IF($C66<>\"n/a\",'QRY - ExportPupilNumbersbyYearG'!AD45,\"n/a\")","v":1},{"$f":"IF($C66<>\"n/a\",'QRY - ExportPupilNumbersbyYearG'!AE45,\"n/a\")","v":4},{"$f":"IF($C66<>\"n/a\",'QRY - ExportPupilNumbersbyYearG'!AF45,\"n/a\")","v":6},{"$f":"IF($C66<>\"n/a\",'QRY - ExportPupilNumbersbyYearG'!AG45,\"n/a\")","v":9},{"$f":"IF($C66<>\"n/a\",'QRY - ExportPupilNumbersbyYearG'!AH45,\"n/a\")","v":0},{"$f":"IF($C66<>\"n/a\",'QRY - ExportPupilNumbersbyYearG'!AI45,\"n/a\")","v":0},{"$f":"IF($C66<>\"n/a\",'QRY - ExportPupilNumbersbyYearG'!AJ45,\"n/a\")","v":0},{"$f":"IF($C66<>\"n/a\",'QRY - ExportPupilNumbersbyYearG'!AK45,\"n/a\")","v":0},23,23,0,1,2,5,15,0]
[null,null,{"$f":"IF('QRY - ExportPupilNumbersbyYearG'!K46 =\"\",\"n/a\",'QRY - ExportPupilNumbersbyYearG'!K46)","v":"Riverside Primary School and Nursery"},{"$f":"IF($C67=\"n/a\",\"\",'QRY - ExportPupilNumbersbyYearG'!E46)","v":"Maidenhead"},{"$f":"IF($C67=\"n/a\",\"\",'QRY - ExportPupilNumbersbyYearG'!F46)","v":"North East Maidenhead"},{"$f":"IF($C67=\"n/a\",\"\",'QRY - ExportPupilNumbersbyYearG'!G46)","v":"North Town"},{"$f":"IF($C67=\"n/a\",\"\",'QRY - ExportPupilNumbersbyYearG'!I46)","v":"Primary"},{"$f":"IF($C67=\"n/a\",\"\",'QRY - ExportPupilNumbersbyYearG'!H46)","v":"Two Tier"},{"$f":"IF($C67=\"n/a\",\"\",'QRY - ExportPupilNumbersbyYearG'!J46)","v":"JMI"},{"$f":"IF($C67=\"n/a\",\"\",'QRY - ExportPupilNumbersbyYearG'!L46)","v":"Community"},{"$f":"IF('QRY - ExportPupilNumbersbyYearG'!Q46=\"\",\"\",'QRY - ExportPupilNumbersbyYearG'!Q46)","v":""},{"$f":"IF($C67=\"n/a\",\"\",'QRY - ExportPupilNumbersbyYearG'!M46)","v":"None"},{"$f":"IF($C67<>\"n/a\",'QRY - ExportPupilNumbersbyYearG'!R46,\"n/a\")","v":0},{"$f":"IF($C67<>\"n/a\",'QRY - ExportPupilNumbersbyYearG'!S46,\"n/a\")","v":0},{"$f":"IF($C67<>\"n/a\",'QRY - ExportPupilNumbersbyYearG'!T46,\"n/a\")","v":21},{"$f":"IF($C67<>\"n/a\",'QRY - ExportPupilNumbersbyYearG'!U46,\"n/a\")","v":28},{"$f":"IF($C67<>\"n/a\",'QRY - ExportPupilNumbersbyYearG'!V46,\"n/a\")","v":54},{"$f":"IF($C67<>\"n/a\",'QRY - ExportPupilNumbersbyYearG'!W46,\"n/a\")","v":48},{"$f":"IF($C67<>\"n/a\",'QRY - ExportPupilNumbersbyYearG'!X46,\"n/a\")","v":46},{"$f":"IF($C67<>\"n/a\",'QRY - ExportPupilNumbersbyYearG'!Y46,\"n/a\")","v":57},{"$f":"IF($C67<>\"n/a\",'QRY - ExportPupilNumbersbyYearG'!Z46,\"n/a\")","v":58},{"$f":"IF($C67<>\"n/a\",'QRY - ExportPupilNumbersbyYearG'!AA46,\"n/a\")","v":47},{"$f":"IF($C67<>\"n/a\",'QRY - ExportPupilNumbersbyYearG'!AB46,\"n/a\")","v":43},{"$f":"IF($C67<>\"n/a\",'QRY - ExportPupilNumbersbyYearG'!AC46,\"n/a\")","v":0},{"$f":"IF($C67<>\"n/a\",'QRY - ExportPupilNumbersbyYearG'!AD46,\"n/a\")","v":0},{"$f":"IF($C67<>\"n/a\",'QRY - ExportPupilNumbersbyYearG'!AE46,\"n/a\")","v":0},{"$f":"IF($C67<>\"n/a\",'QRY - ExportPupilNumbersbyYearG'!AF46,\"n/a\")","v":0},{"$f":"IF($C67<>\"n/a\",'QRY - ExportPupilNumbersbyYearG'!AG46,\"n/a\")","v":0},{"$f":"IF($C67<>\"n/a\",'QRY - ExportPupilNumbersbyYearG'!AH46,\"n/a\")","v":0},{"$f":"IF($C67<>\"n/a\",'QRY - ExportPupilNumbersbyYearG'!AI46,\"n/a\")","v":0},{"$f":"IF($C67<>\"n/a\",'QRY - ExportPupilNumbersbyYearG'!AJ46,\"n/a\")","v":0},{"$f":"IF($C67<>\"n/a\",'QRY - ExportPupilNumbersbyYearG'!AK46,\"n/a\")","v":0},353,402,103,94,205,0,0,0]
[null,null,{"$f":"IF('QRY - ExportPupilNumbersbyYearG'!K47 =\"\",\"n/a\",'QRY - ExportPupilNumbersbyYearG'!K47)","v":"South Ascot Village Primary School"},{"$f":"IF($C68=\"n/a\",\"\",'QRY - ExportPupilNumbersbyYearG'!E47)","v":"Ascot"},{"$f":"IF($C68=\"n/a\",\"\",'QRY - ExportPupilNumbersbyYearG'!F47)","v":"Ascot"},{"$f":"IF($C68=\"n/a\",\"\",'QRY - ExportPupilNumbersbyYearG'!G47)","v":"South Ascot"},{"$f":"IF($C68=\"n/a\",\"\",'QRY - ExportPupilNumbersbyYearG'!I47)","v":"Primary"},{"$f":"IF($C68=\"n/a\",\"\",'QRY - ExportPupilNumbersbyYearG'!H47)","v":"Two Tier"},{"$f":"IF($C68=\"n/a\",\"\",'QRY - ExportPupilNumbersbyYearG'!J47)","v":"JMI"},{"$f":"IF($C68=\"n/a\",\"\",'QRY - ExportPupilNumbersbyYearG'!L47)","v":"Community"},{"$f":"IF('QRY - ExportPupilNumbersbyYearG'!Q47=\"\",\"\",'QRY - ExportPupilNumbersbyYearG'!Q47)","v":""},{"$f":"IF($C68=\"n/a\",\"\",'QRY - ExportPupilNumbersbyYearG'!M47)","v":"None"},{"$f":"IF($C68<>\"n/a\",'QRY - ExportPupilNumbersbyYearG'!R47,\"n/a\")","v":0},{"$f":"IF($C68<>\"n/a\",'QRY - ExportPupilNumbersbyYearG'!S47,\"n/a\")","v":0},{"$f":"IF($C68<>\"n/a\",'QRY - ExportPupilNumbersbyYearG'!T47,\"n/a\")","v":8},{"$f":"IF($C68<>\"n/a\",'QRY - ExportPupilNumbersbyYearG'!U47,\"n/a\")","v":1},{"$f":"IF($C68<>\"n/a\",'QRY - ExportPupilNumbersbyYearG'!V47,\"n/a\")","v":19},{"$f":"IF($C68<>\"n/a\",'QRY - ExportPupilNumbersbyYearG'!W47,\"n/a\")","v":19},{"$f":"IF($C68<>\"n/a\",'QRY - ExportPupilNumbersbyYearG'!X47,\"n/a\")","v":27},{"$f":"IF($C68<>\"n/a\",'QRY - ExportPupilNumbersbyYearG'!Y47,\"n/a\")","v":26},{"$f":"IF($C68<>\"n/a\",'QRY - ExportPupilNumbersbyYearG'!Z47,\"n/a\")","v":29},{"$f":"IF($C68<>\"n/a\",'QRY - ExportPupilNumbersbyYearG'!AA47,\"n/a\")","v":30},{"$f":"IF($C68<>\"n/a\",'QRY - ExportPupilNumbersbyYearG'!AB47,\"n/a\")","v":30},{"$f":"IF($C68<>\"n/a\",'QRY - ExportPupilNumbersbyYearG'!AC47,\"n/a\")","v":0},{"$f":"IF($C68<>\"n/a\",'QRY - ExportPupilNumbersbyYearG'!AD47,\"n/a\")","v":0},{"$f":"IF($C68<>\"n/a\",'QRY - ExportPupilNumbersbyYearG'!AE47,\"n/a\")","v":0},{"$f":"IF($C68<>\"n/a\",'QRY - ExportPupilNumbersbyYearG'!AF47,\"n/a\")","v":0},{"$f":"IF($C68<>\"n/a\",'QRY - ExportPupilNumbersbyYearG'!AG47,\"n/a\")","v":0},{"$f":"IF($C68<>\"n/a\",'QRY - ExportPupilNumbersbyYearG'!AH47,\"n/a\")","v":0},{"$f":"IF($C68<>\"n/a\",'QRY - ExportPupilNumbersbyYearG'!AI47,\"n/a\")","v":0},{"$f":"IF($C68<>\"n/a\",'QRY - ExportPupilNumbersbyYearG'!AJ47,\"n/a\")","v":0},{"$f":"IF($C68<>\"n/a\",'QRY - ExportPupilNumbersbyYearG'!AK47,\"n/a\")","v":0},180,189,28,46,115,0,0,0]
[null,null,{"$f":"IF('QRY - ExportPupilNumbersbyYearG'!K48 =\"\",\"n/a\",'QRY - ExportPupilNumbersbyYearG'!K48)","v":"St Edmund Campion Catholic Primary School"},{"$f":"IF($C69=\"n/a\",\"\",'QRY - ExportPupilNumbersbyYearG'!E48)","v":"Maidenhead"},{"$f":"IF($C69=\"n/a\",\"\",'QRY - ExportPupilNumbersbyYearG'!F48)","v":"Central Maidenhead"},{"$f":"IF($C69=\"n/a\",\"\",'QRY - ExportPupilNumbersbyYearG'!G48)","v":"Tittle Row"},{"$f":"IF($C69=\"n/a\",\"\",'QRY - ExportPupilNumbersbyYearG'!I48)","v":"Primary"},{"$f":"IF($C69=\"n/a\",\"\",'QRY - ExportPupilNumbersbyYearG'!H48)","v":"Two Tier"},{"$f":"IF($C69=\"n/a\",\"\",'QRY - ExportPupilNumbersbyYearG'!J48)","v":"JMI"},{"$f":"IF($C69=\"n/a\",\"\",'QRY - ExportPupilNumbersbyYearG'!L48)","v":"Academy"},{"$f":"IF('QRY - ExportPupilNumbersbyYearG'!Q48=\"\",\"\",'QRY - ExportPupilNumbersbyYearG'!Q48)","v":"2017-07-01"},{"$f":"IF($C69=\"n/a\",\"\",'QRY - ExportPupilNumbersbyYearG'!M48)","v":"Roman Catholic"},{"$f":"IF($C69<>\"n/a\",'QRY - ExportPupilNumbersbyYearG'!R48,\"n/a\")","v":0},{"$f":"IF($C69<>\"n/a\",'QRY - ExportPupilNumbersbyYearG'!S48,\"n/a\")","v":0},{"$f":"IF($C69<>\"n/a\",'QRY - ExportPupilNumbersbyYearG'!T48,\"n/a\")","v":0},{"$f":"IF($C69<>\"n/a\",'QRY - ExportPupilNumbersbyYearG'!U48,\"n/a\")","v":0},{"$f":"IF($C69<>\"n/a\",'QRY - ExportPupilNumbersbyYearG'!V48,\"n/a\")","v":60},{"$f":"IF($C69<>\"n/a\",'QRY - ExportPupilNumbersbyYearG'!W48,\"n/a\")","v":60},{"$f":"IF($C69<>\"n/a\",'QRY - ExportPupilNumbersbyYearG'!X48,\"n/a\")","v":60},{"$f":"IF($C69<>\"n/a\",'QRY - ExportPupilNumbersbyYearG'!Y48,\"n/a\")","v":60},{"$f":"IF($C69<>\"n/a\",'QRY - ExportPupilNumbersbyYearG'!Z48,\"n/a\")","v":60},{"$f":"IF($C69<>\"n/a\",'QRY - ExportPupilNumbersbyYearG'!AA48,\"n/a\")","v":60},{"$f":"IF($C69<>\"n/a\",'QRY - ExportPupilNumbersbyYearG'!AB48,\"n/a\")","v":61},{"$f":"IF($C69<>\"n/a\",'QRY - ExportPupilNumbersbyYearG'!AC48,\"n/a\")","v":0},{"$f":"IF($C69<>\"n/a\",'QRY - ExportPupilNumbersbyYearG'!AD48,\"n/a\")","v":0},{"$f":"IF($C69<>\"n/a\",'QRY - ExportPupilNumbersbyYearG'!AE48,\"n/a\")","v":0},{"$f":"IF($C69<>\"n/a\",'QRY - ExportPupilNumbersbyYearG'!AF48,\"n/a\")","v":0},{"$f":"IF($C69<>\"n/a\",'QRY - ExportPupilNumbersbyYearG'!AG48,\"n/a\")","v":0},{"$f":"IF($C69<>\"n/a\",'QRY - ExportPupilNumbersbyYearG'!AH48,\"n/a\")","v":0},{"$f":"IF($C69<>\"n/a\",'QRY - ExportPupilNumbersbyYearG'!AI48,\"n/a\")","v":0},{"$f":"IF($C69<>\"n/a\",'QRY - ExportPupilNumbersbyYearG'!AJ48,\"n/a\")","v":0},{"$f":"IF($C69<>\"n/a\",'QRY - ExportPupilNumbersbyYearG'!AK48,\"n/a\")","v":0},421,421,60,120,241,0,0,0]
[null,null,{"$f":"IF('QRY - ExportPupilNumbersbyYearG'!K49 =\"\",\"n/a\",'QRY - ExportPupilNumbersbyYearG'!K49)","v":"St Edward's Catholic First School"},{"$f":"IF($C70=\"n/a\",\"\",'QRY - ExportPupilNumbersbyYearG'!E49)","v":"Windsor"},{"$f":"IF($C70=\"n/a\",\"\",'QRY - ExportPupilNumbersbyYearG'!F49)","v":"Windsor North"},{"$f":"IF($C70=\"n/a\",\"\",'QRY - ExportPupilNumbersbyYearG'!G49)","v":"Clewer Village"},{"$f":"IF($C70=\"n/a\",\"\",'QRY - ExportPupilNumbersbyYearG'!I49)","v":"Primary"},{"$f":"IF($C70=\"n/a\",\"\",'QRY - ExportPupilNumbersbyYearG'!H49)","v":"Three Tier"},{"$f":"IF($C70=\"n/a\",\"\",'QRY - ExportPupilNumbersbyYearG'!J49)","v":"First"},{"$f":"IF($C70=\"n/a\",\"\",'QRY - ExportPupilNumbersbyYearG'!L49)","v":"Voluntary Aided"},{"$f":"IF('QRY - ExportPupilNumbersbyYearG'!Q49=\"\",\"\",'QRY - ExportPupilNumbersbyYearG'!Q49)","v":""},{"$f":"IF($C70=\"n/a\",\"\",'QRY - ExportPupilNumbersbyYearG'!M49)","v":"Roman Catholic"},{"$f":"IF($C70<>\"n/a\",'QRY - ExportPupilNumbersbyYearG'!R49,\"n/a\")","v":0},{"$f":"IF($C70<>\"n/a\",'QRY - ExportPupilNumbersbyYearG'!S49,\"n/a\")","v":0},{"$f":"IF($C70<>\"n/a\",'QRY - ExportPupilNumbersbyYearG'!T49,\"n/a\")","v":0},{"$f":"IF($C70<>\"n/a\",'QRY - ExportPupilNumbersbyYearG'!U49,\"n/a\")","v":0},{"$f":"IF($C70<>\"n/a\",'QRY - ExportPupilNumbersbyYearG'!V49,\"n/a\")","v":60},{"$f":"IF($C70<>\"n/a\",'QRY - ExportPupilNumbersbyYearG'!W49,\"n/a\")","v":56},{"$f":"IF($C70<>\"n/a\",'QRY - ExportPupilNumbersbyYearG'!X49,\"n/a\")","v":61},{"$f":"IF($C70<>\"n/a\",'QRY - ExportPupilNumbersbyYearG'!Y49,\"n/a\")","v":58},{"$f":"IF($C70<>\"n/a\",'QRY - ExportPupilNumbersbyYearG'!Z49,\"n/a\")","v":60},{"$f":"IF($C70<>\"n/a\",'QRY - ExportPupilNumbersbyYearG'!AA49,\"n/a\")","v":0},{"$f":"IF($C70<>\"n/a\",'QRY - ExportPupilNumbersbyYearG'!AB49,\"n/a\")","v":0},{"$f":"IF($C70<>\"n/a\",'QRY - ExportPupilNumbersbyYearG'!AC49,\"n/a\")","v":0},{"$f":"IF($C70<>\"n/a\",'QRY - ExportPupilNumbersbyYearG'!AD49,\"n/a\")","v":0},{"$f":"IF($C70<>\"n/a\",'QRY - ExportPupilNumbersbyYearG'!AE49,\"n/a\")","v":0},{"$f":"IF($C70<>\"n/a\",'QRY - ExportPupilNumbersbyYearG'!AF49,\"n/a\")","v":0},{"$f":"IF($C70<>\"n/a\",'QRY - ExportPupilNumbersbyYearG'!AG49,\"n/a\")","v":0},{"$f":"IF($C70<>\"n/a\",'QRY - ExportPupilNumbersbyYearG'!AH49,\"n/a\")","v":0},{"$f":"IF($C70<>\"n/a\",'QRY - ExportPupilNumbersbyYearG'!AI49,\"n/a\")","v":0},{"$f":"IF($C70<>\"n/a\",'QRY - ExportPupilNumbersbyYearG'!AJ49,\"n/a\")","v":0},{"$f":"IF($C70<>\"n/a\",'QRY - ExportPupilNumbersbyYearG'!AK49,\"n/a\")","v":0},295,295,60,117,118,0,0,0]
[null,null,{"$f":"IF('QRY - ExportPupilNumbersbyYearG'!K50 =\"\",\"n/a\",'QRY - ExportPupilNumbersbyYearG'!K50)","v":"St Edward's Royal Free Ecumenical Middle School"},{"$f":"IF($C71=\"n/a\",\"\",'QRY - ExportPupilNumbersbyYearG'!E50)","v":"Windsor"},{"$f":"IF($C71=\"n/a\",\"\",'QRY - ExportPupilNumbersbyYearG'!F50)","v":"Windsor North"},{"$f":"IF($C71=\"n/a\",\"\",'QRY - ExportPupilNumbersbyYearG'!G50)","v":"Clewer Village"},{"$f":"IF($C71=\"n/a\",\"\",'QRY - ExportPupilNumbersbyYearG'!I50)","v":"Secondary"},{"$f":"IF($C71=\"n/a\",\"\",'QRY - ExportPupilNumbersbyYearG'!H50)","v":"Three Tier"},{"$f":"IF($C71=\"n/a\",\"\",'QRY - ExportPupilNumbersbyYearG'!J50)","v":"Middle"},{"$f":"IF($C71=\"n/a\",\"\",'QRY - ExportPupilNumbersbyYearG'!L50)","v":"Voluntary Aided"},{"$f":"IF('QRY - ExportPupilNumbersbyYearG'!Q50=\"\",\"\",'QRY - ExportPupilNumbersbyYearG'!Q50)","v":""},{"$f":"IF($C71=\"n/a\",\"\",'QRY - ExportPupilNumbersbyYearG'!M50)","v":"Ecumenical"},{"$f":"IF($C71<>\"n/a\",'QRY - ExportPupilNumbersbyYearG'!R50,\"n/a\")","v":0},{"$f":"IF($C71<>\"n/a\",'QRY - ExportPupilNumbersbyYearG'!S50,\"n/a\")","v":0},{"$f":"IF($C71<>\"n/a\",'QRY - ExportPupilNumbersbyYearG'!T50,\"n/a\")","v":0},{"$f":"IF($C71<>\"n/a\",'QRY - ExportPupilNumbersbyYearG'!U50,\"n/a\")","v":0},{"$f":"IF($C71<>\"n/a\",'QRY - ExportPupilNumbersbyYearG'!V50,\"n/a\")","v":0},{"$f":"IF($C71<>\"n/a\",'QRY - ExportPupilNumbersbyYearG'!W50,\"n/a\")","v":0},{"$f":"IF($C71<>\"n/a\",'QRY - ExportPupilNumbersbyYearG'!X50,\"n/a\")","v":0},{"$f":"IF($C71<>\"n/a\",'QRY - ExportPupilNumbersbyYearG'!Y50,\"n/a\")","v":0},{"$f":"IF($C71<>\"n/a\",'QRY - ExportPupilNumbersbyYearG'!Z50,\"n/a\")","v":0},{"$f":"IF($C71<>\"n/a\",'QRY - ExportPupilNumbersbyYearG'!AA50,\"n/a\")","v":120},{"$f":"IF($C71<>\"n/a\",'QRY - ExportPupilNumbersbyYearG'!AB50,\"n/a\")","v":120},{"$f":"IF($C71<>\"n/a\",'QRY - ExportPupilNumbersbyYearG'!AC50,\"n/a\")","v":120},{"$f":"IF($C71<>\"n/a\",'QRY - ExportPupilNumbersbyYearG'!AD50,\"n/a\")","v":119},{"$f":"IF($C71<>\"n/a\",'QRY - ExportPupilNumbersbyYearG'!AE50,\"n/a\")","v":0},{"$f":"IF($C71<>\"n/a\",'QRY - ExportPupilNumbersbyYearG'!AF50,\"n/a\")","v":0},{"$f":"IF($C71<>\"n/a\",'QRY - ExportPupilNumbersbyYearG'!AG50,\"n/a\")","v":0},{"$f":"IF($C71<>\"n/a\",'QRY - ExportPupilNumbersbyYearG'!AH50,\"n/a\")","v":0},{"$f":"IF($C71<>\"n/a\",'QRY - ExportPupilNumbersbyYearG'!AI50,\"n/a\")","v":0},{"$f":"IF($C71<>\"n/a\",'QRY - ExportPupilNumbersbyYearG'!AJ50,\"n/a\")","v":0},{"$f":"IF($C71<>\"n/a\",'QRY - ExportPupilNumbersbyYearG'!AK50,\"n/a\")","v":0},479,479,0,0,240,239,0,0]
[null,null,{"$f":"IF('QRY - ExportPupilNumbersbyYearG'!K51 =\"\",\"n/a\",'QRY - ExportPupilNumbersbyYearG'!K51)","v":"St Francis Catholic Primary School"},{"$f":"IF($C72=\"n/a\",\"\",'QRY - ExportPupilNumbersbyYearG'!E51)","v":"Ascot"},{"$f":"IF($C72=\"n/a\",\"\",'QRY - ExportPupilNumbersbyYearG'!F51)","v":"Ascot"},{"$f":"IF($C72=\"n/a\",\"\",'QRY - ExportPupilNumbersbyYearG'!G51)","v":"South Ascot"},{"$f":"IF($C72=\"n/a\",\"\",'QRY - ExportPupilNumbersbyYearG'!I51)","v":"Primary"},{"$f":"IF($C72=\"n/a\",\"\",'QRY - ExportPupilNumbersbyYearG'!H51)","v":"Two Tier"},{"$f":"IF($C72=\"n/a\",\"\",'QRY - ExportPupilNumbersbyYearG'!J51)","v":"JMI"},{"$f":"IF($C72=\"n/a\",\"\",'QRY - ExportPupilNumbersbyYearG'!L51)","v":"Academy"},{"$f":"IF('QRY - ExportPupilNumbersbyYearG'!Q51=\"\",\"\",'QRY - ExportPupilNumbersbyYearG'!Q51)","v":"2015-09-01"},{"$f":"IF($C72=\"n/a\",\"\",'QRY - ExportPupilNumbersbyYearG'!M51)","v":"Roman Catholic"},{"$f":"IF($C72<>\"n/a\",'QRY - ExportPupilNumbersbyYearG'!R51,\"n/a\")","v":0},{"$f":"IF($C72<>\"n/a\",'QRY - ExportPupilNumbersbyYearG'!S51,\"n/a\")","v":0},{"$f":"IF($C72<>\"n/a\",'QRY - ExportPupilNumbersbyYearG'!T51,\"n/a\")","v":0},{"$f":"IF($C72<>\"n/a\",'QRY - ExportPupilNumbersbyYearG'!U51,\"n/a\")","v":0},{"$f":"IF($C72<>\"n/a\",'QRY - ExportPupilNumbersbyYearG'!V51,\"n/a\")","v":30},{"$f":"IF($C72<>\"n/a\",'QRY - ExportPupilNumbersbyYearG'!W51,\"n/a\")","v":30},{"$f":"IF($C72<>\"n/a\",'QRY - ExportPupilNumbersbyYearG'!X51,\"n/a\")","v":30},{"$f":"IF($C72<>\"n/a\",'QRY - ExportPupilNumbersbyYearG'!Y51,\"n/a\")","v":30},{"$f":"IF($C72<>\"n/a\",'QRY - ExportPupilNumbersbyYearG'!Z51,\"n/a\")","v":30},{"$f":"IF($C72<>\"n/a\",'QRY - ExportPupilNumbersbyYearG'!AA51,\"n/a\")","v":30},{"$f":"IF($C72<>\"n/a\",'QRY - ExportPupilNumbersbyYearG'!AB51,\"n/a\")","v":29},{"$f":"IF($C72<>\"n/a\",'QRY - ExportPupilNumbersbyYearG'!AC51,\"n/a\")","v":0},{"$f":"IF($C72<>\"n/a\",'QRY - ExportPupilNumbersbyYearG'!AD51,\"n/a\")","v":0},{"$f":"IF($C72<>\"n/a\",'QRY - ExportPupilNumbersbyYearG'!AE51,\"n/a\")","v":0},{"$f":"IF($C72<>\"n/a\",'QRY - ExportPupilNumbersbyYearG'!AF51,\"n/a\")","v":0},{"$f":"IF($C72<>\"n/a\",'QRY - ExportPupilNumbersbyYearG'!AG51,\"n/a\")","v":0},{"$f":"IF($C72<>\"n/a\",'QRY - ExportPupilNumbersbyYearG'!AH51,\"n/a\")","v":0},{"$f":"IF($C72<>\"n/a\",'QRY - ExportPupilNumbersbyYearG'!AI51,\"n/a\")","v":0},{"$f":"IF($C72<>\"n/a\",'QRY - ExportPupilNumbersbyYearG'!AJ51,\"n/a\")","v":0},{"$f":"IF($C72<>\"n/a\",'QRY - ExportPupilNumbersbyYearG'!AK51,\"n/a\")","v":0},209,209,30,60,119,0,0,0]
[null,null,{"$f":"IF('QRY - ExportPupilNumbersbyYearG'!K52 =\"\",\"n/a\",'QRY - ExportPupilNumbersbyYearG'!K52)","v":"St Luke's Church of England Primary School"},{"$f":"IF($C73=\"n/a\",\"\",'QRY - ExportPupilNumbersbyYearG'!E52)","v":"Maidenhead"},{"$f":"IF($C73=\"n/a\",\"\",'QRY - ExportPupilNumbersbyYearG'!F52)","v":"North East Maidenhead"},{"$f":"IF($C73=\"n/a\",\"\",'QRY - ExportPupilNumbersbyYearG'!G52)","v":"St Luke's"},{"$f":"IF($C73=\"n/a\",\"\",'QRY - ExportPupilNumbersbyYearG'!I52)","v":"Primary"},{"$f":"IF($C73=\"n/a\",\"\",'QRY - ExportPupilNumbersbyYearG'!H52)","v":"Two Tier"},{"$f":"IF($C73=\"n/a\",\"\",'QRY - ExportPupilNumbersbyYearG'!J52)","v":"JMI"},{"$f":"IF($C73=\"n/a\",\"\",'QRY - ExportPupilNumbersbyYearG'!L52)","v":"Academy"},{"$f":"IF('QRY - ExportPupilNumbersbyYearG'!Q52=\"\",\"\",'QRY - ExportPupilNumbersbyYearG'!Q52)","v":"2014-12-01"},{"$f":"IF($C73=\"n/a\",\"\",'QRY - ExportPupilNumbersbyYearG'!M52)","v":"Church of England"},{"$f":"IF($C73<>\"n/a\",'QRY - ExportPupilNumbersbyYearG'!R52,\"n/a\")","v":0},{"$f":"IF($C73<>\"n/a\",'QRY - ExportPupilNumbersbyYearG'!S52,\"n/a\")","v":0},{"$f":"IF($C73<>\"n/a\",'QRY - ExportPupilNumbersbyYearG'!T52,\"n/a\")","v":9},{"$f":"IF($C73<>\"n/a\",'QRY - ExportPupilNumbersbyYearG'!U52,\"n/a\")","v":24},{"$f":"IF($C73<>\"n/a\",'QRY - ExportPupilNumbersbyYearG'!V52,\"n/a\")","v":44},{"$f":"IF($C73<>\"n/a\",'QRY - ExportPupilNumbersbyYearG'!W52,\"n/a\")","v":45},{"$f":"IF($C73<>\"n/a\",'QRY - ExportPupilNumbersbyYearG'!X52,\"n/a\")","v":45},{"$f":"IF($C73<>\"n/a\",'QRY - ExportPupilNumbersbyYearG'!Y52,\"n/a\")","v":41},{"$f":"IF($C73<>\"n/a\",'QRY - ExportPupilNumbersbyYearG'!Z52,\"n/a\")","v":37},{"$f":"IF($C73<>\"n/a\",'QRY - ExportPupilNumbersbyYearG'!AA52,\"n/a\")","v":39},{"$f":"IF($C73<>\"n/a\",'QRY - ExportPupilNumbersbyYearG'!AB52,\"n/a\")","v":37},{"$f":"IF($C73<>\"n/a\",'QRY - ExportPupilNumbersbyYearG'!AC52,\"n/a\")","v":0},{"$f":"IF($C73<>\"n/a\",'QRY - ExportPupilNumbersbyYearG'!AD52,\"n/a\")","v":0},{"$f":"IF($C73<>\"n/a\",'QRY - ExportPupilNumbersbyYearG'!AE52,\"n/a\")","v":0},{"$f":"IF($C73<>\"n/a\",'QRY - ExportPupilNumbersbyYearG'!AF52,\"n/a\")","v":0},{"$f":"IF($C73<>\"n/a\",'QRY - ExportPupilNumbersbyYearG'!AG52,\"n/a\")","v":0},{"$f":"IF($C73<>\"n/a\",'QRY - ExportPupilNumbersbyYearG'!AH52,\"n/a\")","v":0},{"$f":"IF($C73<>\"n/a\",'QRY - ExportPupilNumbersbyYearG'!AI52,\"n/a\")","v":0},{"$f":"IF($C73<>\"n/a\",'QRY - ExportPupilNumbersbyYearG'!AJ52,\"n/a\")","v":0},{"$f":"IF($C73<>\"n/a\",'QRY - ExportPupilNumbersbyYearG'!AK52,\"n/a\")","v":0},288,321,77,90,154,0,0,0]
[null,null,{"$f":"IF('QRY - ExportPupilNumbersbyYearG'!K53 =\"\",\"n/a\",'QRY - ExportPupilNumbersbyYearG'!K53)","v":"St Mary's Catholic Primary School"},{"$f":"IF($C74=\"n/a\",\"\",'QRY - ExportPupilNumbersbyYearG'!E53)","v":"Maidenhead"},{"$f":"IF($C74=\"n/a\",\"\",'QRY - ExportPupilNumbersbyYearG'!F53)","v":"North East Maidenhead"},{"$f":"IF($C74=\"n/a\",\"\",'QRY - ExportPupilNumbersbyYearG'!G53)","v":"St Luke's"},{"$f":"IF($C74=\"n/a\",\"\",'QRY - ExportPupilNumbersbyYearG'!I53)","v":"Primary"},{"$f":"IF($C74=\"n/a\",\"\",'QRY - ExportPupilNumbersbyYearG'!H53)","v":"Two Tier"},{"$f":"IF($C74=\"n/a\",\"\",'QRY - ExportPupilNumbersbyYearG'!J53)","v":"JMI"},{"$f":"IF($C74=\"n/a\",\"\",'QRY - ExportPupilNumbersbyYearG'!L53)","v":"Academy"},{"$f":"IF('QRY - ExportPupilNumbersbyYearG'!Q53=\"\",\"\",'QRY - ExportPupilNumbersbyYearG'!Q53)","v":"2013-07-01"},{"$f":"IF($C74=\"n/a\",\"\",'QRY - ExportPupilNumbersbyYearG'!M53)","v":"Roman Catholic"},{"$f":"IF($C74<>\"n/a\",'QRY - ExportPupilNumbersbyYearG'!R53,\"n/a\")","v":0},{"$f":"IF($C74<>\"n/a\",'QRY - ExportPupilNumbersbyYearG'!S53,\"n/a\")","v":0},{"$f":"IF($C74<>\"n/a\",'QRY - ExportPupilNumbersbyYearG'!T53,\"n/a\")","v":0},{"$f":"IF($C74<>\"n/a\",'QRY - ExportPupilNumbersbyYearG'!U53,\"n/a\")","v":0},{"$f":"IF($C74<>\"n/a\",'QRY - ExportPupilNumbersbyYearG'!V53,\"n/a\")","v":44},{"$f":"IF($C74<>\"n/a\",'QRY - ExportPupilNumbersbyYearG'!W53,\"n/a\")","v":44},{"$f":"IF($C74<>\"n/a\",'QRY - ExportPupilNumbersbyYearG'!X53,\"n/a\")","v":44},{"$f":"IF($C74<>\"n/a\",'QRY - ExportPupilNumbersbyYearG'!Y53,\"n/a\")","v":44},{"$f":"IF($C74<>\"n/a\",'QRY - ExportPupilNumbersbyYearG'!Z53,\"n/a\")","v":44},{"$f":"IF($C74<>\"n/a\",'QRY - ExportPupilNumbersbyYearG'!AA53,\"n/a\")","v":38},{"$f":"IF($C74<>\"n/a\",'QRY - ExportPupilNumbersbyYearG'!AB53,\"n/a\")","v":45},{"$f":"IF($C74<>\"n/a\",'QRY - ExportPupilNumbersbyYearG'!AC53,\"n/a\")","v":0},{"$f":"IF($C74<>\"n/a\",'QRY - ExportPupilNumbersbyYearG'!AD53,\"n/a\")","v":0},{"$f":"IF($C74<>\"n/a\",'QRY - ExportPupilNumbersbyYearG'!AE53,\"n/a\")","v":0},{"$f":"IF($C74<>\"n/a\",'QRY - ExportPupilNumbersbyYearG'!AF53,\"n/a\")","v":0},{"$f":"IF($C74<>\"n/a\",'QRY - ExportPupilNumbersbyYearG'!AG53,\"n/a\")","v":0},{"$f":"IF($C74<>\"n/a\",'QRY - ExportPupilNumbersbyYearG'!AH53,\"n/a\")","v":0},{"$f":"IF($C74<>\"n/a\",'QRY - ExportPupilNumbersbyYearG'!AI53,\"n/a\")","v":0},{"$f":"IF($C74<>\"n/a\",'QRY - ExportPupilNumbersbyYearG'!AJ53,\"n/a\")","v":0},{"$f":"IF($C74<>\"n/a\",'QRY - ExportPupilNumbersbyYearG'!AK53,\"n/a\")","v":0},303,303,44,88,171,0,0,0]
[null,null,{"$f":"IF('QRY - ExportPupilNumbersbyYearG'!K54 =\"\",\"n/a\",'QRY - ExportPupilNumbersbyYearG'!K54)","v":"St Michael's C of E Primary School, Sunninghill"},{"$f":"IF($C75=\"n/a\",\"\",'QRY - ExportPupilNumbersbyYearG'!E54)","v":"Ascot"},{"$f":"IF($C75=\"n/a\",\"\",'QRY - ExportPupilNumbersbyYearG'!F54)","v":"Ascot"},{"$f":"IF($C75=\"n/a\",\"\",'QRY - ExportPupilNumbersbyYearG'!G54)","v":"Sunninghill"},{"$f":"IF($C75=\"n/a\",\"\",'QRY - ExportPupilNumbersbyYearG'!I54)","v":"Primary"},{"$f":"IF($C75=\"n/a\",\"\",'QRY - ExportPupilNumbersbyYearG'!H54)","v":"Two Tier"},{"$f":"IF($C75=\"n/a\",\"\",'QRY - ExportPupilNumbersbyYearG'!J54)","v":"JMI"},{"$f":"IF($C75=\"n/a\",\"\",'QRY - ExportPupilNumbersbyYearG'!L54)","v":"Voluntary Controlled"},{"$f":"IF('QRY - ExportPupilNumbersbyYearG'!Q54=\"\",\"\",'QRY - ExportPupilNumbersbyYearG'!Q54)","v":""},{"$f":"IF($C75=\"n/a\",\"\",'QRY - ExportPupilNumbersbyYearG'!M54)","v":"Church of England"},{"$f":"IF($C75<>\"n/a\",'QRY - ExportPupilNumbersbyYearG'!R54,\"n/a\")","v":0},{"$f":"IF($C75<>\"n/a\",'QRY - ExportPupilNumbersbyYearG'!S54,\"n/a\")","v":0},{"$f":"IF($C75<>\"n/a\",'QRY - ExportPupilNumbersbyYearG'!T54,\"n/a\")","v":0},{"$f":"IF($C75<>\"n/a\",'QRY - ExportPupilNumbersbyYearG'!U54,\"n/a\")","v":0},{"$f":"IF($C75<>\"n/a\",'QRY - ExportPupilNumbersbyYearG'!V54,\"n/a\")","v":30},{"$f":"IF($C75<>\"n/a\",'QRY - ExportPupilNumbersbyYearG'!W54,\"n/a\")","v":21},{"$f":"IF($C75<>\"n/a\",'QRY - ExportPupilNumbersbyYearG'!X54,\"n/a\")","v":30},{"$f":"IF($C75<>\"n/a\",'QRY - ExportPupilNumbersbyYearG'!Y54,\"n/a\")","v":30},{"$f":"IF($C75<>\"n/a\",'QRY - ExportPupilNumbersbyYearG'!Z54,\"n/a\")","v":30},{"$f":"IF($C75<>\"n/a\",'QRY - ExportPupilNumbersbyYearG'!AA54,\"n/a\")","v":30},{"$f":"IF($C75<>\"n/a\",'QRY - ExportPupilNumbersbyYearG'!AB54,\"n/a\")","v":32},{"$f":"IF($C75<>\"n/a\",'QRY - ExportPupilNumbersbyYearG'!AC54,\"n/a\")","v":0},{"$f":"IF($C75<>\"n/a\",'QRY - ExportPupilNumbersbyYearG'!AD54,\"n/a\")","v":0},{"$f":"IF($C75<>\"n/a\",'QRY - ExportPupilNumbersbyYearG'!AE54,\"n/a\")","v":0},{"$f":"IF($C75<>\"n/a\",'QRY - ExportPupilNumbersbyYearG'!AF54,\"n/a\")","v":0},{"$f":"IF($C75<>\"n/a\",'QRY - ExportPupilNumbersbyYearG'!AG54,\"n/a\")","v":0},{"$f":"IF($C75<>\"n/a\",'QRY - ExportPupilNumbersbyYearG'!AH54,\"n/a\")","v":0},{"$f":"IF($C75<>\"n/a\",'QRY - ExportPupilNumbersbyYearG'!AI54,\"n/a\")","v":0},{"$f":"IF($C75<>\"n/a\",'QRY - ExportPupilNumbersbyYearG'!AJ54,\"n/a\")","v":0},{"$f":"IF($C75<>\"n/a\",'QRY - ExportPupilNumbersbyYearG'!AK54,\"n/a\")","v":0},203,203,30,51,122,0,0,0]
[null,null,{"$f":"IF('QRY - ExportPupilNumbersbyYearG'!K55 =\"\",\"n/a\",'QRY - ExportPupilNumbersbyYearG'!K55)","v":"St Peter's Church of England Middle School"},{"$f":"IF($C76=\"n/a\",\"\",'QRY - ExportPupilNumbersbyYearG'!E55)","v":"Windsor"},{"$f":"IF($C76=\"n/a\",\"\",'QRY - ExportPupilNumbersbyYearG'!F55)","v":"Windsor Villages"},{"$f":"IF($C76=\"n/a\",\"\",'QRY - ExportPupilNumbersbyYearG'!G55)","v":"Old Windsor"},{"$f":"IF($C76=\"n/a\",\"\",'QRY - ExportPupilNumbersbyYearG'!I55)","v":"Secondary"},{"$f":"IF($C76=\"n/a\",\"\",'QRY - ExportPupilNumbersbyYearG'!H55)","v":"Three Tier"},{"$f":"IF($C76=\"n/a\",\"\",'QRY - ExportPupilNumbersbyYearG'!J55)","v":"Middle"},{"$f":"IF($C76=\"n/a\",\"\",'QRY - ExportPupilNumbersbyYearG'!L55)","v":"Academy"},{"$f":"IF('QRY - ExportPupilNumbersbyYearG'!Q55=\"\",\"\",'QRY - ExportPupilNumbersbyYearG'!Q55)","v":"2014-11-01"},{"$f":"IF($C76=\"n/a\",\"\",'QRY - ExportPupilNumbersbyYearG'!M55)","v":"Church of England"},{"$f":"IF($C76<>\"n/a\",'QRY - ExportPupilNumbersbyYearG'!R55,\"n/a\")","v":0},{"$f":"IF($C76<>\"n/a\",'QRY - ExportPupilNumbersbyYearG'!S55,\"n/a\")","v":0},{"$f":"IF($C76<>\"n/a\",'QRY - ExportPupilNumbersbyYearG'!T55,\"n/a\")","v":0},{"$f":"IF($C76<>\"n/a\",'QRY - ExportPupilNumbersbyYearG'!U55,\"n/a\")","v":0},{"$f":"IF($C76<>\"n/a\",'QRY - ExportPupilNumbersbyYearG'!V55,\"n/a\")","v":0},{"$f":"IF($C76<>\"n/a\",'QRY - ExportPupilNumbersbyYearG'!W55,\"n/a\")","v":0},{"$f":"IF($C76<>\"n/a\",'QRY - ExportPupilNumbersbyYearG'!X55,\"n/a\")","v":0},{"$f":"IF($C76<>\"n/a\",'QRY - ExportPupilNumbersbyYearG'!Y55,\"n/a\")","v":0},{"$f":"IF($C76<>\"n/a\",'QRY - ExportPupilNumbersbyYearG'!Z55,\"n/a\")","v":0},{"$f":"IF($C76<>\"n/a\",'QRY - ExportPupilNumbersbyYearG'!AA55,\"n/a\")","v":77},{"$f":"IF($C76<>\"n/a\",'QRY - ExportPupilNumbersbyYearG'!AB55,\"n/a\")","v":74},{"$f":"IF($C76<>\"n/a\",'QRY - ExportPupilNumbersbyYearG'!AC55,\"n/a\")","v":61},{"$f":"IF($C76<>\"n/a\",'QRY - ExportPupilNumbersbyYearG'!AD55,\"n/a\")","v":57},{"$f":"IF($C76<>\"n/a\",'QRY - ExportPupilNumbersbyYearG'!AE55,\"n/a\")","v":0},{"$f":"IF($C76<>\"n/a\",'QRY - ExportPupilNumbersbyYearG'!AF55,\"n/a\")","v":0},{"$f":"IF($C76<>\"n/a\",'QRY - ExportPupilNumbersbyYearG'!AG55,\"n/a\")","v":0},{"$f":"IF($C76<>\"n/a\",'QRY - ExportPupilNumbersbyYearG'!AH55,\"n/a\")","v":0},{"$f":"IF($C76<>\"n/a\",'QRY - ExportPupilNumbersbyYearG'!AI55,\"n/a\")","v":0},{"$f":"IF($C76<>\"n/a\",'QRY - ExportPupilNumbersbyYearG'!AJ55,\"n/a\")","v":0},{"$f":"IF($C76<>\"n/a\",'QRY - ExportPupilNumbersbyYearG'!AK55,\"n/a\")","v":0},269,269,0,0,151,118,0,0]
[null,null,{"$f":"IF('QRY - ExportPupilNumbersbyYearG'!K56 =\"\",\"n/a\",'QRY - ExportPupilNumbersbyYearG'!K56)","v":"The Lawns Nursery"},{"$f":"IF($C77=\"n/a\",\"\",'QRY - ExportPupilNumbersbyYearG'!E56)","v":"Windsor"},{"$f":"IF($C77=\"n/a\",\"\",'QRY - ExportPupilNumbersbyYearG'!F56)","v":"East Windsor"},{"$f":"IF($C77=\"n/a\",\"\",'QRY - ExportPupilNumbersbyYearG'!G56)","v":"Oakfield"},{"$f":"IF($C77=\"n/a\",\"\",'QRY - ExportPupilNumbersbyYearG'!I56)","v":"Early Years"},{"$f":"IF($C77=\"n/a\",\"\",'QRY - ExportPupilNumbersbyYearG'!H56)","v":"NA"},{"$f":"IF($C77=\"n/a\",\"\",'QRY - ExportPupilNumbersbyYearG'!J56)","v":"Nursery School"},{"$f":"IF($C77=\"n/a\",\"\",'QRY - ExportPupilNumbersbyYearG'!L56)","v":"Community"},{"$f":"IF('QRY - ExportPupilNumbersbyYearG'!Q56=\"\",\"\",'QRY - ExportPupilNumbersbyYearG'!Q56)","v":""},{"$f":"IF($C77=\"n/a\",\"\",'QRY - ExportPupilNumbersbyYearG'!M56)","v":"None"},{"$f":"IF($C77<>\"n/a\",'QRY - ExportPupilNumbersbyYearG'!R56,\"n/a\")","v":0},{"$f":"IF($C77<>\"n/a\",'QRY - ExportPupilNumbersbyYearG'!S56,\"n/a\")","v":6},{"$f":"IF($C77<>\"n/a\",'QRY - ExportPupilNumbersbyYearG'!T56,\"n/a\")","v":57},{"$f":"IF($C77<>\"n/a\",'QRY - ExportPupilNumbersbyYearG'!U56,\"n/a\")","v":67},{"$f":"IF($C77<>\"n/a\",'QRY - ExportPupilNumbersbyYearG'!V56,\"n/a\")","v":0},{"$f":"IF($C77<>\"n/a\",'QRY - ExportPupilNumbersbyYearG'!W56,\"n/a\")","v":0},{"$f":"IF($C77<>\"n/a\",'QRY - ExportPupilNumbersbyYearG'!X56,\"n/a\")","v":0},{"$f":"IF($C77<>\"n/a\",'QRY - ExportPupilNumbersbyYearG'!Y56,\"n/a\")","v":0},{"$f":"IF($C77<>\"n/a\",'QRY - ExportPupilNumbersbyYearG'!Z56,\"n/a\")","v":0},{"$f":"IF($C77<>\"n/a\",'QRY - ExportPupilNumbersbyYearG'!AA56,\"n/a\")","v":0},{"$f":"IF($C77<>\"n/a\",'QRY - ExportPupilNumbersbyYearG'!AB56,\"n/a\")","v":0},{"$f":"IF($C77<>\"n/a\",'QRY - ExportPupilNumbersbyYearG'!AC56,\"n/a\")","v":0},{"$f":"IF($C77<>\"n/a\",'QRY - ExportPupilNumbersbyYearG'!AD56,\"n/a\")","v":0},{"$f":"IF($C77<>\"n/a\",'QRY - ExportPupilNumbersbyYearG'!AE56,\"n/a\")","v":0},{"$f":"IF($C77<>\"n/a\",'QRY - ExportPupilNumbersbyYearG'!AF56,\"n/a\")","v":0},{"$f":"IF($C77<>\"n/a\",'QRY - ExportPupilNumbersbyYearG'!AG56,\"n/a\")","v":0},{"$f":"IF($C77<>\"n/a\",'QRY - ExportPupilNumbersbyYearG'!AH56,\"n/a\")","v":0},{"$f":"IF($C77<>\"n/a\",'QRY - ExportPupilNumbersbyYearG'!AI56,\"n/a\")","v":0},{"$f":"IF($C77<>\"n/a\",'QRY - ExportPupilNumbersbyYearG'!AJ56,\"n/a\")","v":0},{"$f":"IF($C77<>\"n/a\",'QRY - ExportPupilNumbersbyYearG'!AK56,\"n/a\")","v":0},0,130,130,0,0,0,0,0]
[null,null,{"$f":"IF('QRY - ExportPupilNumbersbyYearG'!K57 =\"\",\"n/a\",'QRY - ExportPupilNumbersbyYearG'!K57)","v":"The Queen Anne Royal Free CE First School"},{"$f":"IF($C78=\"n/a\",\"\",'QRY - ExportPupilNumbersbyYearG'!E57)","v":"Windsor"},{"$f":"IF($C78=\"n/a\",\"\",'QRY - ExportPupilNumbersbyYearG'!F57)","v":"East Windsor"},{"$f":"IF($C78=\"n/a\",\"\",'QRY - ExportPupilNumbersbyYearG'!G57)","v":"Home Park"},{"$f":"IF($C78=\"n/a\",\"\",'QRY - ExportPupilNumbersbyYearG'!I57)","v":"Primary"},{"$f":"IF($C78=\"n/a\",\"\",'QRY - ExportPupilNumbersbyYearG'!H57)","v":"Three Tier"},{"$f":"IF($C78=\"n/a\",\"\",'QRY - ExportPupilNumbersbyYearG'!J57)","v":"First"},{"$f":"IF($C78=\"n/a\",\"\",'QRY - ExportPupilNumbersbyYearG'!L57)","v":"Voluntary Controlled"},{"$f":"IF('QRY - ExportPupilNumbersbyYearG'!Q57=\"\",\"\",'QRY - ExportPupilNumbersbyYearG'!Q57)","v":""},{"$f":"IF($C78=\"n/a\",\"\",'QRY - ExportPupilNumbersbyYearG'!M57)","v":"Church of England"},{"$f":"IF($C78<>\"n/a\",'QRY - ExportPupilNumbersbyYearG'!R57,\"n/a\")","v":0},{"$f":"IF($C78<>\"n/a\",'QRY - ExportPupilNumbersbyYearG'!S57,\"n/a\")","v":0},{"$f":"IF($C78<>\"n/a\",'QRY - ExportPupilNumbersbyYearG'!T57,\"n/a\")","v":0},{"$f":"IF($C78<>\"n/a\",'QRY - ExportPupilNumbersbyYearG'!U57,\"n/a\")","v":0},{"$f":"IF($C78<>\"n/a\",'QRY - ExportPupilNumbersbyYearG'!V57,\"n/a\")","v":29},{"$f":"IF($C78<>\"n/a\",'QRY - ExportPupilNumbersbyYearG'!W57,\"n/a\")","v":29},{"$f":"IF($C78<>\"n/a\",'QRY - ExportPupilNumbersbyYearG'!X57,\"n/a\")","v":30},{"$f":"IF($C78<>\"n/a\",'QRY - ExportPupilNumbersbyYearG'!Y57,\"n/a\")","v":27},{"$f":"IF($C78<>\"n/a\",'QRY - ExportPupilNumbersbyYearG'!Z57,\"n/a\")","v":27},{"$f":"IF($C78<>\"n/a\",'QRY - ExportPupilNumbersbyYearG'!AA57,\"n/a\")","v":0},{"$f":"IF($C78<>\"n/a\",'QRY - ExportPupilNumbersbyYearG'!AB57,\"n/a\")","v":0},{"$f":"IF($C78<>\"n/a\",'QRY - ExportPupilNumbersbyYearG'!AC57,\"n/a\")","v":0},{"$f":"IF($C78<>\"n/a\",'QRY - ExportPupilNumbersbyYearG'!AD57,\"n/a\")","v":0},{"$f":"IF($C78<>\"n/a\",'QRY - ExportPupilNumbersbyYearG'!AE57,\"n/a\")","v":0},{"$f":"IF($C78<>\"n/a\",'QRY - ExportPupilNumbersbyYearG'!AF57,\"n/a\")","v":0},{"$f":"IF($C78<>\"n/a\",'QRY - ExportPupilNumbersbyYearG'!AG57,\"n/a\")","v":0},{"$f":"IF($C78<>\"n/a\",'QRY - ExportPupilNumbersbyYearG'!AH57,\"n/a\")","v":0},{"$f":"IF($C78<>\"n/a\",'QRY - ExportPupilNumbersbyYearG'!AI57,\"n/a\")","v":0},{"$f":"IF($C78<>\"n/a\",'QRY - ExportPupilNumbersbyYearG'!AJ57,\"n/a\")","v":0},{"$f":"IF($C78<>\"n/a\",'QRY - ExportPupilNumbersbyYearG'!AK57,\"n/a\")","v":0},142,142,29,59,54,0,0,0]
[null,null,{"$f":"IF('QRY - ExportPupilNumbersbyYearG'!K58 =\"\",\"n/a\",'QRY - ExportPupilNumbersbyYearG'!K58)","v":"The Royal School (Crown Aided)"},{"$f":"IF($C79=\"n/a\",\"\",'QRY - ExportPupilNumbersbyYearG'!E58)","v":"Windsor"},{"$f":"IF($C79=\"n/a\",\"\",'QRY - ExportPupilNumbersbyYearG'!F58)","v":"Windsor Villages"},{"$f":"IF($C79=\"n/a\",\"\",'QRY - ExportPupilNumbersbyYearG'!G58)","v":"Great Park"},{"$f":"IF($C79=\"n/a\",\"\",'QRY - ExportPupilNumbersbyYearG'!I58)","v":"Primary"},{"$f":"IF($C79=\"n/a\",\"\",'QRY - ExportPupilNumbersbyYearG'!H58)","v":"Three Tier"},{"$f":"IF($C79=\"n/a\",\"\",'QRY - ExportPupilNumbersbyYearG'!J58)","v":"First"},{"$f":"IF($C79=\"n/a\",\"\",'QRY - ExportPupilNumbersbyYearG'!L58)","v":"Voluntary Aided"},{"$f":"IF('QRY - ExportPupilNumbersbyYearG'!Q58=\"\",\"\",'QRY - ExportPupilNumbersbyYearG'!Q58)","v":""},{"$f":"IF($C79=\"n/a\",\"\",'QRY - ExportPupilNumbersbyYearG'!M58)","v":"Church of England"},{"$f":"IF($C79<>\"n/a\",'QRY - ExportPupilNumbersbyYearG'!R58,\"n/a\")","v":0},{"$f":"IF($C79<>\"n/a\",'QRY - ExportPupilNumbersbyYearG'!S58,\"n/a\")","v":0},{"$f":"IF($C79<>\"n/a\",'QRY - ExportPupilNumbersbyYearG'!T58,\"n/a\")","v":0},{"$f":"IF($C79<>\"n/a\",'QRY - ExportPupilNumbersbyYearG'!U58,\"n/a\")","v":0},{"$f":"IF($C79<>\"n/a\",'QRY - ExportPupilNumbersbyYearG'!V58,\"n/a\")","v":20},{"$f":"IF($C79<>\"n/a\",'QRY - ExportPupilNumbersbyYearG'!W58,\"n/a\")","v":22},{"$f":"IF($C79<>\"n/a\",'QRY - ExportPupilNumbersbyYearG'!X58,\"n/a\")","v":21},{"$f":"IF($C79<>\"n/a\",'QRY - ExportPupilNumbersbyYearG'!Y58,\"n/a\")","v":15},{"$f":"IF($C79<>\"n/a\",'QRY - ExportPupilNumbersbyYearG'!Z58,\"n/a\")","v":22},{"$f":"IF($C79<>\"n/a\",'QRY - ExportPupilNumbersbyYearG'!AA58,\"n/a\")","v":0},{"$f":"IF($C79<>\"n/a\",'QRY - ExportPupilNumbersbyYearG'!AB58,\"n/a\")","v":0},{"$f":"IF($C79<>\"n/a\",'QRY - ExportPupilNumbersbyYearG'!AC58,\"n/a\")","v":0},{"$f":"IF($C79<>\"n/a\",'QRY - ExportPupilNumbersbyYearG'!AD58,\"n/a\")","v":0},{"$f":"IF($C79<>\"n/a\",'QRY - ExportPupilNumbersbyYearG'!AE58,\"n/a\")","v":0},{"$f":"IF($C79<>\"n/a\",'QRY - ExportPupilNumbersbyYearG'!AF58,\"n/a\")","v":0},{"$f":"IF($C79<>\"n/a\",'QRY - ExportPupilNumbersbyYearG'!AG58,\"n/a\")","v":0},{"$f":"IF($C79<>\"n/a\",'QRY - ExportPupilNumbersbyYearG'!AH58,\"n/a\")","v":0},{"$f":"IF($C79<>\"n/a\",'QRY - ExportPupilNumbersbyYearG'!AI58,\"n/a\")","v":0},{"$f":"IF($C79<>\"n/a\",'QRY - ExportPupilNumbersbyYearG'!AJ58,\"n/a\")","v":0},{"$f":"IF($C79<>\"n/a\",'QRY - ExportPupilNumbersbyYearG'!AK58,\"n/a\")","v":0},100,100,20,43,37,0,0,0]
[null,null,{"$f":"IF('QRY - ExportPupilNumbersbyYearG'!K59 =\"\",\"n/a\",'QRY - ExportPupilNumbersbyYearG'!K59)","v":"The Windsor Boys' School"},{"$f":"IF($C80=\"n/a\",\"\",'QRY - ExportPupilNumbersbyYearG'!E59)","v":"Windsor"},{"$f":"IF($C80=\"n/a\",\"\",'QRY - ExportPupilNumbersbyYearG'!F59)","v":"East Windsor"},{"$f":"IF($C80=\"n/a\",\"\",'QRY - ExportPupilNumbersbyYearG'!G59)","v":"Trinity"},{"$f":"IF($C80=\"n/a\",\"\",'QRY - ExportPupilNumbersbyYearG'!I59)","v":"Secondary"},{"$f":"IF($C80=\"n/a\",\"\",'QRY - ExportPupilNumbersbyYearG'!H59)","v":"Three Tier"},{"$f":"IF($C80=\"n/a\",\"\",'QRY - ExportPupilNumbersbyYearG'!J59)","v":"Upper"},{"$f":"IF($C80=\"n/a\",\"\",'QRY - ExportPupilNumbersbyYearG'!L59)","v":"Academy"},{"$f":"IF('QRY - ExportPupilNumbersbyYearG'!Q59=\"\",\"\",'QRY - ExportPupilNumbersbyYearG'!Q59)","v":"2015-03-01"},{"$f":"IF($C80=\"n/a\",\"\",'QRY - ExportPupilNumbersbyYearG'!M59)","v":"None"},{"$f":"IF($C80<>\"n/a\",'QRY - ExportPupilNumbersbyYearG'!R59,\"n/a\")","v":0},{"$f":"IF($C80<>\"n/a\",'QRY - ExportPupilNumbersbyYearG'!S59,\"n/a\")","v":0},{"$f":"IF($C80<>\"n/a\",'QRY - ExportPupilNumbersbyYearG'!T59,\"n/a\")","v":0},{"$f":"IF($C80<>\"n/a\",'QRY - ExportPupilNumbersbyYearG'!U59,\"n/a\")","v":0},{"$f":"IF($C80<>\"n/a\",'QRY - ExportPupilNumbersbyYearG'!V59,\"n/a\")","v":0},{"$f":"IF($C80<>\"n/a\",'QRY - ExportPupilNumbersbyYearG'!W59,\"n/a\")","v":0},{"$f":"IF($C80<>\"n/a\",'QRY - ExportPupilNumbersbyYearG'!X59,\"n/a\")","v":0},{"$f":"IF($C80<>\"n/a\",'QRY - ExportPupilNumbersbyYearG'!Y59,\"n/a\")","v":0},{"$f":"IF($C80<>\"n/a\",'QRY - ExportPupilNumbersbyYearG'!Z59,\"n/a\")","v":0},{"$f":"IF($C80<>\"n/a\",'QRY - ExportPupilNumbersbyYearG'!AA59,\"n/a\")","v":0},{"$f":"IF($C80<>\"n/a\",'QRY - ExportPupilNumbersbyYearG'!AB59,\"n/a\")","v":0},{"$f":"IF($C80<>\"n/a\",'QRY - ExportPupilNumbersbyYearG'!AC59,\"n/a\")","v":0},{"$f":"IF($C80<>\"n/a\",'QRY - ExportPupilNumbersbyYearG'!AD59,\"n/a\")","v":0},{"$f":"IF($C80<>\"n/a\",'QRY - ExportPupilNumbersbyYearG'!AE59,\"n/a\")","v":229},{"$f":"IF($C80<>\"n/a\",'QRY - ExportPupilNumbersbyYearG'!AF59,\"n/a\")","v":222},{"$f":"IF($C80<>\"n/a\",'QRY - ExportPupilNumbersbyYearG'!AG59,\"n/a\")","v":218},{"$f":"IF($C80<>\"n/a\",'QRY - ExportPupilNumbersbyYearG'!AH59,\"n/a\")","v":114},{"$f":"IF($C80<>\"n/a\",'QRY - ExportPupilNumbersbyYearG'!AI59,\"n/a\")","v":105},{"$f":"IF($C80<>\"n/a\",'QRY - ExportPupilNumbersbyYearG'!AJ59,\"n/a\")","v":0},{"$f":"IF($C80<>\"n/a\",'QRY - ExportPupilNumbersbyYearG'!AK59,\"n/a\")","v":0},888,888,0,0,0,229,440,219]
[null,null,{"$f":"IF('QRY - ExportPupilNumbersbyYearG'!K60 =\"\",\"n/a\",'QRY - ExportPupilNumbersbyYearG'!K60)","v":"Trevelyan Middle School"},{"$f":"IF($C81=\"n/a\",\"\",'QRY - ExportPupilNumbersbyYearG'!E60)","v":"Windsor"},{"$f":"IF($C81=\"n/a\",\"\",'QRY - ExportPupilNumbersbyYearG'!F60)","v":"East Windsor"},{"$f":"IF($C81=\"n/a\",\"\",'QRY - ExportPupilNumbersbyYearG'!G60)","v":"Home Park"},{"$f":"IF($C81=\"n/a\",\"\",'QRY - ExportPupilNumbersbyYearG'!I60)","v":"Secondary"},{"$f":"IF($C81=\"n/a\",\"\",'QRY - ExportPupilNumbersbyYearG'!H60)","v":"Three Tier"},{"$f":"IF($C81=\"n/a\",\"\",'QRY - ExportPupilNumbersbyYearG'!J60)","v":"Middle"},{"$f":"IF($C81=\"n/a\",\"\",'QRY - ExportPupilNumbersbyYearG'!L60)","v":"Academy"},{"$f":"IF('QRY - ExportPupilNumbersbyYearG'!Q60=\"\",\"\",'QRY - ExportPupilNumbersbyYearG'!Q60)","v":"2016-11-01"},{"$f":"IF($C81=\"n/a\",\"\",'QRY - ExportPupilNumbersbyYearG'!M60)","v":"None"},{"$f":"IF($C81<>\"n/a\",'QRY - ExportPupilNumbersbyYearG'!R60,\"n/a\")","v":0},{"$f":"IF($C81<>\"n/a\",'QRY - ExportPupilNumbersbyYearG'!S60,\"n/a\")","v":0},{"$f":"IF($C81<>\"n/a\",'QRY - ExportPupilNumbersbyYearG'!T60,\"n/a\")","v":0},{"$f":"IF($C81<>\"n/a\",'QRY - ExportPupilNumbersbyYearG'!U60,\"n/a\")","v":0},{"$f":"IF($C81<>\"n/a\",'QRY - ExportPupilNumbersbyYearG'!V60,\"n/a\")","v":0},{"$f":"IF($C81<>\"n/a\",'QRY - ExportPupilNumbersbyYearG'!W60,\"n/a\")","v":0},{"$f":"IF($C81<>\"n/a\",'QRY - ExportPupilNumbersbyYearG'!X60,\"n/a\")","v":0},{"$f":"IF($C81<>\"n/a\",'QRY - ExportPupilNumbersbyYearG'!Y60,\"n/a\")","v":0},{"$f":"IF($C81<>\"n/a\",'QRY - ExportPupilNumbersbyYearG'!Z60,\"n/a\")","v":0},{"$f":"IF($C81<>\"n/a\",'QRY - ExportPupilNumbersbyYearG'!AA60,\"n/a\")","v":148},{"$f":"IF($C81<>\"n/a\",'QRY - ExportPupilNumbersbyYearG'!AB60,\"n/a\")","v":150},{"$f":"IF($C81<>\"n/a\",'QRY - ExportPupilNumbersbyYearG'!AC60,\"n/a\")","v":149},{"$f":"IF($C81<>\"n/a\",'QRY - ExportPupilNumbersbyYearG'!AD60,\"n/a\")","v":147},{"$f":"IF($C81<>\"n/a\",'QRY - ExportPupilNumbersbyYearG'!AE60,\"n/a\")","v":0},{"$f":"IF($C81<>\"n/a\",'QRY - ExportPupilNumbersbyYearG'!AF60,\"n/a\")","v":0},{"$f":"IF($C81<>\"n/a\",'QRY - ExportPupilNumbersbyYearG'!AG60,\"n/a\")","v":0},{"$f":"IF($C81<>\"n/a\",'QRY - ExportPupilNumbersbyYearG'!AH60,\"n/a\")","v":0},{"$f":"IF($C81<>\"n/a\",'QRY - ExportPupilNumbersbyYearG'!AI60,\"n/a\")","v":0},{"$f":"IF($C81<>\"n/a\",'QRY - ExportPupilNumbersbyYearG'!AJ60,\"n/a\")","v":0},{"$f":"IF($C81<>\"n/a\",'QRY - ExportPupilNumbersbyYearG'!AK60,\"n/a\")","v":0},594,594,0,0,298,296,0,0]
[null,null,{"$f":"IF('QRY - ExportPupilNumbersbyYearG'!K61 =\"\",\"n/a\",'QRY - ExportPupilNumbersbyYearG'!K61)","v":"Trinity St Stephen Church of England First School"},{"$f":"IF($C82=\"n/a\",\"\",'QRY - ExportPupilNumbersbyYearG'!E61)","v":"Windsor"},{"$f":"IF($C82=\"n/a\",\"\",'QRY - ExportPupilNumbersbyYearG'!F61)","v":"East Windsor"},{"$f":"IF($C82=\"n/a\",\"\",'QRY - ExportPupilNumbersbyYearG'!G61)","v":"Trinity"},{"$f":"IF($C82=\"n/a\",\"\",'QRY - ExportPupilNumbersbyYearG'!I61)","v":"Primary"},{"$f":"IF($C82=\"n/a\",\"\",'QRY - ExportPupilNumbersbyYearG'!H61)","v":"Three Tier"},{"$f":"IF($C82=\"n/a\",\"\",'QRY - ExportPupilNumbersbyYearG'!J61)","v":"First"},{"$f":"IF($C82=\"n/a\",\"\",'QRY - ExportPupilNumbersbyYearG'!L61)","v":"Voluntary Aided"},{"$f":"IF('QRY - ExportPupilNumbersbyYearG'!Q61=\"\",\"\",'QRY - ExportPupilNumbersbyYearG'!Q61)","v":""},{"$f":"IF($C82=\"n/a\",\"\",'QRY - ExportPupilNumbersbyYearG'!M61)","v":"Church of England"},{"$f":"IF($C82<>\"n/a\",'QRY - ExportPupilNumbersbyYearG'!R61,\"n/a\")","v":0},{"$f":"IF($C82<>\"n/a\",'QRY - ExportPupilNumbersbyYearG'!S61,\"n/a\")","v":0},{"$f":"IF($C82<>\"n/a\",'QRY - ExportPupilNumbersbyYearG'!T61,\"n/a\")","v":0},{"$f":"IF($C82<>\"n/a\",'QRY - ExportPupilNumbersbyYearG'!U61,\"n/a\")","v":0},{"$f":"IF($C82<>\"n/a\",'QRY - ExportPupilNumbersbyYearG'!V61,\"n/a\")","v":27},{"$f":"IF($C82<>\"n/a\",'QRY - ExportPupilNumbersbyYearG'!W61,\"n/a\")","v":29},{"$f":"IF($C82<>\"n/a\",'QRY - ExportPupilNumbersbyYearG'!X61,\"n/a\")","v":28},{"$f":"IF($C82<>\"n/a\",'QRY - ExportPupilNumbersbyYearG'!Y61,\"n/a\")","v":30},{"$f":"IF($C82<>\"n/a\",'QRY - ExportPupilNumbersbyYearG'!Z61,\"n/a\")","v":27},{"$f":"IF($C82<>\"n/a\",'QRY - ExportPupilNumbersbyYearG'!AA61,\"n/a\")","v":0},{"$f":"IF($C82<>\"n/a\",'QRY - ExportPupilNumbersbyYearG'!AB61,\"n/a\")","v":0},{"$f":"IF($C82<>\"n/a\",'QRY - ExportPupilNumbersbyYearG'!AC61,\"n/a\")","v":0},{"$f":"IF($C82<>\"n/a\",'QRY - ExportPupilNumbersbyYearG'!AD61,\"n/a\")","v":0},{"$f":"IF($C82<>\"n/a\",'QRY - ExportPupilNumbersbyYearG'!AE61,\"n/a\")","v":0},{"$f":"IF($C82<>\"n/a\",'QRY - ExportPupilNumbersbyYearG'!AF61,\"n/a\")","v":0},{"$f":"IF($C82<>\"n/a\",'QRY - ExportPupilNumbersbyYearG'!AG61,\"n/a\")","v":0},{"$f":"IF($C82<>\"n/a\",'QRY - ExportPupilNumbersbyYearG'!AH61,\"n/a\")","v":0},{"$f":"IF($C82<>\"n/a\",'QRY - ExportPupilNumbersbyYearG'!AI61,\"n/a\")","v":0},{"$f":"IF($C82<>\"n/a\",'QRY - ExportPupilNumbersbyYearG'!AJ61,\"n/a\")","v":0},{"$f":"IF($C82<>\"n/a\",'QRY - ExportPupilNumbersbyYearG'!AK61,\"n/a\")","v":0},141,141,27,57,57,0,0,0]
[null,null,{"$f":"IF('QRY - ExportPupilNumbersbyYearG'!K62 =\"\",\"n/a\",'QRY - ExportPupilNumbersbyYearG'!K62)","v":"Waltham St Lawrence Primary School"},{"$f":"IF($C83=\"n/a\",\"\",'QRY - ExportPupilNumbersbyYearG'!E62)","v":"Maidenhead"},{"$f":"IF($C83=\"n/a\",\"\",'QRY - ExportPupilNumbersbyYearG'!F62)","v":"Maidenhead Villages"},{"$f":"IF($C83=\"n/a\",\"\",'QRY - ExportPupilNumbersbyYearG'!G62)","v":"Waltham St Lawrence"},{"$f":"IF($C83=\"n/a\",\"\",'QRY - ExportPupilNumbersbyYearG'!I62)","v":"Primary"},{"$f":"IF($C83=\"n/a\",\"\",'QRY - ExportPupilNumbersbyYearG'!H62)","v":"Two Tier"},{"$f":"IF($C83=\"n/a\",\"\",'QRY - ExportPupilNumbersbyYearG'!J62)","v":"JMI"},{"$f":"IF($C83=\"n/a\",\"\",'QRY - ExportPupilNumbersbyYearG'!L62)","v":"Community"},{"$f":"IF('QRY - ExportPupilNumbersbyYearG'!Q62=\"\",\"\",'QRY - ExportPupilNumbersbyYearG'!Q62)","v":""},{"$f":"IF($C83=\"n/a\",\"\",'QRY - ExportPupilNumbersbyYearG'!M62)","v":"None"},{"$f":"IF($C83<>\"n/a\",'QRY - ExportPupilNumbersbyYearG'!R62,\"n/a\")","v":0},{"$f":"IF($C83<>\"n/a\",'QRY - ExportPupilNumbersbyYearG'!S62,\"n/a\")","v":0},{"$f":"IF($C83<>\"n/a\",'QRY - ExportPupilNumbersbyYearG'!T62,\"n/a\")","v":0},{"$f":"IF($C83<>\"n/a\",'QRY - ExportPupilNumbersbyYearG'!U62,\"n/a\")","v":0},{"$f":"IF($C83<>\"n/a\",'QRY - ExportPupilNumbersbyYearG'!V62,\"n/a\")","v":22},{"$f":"IF($C83<>\"n/a\",'QRY - ExportPupilNumbersbyYearG'!W62,\"n/a\")","v":22},{"$f":"IF($C83<>\"n/a\",'QRY - ExportPupilNumbersbyYearG'!X62,\"n/a\")","v":22},{"$f":"IF($C83<>\"n/a\",'QRY - ExportPupilNumbersbyYearG'!Y62,\"n/a\")","v":20},{"$f":"IF($C83<>\"n/a\",'QRY - ExportPupilNumbersbyYearG'!Z62,\"n/a\")","v":18},{"$f":"IF($C83<>\"n/a\",'QRY - ExportPupilNumbersbyYearG'!AA62,\"n/a\")","v":20},{"$f":"IF($C83<>\"n/a\",'QRY - ExportPupilNumbersbyYearG'!AB62,\"n/a\")","v":16},{"$f":"IF($C83<>\"n/a\",'QRY - ExportPupilNumbersbyYearG'!AC62,\"n/a\")","v":0},{"$f":"IF($C83<>\"n/a\",'QRY - ExportPupilNumbersbyYearG'!AD62,\"n/a\")","v":0},{"$f":"IF($C83<>\"n/a\",'QRY - ExportPupilNumbersbyYearG'!AE62,\"n/a\")","v":0},{"$f":"IF($C83<>\"n/a\",'QRY - ExportPupilNumbersbyYearG'!AF62,\"n/a\")","v":0},{"$f":"IF($C83<>\"n/a\",'QRY - ExportPupilNumbersbyYearG'!AG62,\"n/a\")","v":0},{"$f":"IF($C83<>\"n/a\",'QRY - ExportPupilNumbersbyYearG'!AH62,\"n/a\")","v":0},{"$f":"IF($C83<>\"n/a\",'QRY - ExportPupilNumbersbyYearG'!AI62,\"n/a\")","v":0},{"$f":"IF($C83<>\"n/a\",'QRY - ExportPupilNumbersbyYearG'!AJ62,\"n/a\")","v":0},{"$f":"IF($C83<>\"n/a\",'QRY - ExportPupilNumbersbyYearG'!AK62,\"n/a\")","v":0},140,140,22,44,74,0,0,0]
[null,null,{"$f":"IF('QRY - ExportPupilNumbersbyYearG'!K63 =\"\",\"n/a\",'QRY - ExportPupilNumbersbyYearG'!K63)","v":"Wessex Primary School"},{"$f":"IF($C84=\"n/a\",\"\",'QRY - ExportPupilNumbersbyYearG'!E63)","v":"Maidenhead"},{"$f":"IF($C84=\"n/a\",\"\",'QRY - ExportPupilNumbersbyYearG'!F63)","v":"South West Maidenhead"},{"$f":"IF($C84=\"n/a\",\"\",'QRY - ExportPupilNumbersbyYearG'!G63)","v":"Wessex West"},{"$f":"IF($C84=\"n/a\",\"\",'QRY - ExportPupilNumbersbyYearG'!I63)","v":"Primary"},{"$f":"IF($C84=\"n/a\",\"\",'QRY - ExportPupilNumbersbyYearG'!H63)","v":"Two Tier"},{"$f":"IF($C84=\"n/a\",\"\",'QRY - ExportPupilNumbersbyYearG'!J63)","v":"JMI"},{"$f":"IF($C84=\"n/a\",\"\",'QRY - ExportPupilNumbersbyYearG'!L63)","v":"Community"},{"$f":"IF('QRY - ExportPupilNumbersbyYearG'!Q63=\"\",\"\",'QRY - ExportPupilNumbersbyYearG'!Q63)","v":""},{"$f":"IF($C84=\"n/a\",\"\",'QRY - ExportPupilNumbersbyYearG'!M63)","v":"None"},{"$f":"IF($C84<>\"n/a\",'QRY - ExportPupilNumbersbyYearG'!R63,\"n/a\")","v":0},{"$f":"IF($C84<>\"n/a\",'QRY - ExportPupilNumbersbyYearG'!S63,\"n/a\")","v":0},{"$f":"IF($C84<>\"n/a\",'QRY - ExportPupilNumbersbyYearG'!T63,\"n/a\")","v":6},{"$f":"IF($C84<>\"n/a\",'QRY - ExportPupilNumbersbyYearG'!U63,\"n/a\")","v":22},{"$f":"IF($C84<>\"n/a\",'QRY - ExportPupilNumbersbyYearG'!V63,\"n/a\")","v":45},{"$f":"IF($C84<>\"n/a\",'QRY - ExportPupilNumbersbyYearG'!W63,\"n/a\")","v":55},{"$f":"IF($C84<>\"n/a\",'QRY - ExportPupilNumbersbyYearG'!X63,\"n/a\")","v":58},{"$f":"IF($C84<>\"n/a\",'QRY - ExportPupilNumbersbyYearG'!Y63,\"n/a\")","v":60},{"$f":"IF($C84<>\"n/a\",'QRY - ExportPupilNumbersbyYearG'!Z63,\"n/a\")","v":59},{"$f":"IF($C84<>\"n/a\",'QRY - ExportPupilNumbersbyYearG'!AA63,\"n/a\")","v":58},{"$f":"IF($C84<>\"n/a\",'QRY - ExportPupilNumbersbyYearG'!AB63,\"n/a\")","v":63},{"$f":"IF($C84<>\"n/a\",'QRY - ExportPupilNumbersbyYearG'!AC63,\"n/a\")","v":0},{"$f":"IF($C84<>\"n/a\",'QRY - ExportPupilNumbersbyYearG'!AD63,\"n/a\")","v":0},{"$f":"IF($C84<>\"n/a\",'QRY - ExportPupilNumbersbyYearG'!AE63,\"n/a\")","v":0},{"$f":"IF($C84<>\"n/a\",'QRY - ExportPupilNumbersbyYearG'!AF63,\"n/a\")","v":0},{"$f":"IF($C84<>\"n/a\",'QRY - ExportPupilNumbersbyYearG'!AG63,\"n/a\")","v":0},{"$f":"IF($C84<>\"n/a\",'QRY - ExportPupilNumbersbyYearG'!AH63,\"n/a\")","v":0},{"$f":"IF($C84<>\"n/a\",'QRY - ExportPupilNumbersbyYearG'!AI63,\"n/a\")","v":0},{"$f":"IF($C84<>\"n/a\",'QRY - ExportPupilNumbersbyYearG'!AJ63,\"n/a\")","v":0},{"$f":"IF($C84<>\"n/a\",'QRY - ExportPupilNumbersbyYearG'!AK63,\"n/a\")","v":0},398,426,73,113,240,0,0,0]
[null,null,{"$f":"IF('QRY - ExportPupilNumbersbyYearG'!K64 =\"\",\"n/a\",'QRY - ExportPupilNumbersbyYearG'!K64)","v":"White Waltham C of E Academy"},{"$f":"IF($C85=\"n/a\",\"\",'QRY - ExportPupilNumbersbyYearG'!E64)","v":"Maidenhead"},{"$f":"IF($C85=\"n/a\",\"\",'QRY - ExportPupilNumbersbyYearG'!F64)","v":"Maidenhead Villages"},{"$f":"IF($C85=\"n/a\",\"\",'QRY - ExportPupilNumbersbyYearG'!G64)","v":"White Waltham"},{"$f":"IF($C85=\"n/a\",\"\",'QRY - ExportPupilNumbersbyYearG'!I64)","v":"Primary"},{"$f":"IF($C85=\"n/a\",\"\",'QRY - ExportPupilNumbersbyYearG'!H64)","v":"Two Tier"},{"$f":"IF($C85=\"n/a\",\"\",'QRY - ExportPupilNumbersbyYearG'!J64)","v":"JMI"},{"$f":"IF($C85=\"n/a\",\"\",'QRY - ExportPupilNumbersbyYearG'!L64)","v":"Academy"},{"$f":"IF('QRY - ExportPupilNumbersbyYearG'!Q64=\"\",\"\",'QRY - ExportPupilNumbersbyYearG'!Q64)","v":"2012-09-01"},{"$f":"IF($C85=\"n/a\",\"\",'QRY - ExportPupilNumbersbyYearG'!M64)","v":"Church of England"},{"$f":"IF($C85<>\"n/a\",'QRY - ExportPupilNumbersbyYearG'!R64,\"n/a\")","v":0},{"$f":"IF($C85<>\"n/a\",'QRY - ExportPupilNumbersbyYearG'!S64,\"n/a\")","v":0},{"$f":"IF($C85<>\"n/a\",'QRY - ExportPupilNumbersbyYearG'!T64,\"n/a\")","v":0},{"$f":"IF($C85<>\"n/a\",'QRY - ExportPupilNumbersbyYearG'!U64,\"n/a\")","v":0},{"$f":"IF($C85<>\"n/a\",'QRY - ExportPupilNumbersbyYearG'!V64,\"n/a\")","v":30},{"$f":"IF($C85<>\"n/a\",'QRY - ExportPupilNumbersbyYearG'!W64,\"n/a\")","v":30},{"$f":"IF($C85<>\"n/a\",'QRY - ExportPupilNumbersbyYearG'!X64,\"n/a\")","v":30},{"$f":"IF($C85<>\"n/a\",'QRY - ExportPupilNumbersbyYearG'!Y64,\"n/a\")","v":29},{"$f":"IF($C85<>\"n/a\",'QRY - ExportPupilNumbersbyYearG'!Z64,\"n/a\")","v":30},{"$f":"IF($C85<>\"n/a\",'QRY - ExportPupilNumbersbyYearG'!AA64,\"n/a\")","v":31},{"$f":"IF($C85<>\"n/a\",'QRY - ExportPupilNumbersbyYearG'!AB64,\"n/a\")","v":29},{"$f":"IF($C85<>\"n/a\",'QRY - ExportPupilNumbersbyYearG'!AC64,\"n/a\")","v":0},{"$f":"IF($C85<>\"n/a\",'QRY - ExportPupilNumbersbyYearG'!AD64,\"n/a\")","v":0},{"$f":"IF($C85<>\"n/a\",'QRY - ExportPupilNumbersbyYearG'!AE64,\"n/a\")","v":0},{"$f":"IF($C85<>\"n/a\",'QRY - ExportPupilNumbersbyYearG'!AF64,\"n/a\")","v":0},{"$f":"IF($C85<>\"n/a\",'QRY - ExportPupilNumbersbyYearG'!AG64,\"n/a\")","v":0},{"$f":"IF($C85<>\"n/a\",'QRY - ExportPupilNumbersbyYearG'!AH64,\"n/a\")","v":0},{"$f":"IF($C85<>\"n/a\",'QRY - ExportPupilNumbersbyYearG'!AI64,\"n/a\")","v":0},{"$f":"IF($C85<>\"n/a\",'QRY - ExportPupilNumbersbyYearG'!AJ64,\"n/a\")","v":0},{"$f":"IF($C85<>\"n/a\",'QRY - ExportPupilNumbersbyYearG'!AK64,\"n/a\")","v":0},209,209,30,60,119,0,0,0]
[null,null,{"$f":"IF('QRY - ExportPupilNumbersbyYearG'!K65 =\"\",\"n/a\",'QRY - ExportPupilNumbersbyYearG'!K65)","v":"Windsor Girls' School"},{"$f":"IF($C86=\"n/a\",\"\",'QRY - ExportPupilNumbersbyYearG'!E65)","v":"Windsor"},{"$f":"IF($C86=\"n/a\",\"\",'QRY - ExportPupilNumbersbyYearG'!F65)","v":"Windsor South"},{"$f":"IF($C86=\"n/a\",\"\",'QRY - ExportPupilNumbersbyYearG'!G65)","v":"New Town"},{"$f":"IF($C86=\"n/a\",\"\",'QRY - ExportPupilNumbersbyYearG'!I65)","v":"Secondary"},{"$f":"IF($C86=\"n/a\",\"\",'QRY - ExportPupilNumbersbyYearG'!H65)","v":"Three Tier"},{"$f":"IF($C86=\"n/a\",\"\",'QRY - ExportPupilNumbersbyYearG'!J65)","v":"Upper"},{"$f":"IF($C86=\"n/a\",\"\",'QRY - ExportPupilNumbersbyYearG'!L65)","v":"Academy"},{"$f":"IF('QRY - ExportPupilNumbersbyYearG'!Q65=\"\",\"\",'QRY - ExportPupilNumbersbyYearG'!Q65)","v":"2015-03-01"},{"$f":"IF($C86=\"n/a\",\"\",'QRY - ExportPupilNumbersbyYearG'!M65)","v":"None"},{"$f":"IF($C86<>\"n/a\",'QRY - ExportPupilNumbersbyYearG'!R65,\"n/a\")","v":0},{"$f":"IF($C86<>\"n/a\",'QRY - ExportPupilNumbersbyYearG'!S65,\"n/a\")","v":0},{"$f":"IF($C86<>\"n/a\",'QRY - ExportPupilNumbersbyYearG'!T65,\"n/a\")","v":0},{"$f":"IF($C86<>\"n/a\",'QRY - ExportPupilNumbersbyYearG'!U65,\"n/a\")","v":0},{"$f":"IF($C86<>\"n/a\",'QRY - ExportPupilNumbersbyYearG'!V65,\"n/a\")","v":0},{"$f":"IF($C86<>\"n/a\",'QRY - ExportPupilNumbersbyYearG'!W65,\"n/a\")","v":0},{"$f":"IF($C86<>\"n/a\",'QRY - ExportPupilNumbersbyYearG'!X65,\"n/a\")","v":0},{"$f":"IF($C86<>\"n/a\",'QRY - ExportPupilNumbersbyYearG'!Y65,\"n/a\")","v":0},{"$f":"IF($C86<>\"n/a\",'QRY - ExportPupilNumbersbyYearG'!Z65,\"n/a\")","v":0},{"$f":"IF($C86<>\"n/a\",'QRY - ExportPupilNumbersbyYearG'!AA65,\"n/a\")","v":0},{"$f":"IF($C86<>\"n/a\",'QRY - ExportPupilNumbersbyYearG'!AB65,\"n/a\")","v":0},{"$f":"IF($C86<>\"n/a\",'QRY - ExportPupilNumbersbyYearG'!AC65,\"n/a\")","v":0},{"$f":"IF($C86<>\"n/a\",'QRY - ExportPupilNumbersbyYearG'!AD65,\"n/a\")","v":0},{"$f":"IF($C86<>\"n/a\",'QRY - ExportPupilNumbersbyYearG'!AE65,\"n/a\")","v":198},{"$f":"IF($C86<>\"n/a\",'QRY - ExportPupilNumbersbyYearG'!AF65,\"n/a\")","v":188},{"$f":"IF($C86<>\"n/a\",'QRY - ExportPupilNumbersbyYearG'!AG65,\"n/a\")","v":178},{"$f":"IF($C86<>\"n/a\",'QRY - ExportPupilNumbersbyYearG'!AH65,\"n/a\")","v":85},{"$f":"IF($C86<>\"n/a\",'QRY - ExportPupilNumbersbyYearG'!AI65,\"n/a\")","v":126},{"$f":"IF($C86<>\"n/a\",'QRY - ExportPupilNumbersbyYearG'!AJ65,\"n/a\")","v":0},{"$f":"IF($C86<>\"n/a\",'QRY - ExportPupilNumbersbyYearG'!AK65,\"n/a\")","v":0},{"$f":"IF($C86<>\"n/a\",SUM(Q86:AF86),\"n/a\")","v":775},{"$f":"IF($C86<>\"n/a\",SUM(M86:AF86),\"n/a\")","v":775},{"$f":"IF(C86<>\"n/a\",SUM(M86:Q86),\"n/a\")","v":0},{"$f":"IF(C86<>\"n/a\",SUM(R86:S86),\"n/a\")","v":0},{"$f":"IF(C86<>\"n/a\",SUM(T86:W86),\"n/a\")","v":0},{"$f":"IF(C86<>\"n/a\",SUM(X86:Z86),\"n/a\")","v":198},{"$f":"IF(C86<>\"n/a\",SUM(AA86:AB86),\"n/a\")","v":366},{"$f":"IF(C86<>\"n/a\",SUM(AC86:AF86),\"n/a\")","v":211}]
[null,null,{"$f":"IF('QRY - ExportPupilNumbersbyYearG'!K66 =\"\",\"n/a\",'QRY - ExportPupilNumbersbyYearG'!K66)","v":"Woodlands Park Primary & Nursery School"},{"$f":"IF($C87=\"n/a\",\"\",'QRY - ExportPupilNumbersbyYearG'!E66)","v":"Maidenhead"},{"$f":"IF($C87=\"n/a\",\"\",'QRY - ExportPupilNumbersbyYearG'!F66)","v":"South West Maidenhead"},{"$f":"IF($C87=\"n/a\",\"\",'QRY - ExportPupilNumbersbyYearG'!G66)","v":"Woodlands Park"},{"$f":"IF($C87=\"n/a\",\"\",'QRY - ExportPupilNumbersbyYearG'!I66)","v":"Primary"},{"$f":"IF($C87=\"n/a\",\"\",'QRY - ExportPupilNumbersbyYearG'!H66)","v":"Two Tier"},{"$f":"IF($C87=\"n/a\",\"\",'QRY - ExportPupilNumbersbyYearG'!J66)","v":"JMI"},{"$f":"IF($C87=\"n/a\",\"\",'QRY - ExportPupilNumbersbyYearG'!L66)","v":"Community"},{"$f":"IF('QRY - ExportPupilNumbersbyYearG'!Q66=\"\",\"\",'QRY - ExportPupilNumbersbyYearG'!Q66)","v":""},{"$f":"IF($C87=\"n/a\",\"\",'QRY - ExportPupilNumbersbyYearG'!M66)","v":"None"},{"$f":"IF($C87<>\"n/a\",'QRY - ExportPupilNumbersbyYearG'!R66,\"n/a\")","v":0},{"$f":"IF($C87<>\"n/a\",'QRY - ExportPupilNumbersbyYearG'!S66,\"n/a\")","v":0},{"$f":"IF($C87<>\"n/a\",'QRY - ExportPupilNumbersbyYearG'!T66,\"n/a\")","v":1},{"$f":"IF($C87<>\"n/a\",'QRY - ExportPupilNumbersbyYearG'!U66,\"n/a\")","v":13},{"$f":"IF($C87<>\"n/a\",'QRY - ExportPupilNumbersbyYearG'!V66,\"n/a\")","v":26},{"$f":"IF($C87<>\"n/a\",'QRY - ExportPupilNumbersbyYearG'!W66,\"n/a\")","v":26},{"$f":"IF($C87<>\"n/a\",'QRY - ExportPupilNumbersbyYearG'!X66,\"n/a\")","v":15},{"$f":"IF($C87<>\"n/a\",'QRY - ExportPupilNumbersbyYearG'!Y66,\"n/a\")","v":20},{"$f":"IF($C87<>\"n/a\",'QRY - ExportPupilNumbersbyYearG'!Z66,\"n/a\")","v":29},{"$f":"IF($C87<>\"n/a\",'QRY - ExportPupilNumbersbyYearG'!AA66,\"n/a\")","v":10},{"$f":"IF($C87<>\"n/a\",'QRY - ExportPupilNumbersbyYearG'!AB66,\"n/a\")","v":21},{"$f":"IF($C87<>\"n/a\",'QRY - ExportPupilNumbersbyYearG'!AC66,\"n/a\")","v":0},{"$f":"IF($C87<>\"n/a\",'QRY - ExportPupilNumbersbyYearG'!AD66,\"n/a\")","v":0},{"$f":"IF($C87<>\"n/a\",'QRY - ExportPupilNumbersbyYearG'!AE66,\"n/a\")","v":0},{"$f":"IF($C87<>\"n/a\",'QRY - ExportPupilNumbersbyYearG'!AF66,\"n/a\")","v":0},{"$f":"IF($C87<>\"n/a\",'QRY - ExportPupilNumbersbyYearG'!AG66,\"n/a\")","v":0},{"$f":"IF($C87<>\"n/a\",'QRY - ExportPupilNumbersbyYearG'!AH66,\"n/a\")","v":0},{"$f":"IF($C87<>\"n/a\",'QRY - ExportPupilNumbersbyYearG'!AI66,\"n/a\")","v":0},{"$f":"IF($C87<>\"n/a\",'QRY - ExportPupilNumbersbyYearG'!AJ66,\"n/a\")","v":0},{"$f":"IF($C87<>\"n/a\",'QRY - ExportPupilNumbersbyYearG'!AK66,\"n/a\")","v":0},147,161,40,41,80,0,0,0]
[]
[null,null,{"$f":"IF(SUBTOTAL(3,C23:C87)<COUNTIF(C23:C87,\"<>n/a\"),SUBTOTAL(3,C23:C87) & \" schools\",COUNTIF(C23:C87,\"<>n/a\") &\" schools\")","v":"65 schools"},null,null,null,null,null,null,null,null,null,{"$f":"SUBTOTAL(9,M23:M87)","v":1},7,201,456,1562,1545,1550,1561,1642,1572,1626,1856,1828,1754,1670,1595,983,941,20,0,21705,22370,2227,3095,6401,5438,3265,1944]